Body Name,Body,Service Label,Service Code,CIPFA Detailed Expenditure Type,CIPFA Detailed Expenditure Code,Date,Transaction Number,Net Amount,Supplier Name,,,,,,,#REF!
Nottinghamshire County Council,1111/1001,Surplus or Deficit from Trading Undertak,TRADING,Supplies & Services,DDA,08/12/2015,11-10001,"1,291.56",Hamelin Paperbrands Ltd,,,,,,,
Nottinghamshire County Council,1111/1001,Surplus or Deficit from Trading Undertak,TRADING,Supplies & Services,DDA,21/12/2015,11-10001,"1,059.46",Hamelin Paperbrands Ltd,,,,,,,
Nottinghamshire County Council,1111/1001,Surplus or Deficit from Trading Undertak,TRADING,Supplies & Services,DDA,22/12/2015,11-10001,696.40,Plastoreg Smidt Gmbh,,,,,,,
Nottinghamshire County Council,1111/1001,Surplus or Deficit from Trading Undertak,TRADING,Supplies & Services,DDA,10/12/2015,11-10001,609.92,Henkel Loctite Adhesives Ltd,,,,,,,
Nottinghamshire County Council,1111/1001,Surplus or Deficit from Trading Undertak,TRADING,Supplies & Services,DDA,21/12/2015,11-10001,"3,554.40",Henkel Loctite Adhesives Ltd,,,,,,,
Nottinghamshire County Council,1111/1001,Surplus or Deficit from Trading Undertak,TRADING,Supplies & Services,DAA,10/12/2015,11-10001,913.20,Kb Packaging,,,,,,,
Nottinghamshire County Council,1111/1001,Surplus or Deficit from Trading Undertak,TRADING,Supplies & Services,DAA,15/12/2015,11-10001,"1,008.00",Langley Mechanical Services Ltd,,,,,,,
Nottinghamshire County Council,1111/1001,Surplus or Deficit from Trading Undertak,TRADING,Supplies & Services,DAA,01/12/2015,11-10001,594.00,H-Squared Electronics Ltd,,,,,,,
Nottinghamshire County Council,1111/1001,Surplus or Deficit from Trading Undertak,TRADING,Supplies & Services,DAA,17/12/2015,11-10001,703.20,Bostik Ltd,,,,,,,
Nottinghamshire County Council,1111/1001,Surplus or Deficit from Trading Undertak,TRADING,Supplies & Services,DAA,21/12/2015,11-10001,690.70,Reliance Medical Ltd,,,,,,,
Nottinghamshire County Council,1111/1001,Surplus or Deficit from Trading Undertak,TRADING,Supplies & Services,DFA,11/12/2015,11-10001,"2,714.78",Advanced Ticketing Limited,,,,,,,
Nottinghamshire County Council,1111/1001,Surplus or Deficit from Trading Undertak,TRADING,Supplies & Services,DFA,03/12/2015,11-10001,"35,935.61",Advanced Business Solutions,,,,,,,
Nottinghamshire County Council,1111/1001,Surplus or Deficit from Trading Undertak,TRADING,Supplies & Services,DFA,03/12/2015,11-10001,"4,242.22",Advanced Business Solutions,,,,,,,
Nottinghamshire County Council,1111/1001,Surplus or Deficit from Trading Undertak,TRADING,Supplies & Services,DAA,17/12/2015,11-10001,"8,231.04",Vivid Laminating Technologies Ltd,,,,,,,
Nottinghamshire County Council,1111/1001,Surplus or Deficit from Trading Undertak,TRADING,Supplies & Services,DAA,17/12/2015,11-10001,"3,172.20",Vivid Laminating Technologies Ltd,,,,,,,
Nottinghamshire County Council,1111/1001,Surplus or Deficit from Trading Undertak,TRADING,Supplies & Services,DAA,10/12/2015,11-10001,"1,320.00",Premier Paper Group Ltd,,,,,,,
Nottinghamshire County Council,1111/1001,Surplus or Deficit from Trading Undertak,TRADING,Supplies & Services,DAA,01/12/2015,11-10001,"15,600.00",Antalis Key Accounts,,,,,,,
Nottinghamshire County Council,1111/1001,Surplus or Deficit from Trading Undertak,TRADING,Supplies & Services,DAA,01/12/2015,11-10001,546.60,Antalis Key Accounts,,,,,,,
Nottinghamshire County Council,1111/1001,Surplus or Deficit from Trading Undertak,TRADING,Supplies & Services,DAA,04/12/2015,11-10001,"3,310.90",Antalis Key Accounts,,,,,,,
Nottinghamshire County Council,1111/1001,Surplus or Deficit from Trading Undertak,TRADING,Supplies & Services,DAA,04/12/2015,11-10001,"2,688.40",Antalis Key Accounts,,,,,,,
Nottinghamshire County Council,1111/1001,Surplus or Deficit from Trading Undertak,TRADING,Supplies & Services,DAA,21/12/2015,11-10001,565.75,Antalis Key Accounts,,,,,,,
Nottinghamshire County Council,1111/1001,Surplus or Deficit from Trading Undertak,TRADING,Supplies & Services,DAA,10/12/2015,11-10001,546.48,Antalis,,,,,,,
Nottinghamshire County Council,1111/1001,Surplus or Deficit from Trading Undertak,TRADING,Supplies & Services,DAA,17/12/2015,11-10001,730.00,Amp Electrical,,,,,,,
Nottinghamshire County Council,1111/1001,Surplus or Deficit from Trading Undertak,TRADING,Premises Related,BAA,01/12/2015,11-10001,"2,183.70",Avery Uk,,,,,,,
Nottinghamshire County Council,1111/1001,Surplus or Deficit from Trading Undertak,TRADING,Premises Related,BAA,15/12/2015,11-10001,564.90,Avery Uk,,,,,,,
Nottinghamshire County Council,1111/1001,Surplus or Deficit from Trading Undertak,TRADING,Premises Related,BJA,08/12/2015,11-10001,"1,686.36",Polystar Plastics Ltd,,,,,,,
Nottinghamshire County Council,1111/1001,Surplus or Deficit from Trading Undertak,TRADING,Premises Related,BJA,08/12/2015,11-10001,"1,483.24",Kimberley Clark European Services Ltd,,,,,,,
Nottinghamshire County Council,1111/1001,Surplus or Deficit from Trading Undertak,TRADING,Premises Related,BJA,17/12/2015,11-10001,"1,742.56",Kimberley Clark European Services Ltd,,,,,,,
Nottinghamshire County Council,1111/1001,Surplus or Deficit from Trading Undertak,TRADING,Premises Related,BJA,17/12/2015,11-10001,"1,115.84",Kimberley Clark European Services Ltd,,,,,,,
Nottinghamshire County Council,1111/1001,Surplus or Deficit from Trading Undertak,TRADING,Premises Related,BJA,08/12/2015,11-10001,721.94,Ecover (Uk) Ltd,,,,,,,
Nottinghamshire County Council,1111/1001,Surplus or Deficit from Trading Undertak,TRADING,Premises Related,BJA,01/12/2015,11-10001,"1,773.92",Willowbrook Education,,,,,,,
Nottinghamshire County Council,1111/1001,Surplus or Deficit from Trading Undertak,TRADING,Premises Related,BJA,01/12/2015,11-10001,"1,426.88",Willowbrook Education,,,,,,,
Nottinghamshire County Council,1111/1001,Surplus or Deficit from Trading Undertak,TRADING,Premises Related,BJA,15/12/2015,11-10001,"1,481.56",Cromwell Polythene Ltd,,,,,,,
Nottinghamshire County Council,1111/1001,Surplus or Deficit from Trading Undertak,TRADING,Premises Related,BJA,17/12/2015,11-10001,621.20,Evans Vanodine International Ltd,,,,,,,
Nottinghamshire County Council,1111/1001,Surplus or Deficit from Trading Undertak,TRADING,Premises Related,BJA,21/12/2015,11-10001,612.84,Evans Vanodine International Ltd,,,,,,,
Nottinghamshire County Council,1111/1001,Surplus or Deficit from Trading Undertak,TRADING,Premises Related,BJA,02/12/2015,11-10001,"1,202.34",Johnson Diversey,,,,,,,
Nottinghamshire County Council,1111/1001,Surplus or Deficit from Trading Undertak,TRADING,Premises Related,BJA,10/12/2015,11-10001,"1,055.10",Johnson Diversey,,,,,,,
Nottinghamshire County Council,1111/1001,Surplus or Deficit from Trading Undertak,TRADING,Premises Related,BJA,01/12/2015,11-10001,"2,282.19",Premiere Products (James Briggs Ltd),,,,,,,
Nottinghamshire County Council,1111/1001,Surplus or Deficit from Trading Undertak,TRADING,Premises Related,BJA,01/12/2015,11-10001,"1,261.90",Premiere Products (James Briggs Ltd),,,,,,,
Nottinghamshire County Council,1111/1001,Surplus or Deficit from Trading Undertak,TRADING,Premises Related,BJA,11/12/2015,11-10001,"2,527.00",Premiere Products (James Briggs Ltd),,,,,,,
Nottinghamshire County Council,1111/1001,Surplus or Deficit from Trading Undertak,TRADING,Premises Related,BJA,10/12/2015,11-10001,602.33,Numatic International Ltd,,,,,,,
Nottinghamshire County Council,1111/1001,Surplus or Deficit from Trading Undertak,TRADING,Premises Related,BJA,01/12/2015,11-10001,839.62,3M Uk Plc,,,,,,,
Nottinghamshire County Council,1111/1001,Surplus or Deficit from Trading Undertak,TRADING,Premises Related,BJA,04/12/2015,11-10001,790.00,Candor Services,,,,,,,
Nottinghamshire County Council,1111/1001,Surplus or Deficit from Trading Undertak,TRADING,Premises Related,BJA,04/12/2015,11-10001,906.25,Candor Services,,,,,,,
Nottinghamshire County Council,1111/1001,Surplus or Deficit from Trading Undertak,TRADING,Premises Related,BJA,21/12/2015,11-10001,"1,288.75",Candor Services,,,,,,,
Nottinghamshire County Council,1111/1001,Surplus or Deficit from Trading Undertak,TRADING,Supplies & Services,DAA,10/12/2015,11-10001,541.54,Coptrin Limited,,,,,,,
Nottinghamshire County Council,1111/1001,Surplus or Deficit from Trading Undertak,TRADING,Supplies & Services,DAA,08/12/2015,11-10001,536.30,Catering Supplies (Wakefield) Ltd,,,,,,,
Nottinghamshire County Council,1111/1001,Surplus or Deficit from Trading Undertak,TRADING,Supplies & Services,DAA,15/12/2015,11-10001,533.84,Catering Supplies (Wakefield) Ltd,,,,,,,
Nottinghamshire County Council,1111/1001,Surplus or Deficit from Trading Undertak,TRADING,Supplies & Services,DAA,04/12/2015,11-10001,"3,672.06",Sca Hygiene,,,,,,,
Nottinghamshire County Council,1111/1001,Surplus or Deficit from Trading Undertak,TRADING,Supplies & Services,DAA,15/12/2015,11-10001,"3,032.26",Sca Hygiene,,,,,,,
Nottinghamshire County Council,1111/1001,Surplus or Deficit from Trading Undertak,TRADING,Supplies & Services,DBA,08/12/2015,11-10001,549.48,North West Tea Service Ltd,,,,,,,
Nottinghamshire County Council,1111/1001,Surplus or Deficit from Trading Undertak,TRADING,Supplies & Services,DAA,01/12/2015,11-10001,738.89,Dualit Ltd,,,,,,,
Nottinghamshire County Council,1111/1001,Surplus or Deficit from Trading Undertak,TRADING,Supplies & Services,DAA,17/12/2015,11-10001,595.00,Stearn Electric Company Ltd,,,,,,,
Nottinghamshire County Council,1111/1001,Surplus or Deficit from Trading Undertak,TRADING,Supplies & Services,DCA,01/12/2015,11-10001,519.67,Shermond,,,,,,,
Nottinghamshire County Council,1111/1001,Surplus or Deficit from Trading Undertak,TRADING,Supplies & Services,DCA,10/12/2015,11-10001,593.65,Shermond,,,,,,,
Nottinghamshire County Council,1111/1001,Surplus or Deficit from Trading Undertak,TRADING,Supplies & Services,DKA,10/12/2015,11-10001,513.20,Bunzl Cleaning & Hygiene Supplies,,,,,,,
Nottinghamshire County Council,1111/1001,Surplus or Deficit from Trading Undertak,TRADING,Supplies & Services,DKA,10/12/2015,11-10001,544.80,Bunzl Cleaning & Hygiene Supplies,,,,,,,
Nottinghamshire County Council,1111/1001,Surplus or Deficit from Trading Undertak,TRADING,Supplies & Services,DKA,10/12/2015,11-10001,806.40,Bunzl Cleaning & Hygiene Supplies,,,,,,,
Nottinghamshire County Council,1111/1001,Surplus or Deficit from Trading Undertak,TRADING,Supplies & Services,DAA,11/12/2015,11-10001,902.00,R Scott & Sons Ltd,,,,,,,
Nottinghamshire County Council,1111/1001,Surplus or Deficit from Trading Undertak,TRADING,Supplies & Services,DAA,21/12/2015,11-10001,"8,580.00",R Scott & Sons Ltd,,,,,,,
Nottinghamshire County Council,1111/1001,Surplus or Deficit from Trading Undertak,TRADING,Supplies & Services,DAA,22/12/2015,11-10001,"1,216.00",Principal Furniture,,,,,,,
Nottinghamshire County Council,1111/1001,Surplus or Deficit from Trading Undertak,TRADING,Supplies & Services,DAA,04/12/2015,11-10001,"1,080.00",Master Matting,,,,,,,
Nottinghamshire County Council,1111/1001,Surplus or Deficit from Trading Undertak,TRADING,Supplies & Services,DAA,01/12/2015,11-10001,611.70,Hille Education Products Ltd,,,,,,,
Nottinghamshire County Council,1111/1001,Surplus or Deficit from Trading Undertak,TRADING,Supplies & Services,DAA,22/12/2015,11-10001,607.36,Hille Education Products Ltd,,,,,,,
Nottinghamshire County Council,1111/1001,Surplus or Deficit from Trading Undertak,TRADING,Supplies & Services,DAA,04/12/2015,11-10001,573.84,Gratnells Ltd,,,,,,,
Nottinghamshire County Council,1111/1001,Surplus or Deficit from Trading Undertak,TRADING,Supplies & Services,DAA,21/12/2015,11-10001,"2,001.30",Wybone Ltd,,,,,,,
Nottinghamshire County Council,1111/1001,Surplus or Deficit from Trading Undertak,TRADING,Supplies & Services,DAA,17/12/2015,11-10001,636.84,Lockhart Catering Equipment Ltd,,,,,,,
Nottinghamshire County Council,1111/1001,Surplus or Deficit from Trading Undertak,TRADING,Supplies & Services,DAA,08/12/2015,11-10001,603.60,Kent County Supplies,,,,,,,
Nottinghamshire County Council,1111/1001,Surplus or Deficit from Trading Undertak,TRADING,Supplies & Services,DAA,15/12/2015,11-10001,"1,762.94",Kent County Supplies,,,,,,,
Nottinghamshire County Council,1111/1001,Surplus or Deficit from Trading Undertak,TRADING,Supplies & Services,DAA,01/12/2015,11-10001,"14,560.00",Grosvenor House Papers Ltd,,,,,,,
Nottinghamshire County Council,1111/1001,Surplus or Deficit from Trading Undertak,TRADING,Supplies & Services,DAA,10/12/2015,11-10001,532.06,Tiger Stationery Ltd,,,,,,,
Nottinghamshire County Council,1111/1001,Surplus or Deficit from Trading Undertak,TRADING,Supplies & Services,DAA,01/12/2015,11-10001,598.52,Newell Rubbermaid,,,,,,,
Nottinghamshire County Council,1111/1001,Surplus or Deficit from Trading Undertak,TRADING,Supplies & Services,DAA,10/12/2015,11-10001,"2,024.24",Newell Rubbermaid,,,,,,,
Nottinghamshire County Council,1111/1001,Surplus or Deficit from Trading Undertak,TRADING,Supplies & Services,DAA,21/12/2015,11-10001,548.95,Newclay Products Ltd,,,,,,,
Nottinghamshire County Council,1111/1001,Surplus or Deficit from Trading Undertak,TRADING,Supplies & Services,DAA,01/12/2015,11-10001,719.78,R.H.Ritchings Ltd,,,,,,,
Nottinghamshire County Council,1111/1001,Surplus or Deficit from Trading Undertak,TRADING,Supplies & Services,DAA,21/12/2015,11-10001,"1,013.04",R.H.Ritchings Ltd,,,,,,,
Nottinghamshire County Council,1111/1001,Surplus or Deficit from Trading Undertak,TRADING,Supplies & Services,DAA,01/12/2015,11-10001,559.32,Staedtler (Uk) Ltd,,,,,,,
Nottinghamshire County Council,1111/1001,Surplus or Deficit from Trading Undertak,TRADING,Supplies & Services,DAA,10/12/2015,11-10001,"1,916.41",Staedtler (Uk) Ltd,,,,,,,
Nottinghamshire County Council,1111/1001,Surplus or Deficit from Trading Undertak,TRADING,Supplies & Services,DAA,17/12/2015,11-10001,513.10,Staedtler (Uk) Ltd,,,,,,,
Nottinghamshire County Council,1111/1001,Surplus or Deficit from Trading Undertak,TRADING,Supplies & Services,DAA,21/12/2015,11-10001,659.74,Bic U.K. Ltd,,,,,,,
Nottinghamshire County Council,1111/1001,Surplus or Deficit from Trading Undertak,TRADING,Supplies & Services,DAA,17/12/2015,11-10001,702.24,Allen Glenold Ltd,,,,,,,
Nottinghamshire County Council,1111/1001,Surplus or Deficit from Trading Undertak,TRADING,Supplies & Services,DAA,17/12/2015,11-10001,555.89,Allen Glenold Ltd,,,,,,,
Nottinghamshire County Council,1111/1001,Surplus or Deficit from Trading Undertak,TRADING,Supplies & Services,DAA,04/12/2015,11-10001,601.23,Slater Harrison & Co Ltd,,,,,,,
Nottinghamshire County Council,1111/1001,Surplus or Deficit from Trading Undertak,TRADING,Supplies & Services,DAA,08/12/2015,11-10001,"1,130.89",Slater Harrison & Co Ltd,,,,,,,
Nottinghamshire County Council,1111/1001,Surplus or Deficit from Trading Undertak,TRADING,Supplies & Services,DAA,10/12/2015,11-10001,802.19,Slater Harrison & Co Ltd,,,,,,,
Nottinghamshire County Council,1111/1001,Surplus or Deficit from Trading Undertak,TRADING,Supplies & Services,DAA,21/12/2015,11-10001,767.03,Slater Harrison & Co Ltd,,,,,,,
Nottinghamshire County Council,1111/1001,Surplus or Deficit from Trading Undertak,TRADING,Supplies & Services,DAA,01/12/2015,11-10001,962.95,Creativity International Ltd,,,,,,,
Nottinghamshire County Council,1111/1001,Surplus or Deficit from Trading Undertak,TRADING,Supplies & Services,DAA,10/12/2015,11-10001,"1,065.30",Creativity International Ltd,,,,,,,
Nottinghamshire County Council,1111/1001,Surplus or Deficit from Trading Undertak,TRADING,Supplies & Services,DAA,10/12/2015,11-10001,512.04,Bright Ideas Marketing Ltd,,,,,,,
Nottinghamshire County Council,1111/1001,Surplus or Deficit from Trading Undertak,TRADING,Supplies & Services,DAA,15/12/2015,11-10001,658.24,Bright Ideas Marketing Ltd,,,,,,,
Nottinghamshire County Council,1111/1001,Surplus or Deficit from Trading Undertak,TRADING,Supplies & Services,DAA,01/12/2015,11-10001,568.61,Eastpoint,,,,,,,
Nottinghamshire County Council,1111/1001,Surplus or Deficit from Trading Undertak,TRADING,Supplies & Services,DAA,21/12/2015,11-10001,"1,193.15",Eastpoint,,,,,,,
Nottinghamshire County Council,1111/1001,Surplus or Deficit from Trading Undertak,TRADING,Supplies & Services,DAA,21/12/2015,11-10001,527.87,Eastpoint,,,,,,,
Nottinghamshire County Council,1111/1001,Surplus or Deficit from Trading Undertak,TRADING,Supplies & Services,DAA,21/12/2015,11-10001,"1,433.48",Eastpoint,,,,,,,
Nottinghamshire County Council,1111/1001,Surplus or Deficit from Trading Undertak,TRADING,Supplies & Services,DAA,21/12/2015,11-10001,"1,166.25",Eastpoint,,,,,,,
Nottinghamshire County Council,1111/1001,Surplus or Deficit from Trading Undertak,TRADING,Supplies & Services,DAA,21/12/2015,11-10001,578.80,Eastpoint,,,,,,,
Nottinghamshire County Council,1111/1001,Surplus or Deficit from Trading Undertak,TRADING,Supplies & Services,DAA,04/12/2015,11-10001,"1,695.52",Brian Clegg (Educational Products) Ltd,,,,,,,
Nottinghamshire County Council,1111/1001,Surplus or Deficit from Trading Undertak,TRADING,Supplies & Services,DAA,08/12/2015,11-10001,921.84,Brian Clegg (Educational Products) Ltd,,,,,,,
Nottinghamshire County Council,1111/1001,Surplus or Deficit from Trading Undertak,TRADING,Supplies & Services,DAA,04/12/2015,11-10001,834.76,Monarch Computer Furniture,,,,,,,
Nottinghamshire County Council,1111/1001,Surplus or Deficit from Trading Undertak,TRADING,Employee Related,AAA,03/12/2015,11-10001,727.18,A&T Active Recruitment,,,,,,,
Nottinghamshire County Council,1111/1001,Surplus or Deficit from Trading Undertak,TRADING,Employee Related,AAA,11/12/2015,11-10001,702.12,A&T Active Recruitment,,,,,,,
Nottinghamshire County Council,1111/1001,Surplus or Deficit from Trading Undertak,TRADING,Employee Related,AAA,11/12/2015,11-10001,837.55,A&T Active Recruitment,,,,,,,
Nottinghamshire County Council,1111/1001,Children and Young People,CYP,Employee Related,ABA,15/12/2015,11-15713,"1,854.00",[Redacted],,,,,,,
Nottinghamshire County Council,1111/1001,Children and Young People,CYP,Premises Related,BAA,30/12/2015,11-20150,741.56,Moving Services Group (Pickfords),,,,,,,
Nottinghamshire County Council,1111/1001,Children and Young People,CYP,Premises Related,BCA,08/12/2015,11-20382,675.68,Centre For Sport & Learning,,,,,,,
Nottinghamshire County Council,1111/1001,Children and Young People,CYP,Premises Related,BDA,02/12/2015,11-10002,"5,862.49",Making It! Enterprises Ltd,,,,,,,
Nottinghamshire County Council,1111/1001,Children and Young People,CYP,Premises Related,BDA,02/12/2015,11-10005,"1,099.99",Nottingham City Council,,,,,,,
Nottinghamshire County Council,1111/1001,Children and Young People,CYP,Premises Related,BDA,02/12/2015,11-10015,"3,500.00",Diocese of Hallam Trustee,,,,,,,
Nottinghamshire County Council,1111/1001,Children and Young People,CYP,Premises Related,BDA,02/12/2015,11-10018,"4,768.26",Making It! Enterprises Ltd,,,,,,,
Nottinghamshire County Council,1111/1001,Children and Young People,CYP,Premises Related,BDA,02/12/2015,11-10019,528.00,Derbyshire Dales District Council,,,,,,,
Nottinghamshire County Council,1111/1001,Children and Young People,CYP,Premises Related,BDA,02/12/2015,11-10023,606.67,J Sedoo t/a Sedoo Investments,,,,,,,
Nottinghamshire County Council,1111/1001,Children and Young People,CYP,Premises Related,BDA,02/12/2015,11-10024,606.67,J Sedoo t/a Sedoo Investments,,,,,,,
Nottinghamshire County Council,1111/1001,Children and Young People,CYP,Premises Related,BDA,02/12/2015,11-10025,606.67,J Sedoo t/a Sedoo Investments,,,,,,,
Nottinghamshire County Council,1111/1001,Children and Young People,CYP,Premises Related,BDA,02/12/2015,11-10028,"4,600.00",Bauland Properties Limited,,,,,,,
Nottinghamshire County Council,1111/1001,Children and Young People,CYP,Premises Related,BDA,02/12/2015,11-10029,805.00,Bauland Properties Limited,,,,,,,
Nottinghamshire County Council,1111/1001,Children and Young People,CYP,Premises Related,BDA,02/12/2015,11-10031,"1,719.60",Sheffield Hallam Univ Enterprises L,,,,,,,
Nottinghamshire County Council,1111/1001,Children and Young People,CYP,Premises Related,BDA,02/12/2015,11-10032,675.00,W J & S S Waterworth,,,,,,,
Nottinghamshire County Council,1111/1001,Children and Young People,CYP,Premises Related,BDA,02/12/2015,11-10033,"2,863.14",Making It! Enterprises Ltd,,,,,,,
Nottinghamshire County Council,1111/1001,Children and Young People,CYP,Premises Related,BDA,03/12/2015,11-20267,"2,509.39",Everyone Active (HO),,,,,,,
Nottinghamshire County Council,1111/1001,Children and Young People,CYP,Premises Related,BDA,07/12/2015,11-20353,580.50,George Spencer Academy,,,,,,,
Nottinghamshire County Council,1111/1001,Children and Young People,CYP,Premises Related,BDA,08/12/2015,11-20396,620.00,Nurture Enterprises Ltd,,,,,,,
Nottinghamshire County Council,1111/1001,Children and Young People,CYP,Premises Related,BDA,15/12/2015,11-20776,"2,149.40",Everyone Active (HO),,,,,,,
Nottinghamshire County Council,1111/1001,Children and Young People,CYP,Premises Related,BDA,16/12/2015,11-20216,440.00,Nurture Enterprises Ltd,,,,,,,
Nottinghamshire County Council,1111/1001,Children and Young People,CYP,Premises Related,BDA,16/12/2015,11-20804,507.71,Bestwood Lodge Hotel,,,,,,,
Nottinghamshire County Council,1111/1001,Children and Young People,CYP,Premises Related,BDA,16/12/2015,11-20864,"1,042.34",Bestwood Lodge Hotel,,,,,,,
Nottinghamshire County Council,1111/1001,Children and Young People,CYP,Premises Related,BDA,18/12/2015,11-20872,"1,047.71",The Village Hotel,,,,,,,
Nottinghamshire County Council,1111/1001,Children and Young People,CYP,Premises Related,BDA,21/12/2015,11-10034,822.32,Nottingham Community Housing,,,,,,,
Nottinghamshire County Council,1111/1001,Children and Young People,CYP,Premises Related,BDA,21/12/2015,11-21010,"1,100.00",Foxwood Academy,,,,,,,
Nottinghamshire County Council,1111/1001,Children and Young People,CYP,Premises Related,BDA,22/12/2015,11-21051,579.00,Bestwood Lodge Hotel,,,,,,,
Nottinghamshire County Council,1111/1001,Children and Young People,CYP,Premises Related,BDA,23/12/2015,11-10035,"2,009.34",Refuge,,,,,,,
Nottinghamshire County Council,1111/1001,Children and Young People,CYP,Premises Related,BDA,23/12/2015,11-20770,"2,058.83",The Village Hotel,,,,,,,
Nottinghamshire County Council,1111/1001,Children and Young People,CYP,Premises Related,BDA,24/12/2015,11-20974,"5,612.00",Early Excellence,,,,,,,
Nottinghamshire County Council,1111/1001,Children and Young People,CYP,Premises Related,BDA,24/12/2015,11-21185,983.34,Bestwood Lodge Hotel,,,,,,,
Nottinghamshire County Council,1111/1001,Children and Young People,CYP,Premises Related,BDA,31/12/2015,11-20290,"6,414.75",Principal Hayley,,,,,,,
Nottinghamshire County Council,1111/1001,Children and Young People,CYP,Premises Related,BDA,31/12/2015,11-20295,440.00,Nurture Enterprises Ltd,,,,,,,
Nottinghamshire County Council,1111/1001,Children and Young People,CYP,Premises Related,BJA,04/12/2015,11-20308,619.06,Bassetlaw District Council,,,,,,,
Nottinghamshire County Council,1111/1001,Children and Young People,CYP,Premises Related,BJA,30/12/2015,11-20633,920.65,Hi Spec Facilities Services Plc,,,,,,,
Nottinghamshire County Council,1111/1001,Children and Young People,CYP,Transport Related,CCA,01/12/2015,11-13697,"1,361.70",Arrow Specialised Transport Ltd,,,,,,,
Nottinghamshire County Council,1111/1001,Children and Young People,CYP,Transport Related,CCA,01/12/2015,11-13699,575.00,Diamond Cars,,,,,,,
Nottinghamshire County Council,1111/1001,Children and Young People,CYP,Transport Related,CCA,02/12/2015,11-13789,"3,160.00",Taxicover Uk Ltd,,,,,,,
Nottinghamshire County Council,1111/1001,Children and Young People,CYP,Transport Related,CCA,02/12/2015,11-13790,"2,880.00",Taxicover Uk Ltd,,,,,,,
Nottinghamshire County Council,1111/1001,Children and Young People,CYP,Transport Related,CCA,02/12/2015,11-13792,"3,948.00",Taxicover Uk Ltd,,,,,,,
Nottinghamshire County Council,1111/1001,Children and Young People,CYP,Transport Related,CCA,02/12/2015,11-13793,"4,137.00",Taxicover Uk Ltd,,,,,,,
Nottinghamshire County Council,1111/1001,Children and Young People,CYP,Transport Related,CCA,02/12/2015,11-13794,"3,397.20",Taxicover Uk Ltd,,,,,,,
Nottinghamshire County Council,1111/1001,Children and Young People,CYP,Transport Related,CCA,02/12/2015,11-13795,"3,584.40",Taxicover Uk Ltd,,,,,,,
Nottinghamshire County Council,1111/1001,Children and Young People,CYP,Transport Related,CCA,02/12/2015,11-13796,"3,771.00",Taxicover Uk Ltd,,,,,,,
Nottinghamshire County Council,1111/1001,Children and Young People,CYP,Transport Related,CCA,02/12/2015,11-13797,"3,216.20",Taxicover Uk Ltd,,,,,,,
Nottinghamshire County Council,1111/1001,Children and Young People,CYP,Transport Related,CCA,02/12/2015,11-13799,"2,755.00",Taxicover Uk Ltd,,,,,,,
Nottinghamshire County Council,1111/1001,Children and Young People,CYP,Transport Related,CCA,02/12/2015,11-13800,"2,945.00",Taxicover Uk Ltd,,,,,,,
Nottinghamshire County Council,1111/1001,Children and Young People,CYP,Transport Related,CCA,02/12/2015,11-13801,"2,641.00",Taxicover Uk Ltd,,,,,,,
Nottinghamshire County Council,1111/1001,Children and Young People,CYP,Transport Related,CCA,02/12/2015,11-13802,"2,812.00",Taxicover Uk Ltd,,,,,,,
Nottinghamshire County Council,1111/1001,Children and Young People,CYP,Transport Related,CCA,02/12/2015,11-13803,"3,192.00",Taxicover Uk Ltd,,,,,,,
Nottinghamshire County Council,1111/1001,Children and Young People,CYP,Transport Related,CCA,02/12/2015,11-13804,"2,964.00",Taxicover Uk Ltd,,,,,,,
Nottinghamshire County Council,1111/1001,Children and Young People,CYP,Transport Related,CCA,02/12/2015,11-13805,"1,910.00",Southside Cars,,,,,,,
Nottinghamshire County Council,1111/1001,Children and Young People,CYP,Transport Related,CCA,02/12/2015,11-13806,"1,918.00",Southside Cars,,,,,,,
Nottinghamshire County Council,1111/1001,Children and Young People,CYP,Transport Related,CCA,02/12/2015,11-13807,"1,312.00",Southside Cars,,,,,,,
Nottinghamshire County Council,1111/1001,Children and Young People,CYP,Transport Related,CCA,02/12/2015,11-13808,"2,208.00",Southside Cars,,,,,,,
Nottinghamshire County Council,1111/1001,Children and Young People,CYP,Transport Related,CCA,02/12/2015,11-13809,"2,116.00",Southside Cars,,,,,,,
Nottinghamshire County Council,1111/1001,Children and Young People,CYP,Transport Related,CCA,02/12/2015,11-13810,"1,269.45",Southside Cars,,,,,,,
Nottinghamshire County Council,1111/1001,Children and Young People,CYP,Transport Related,CCA,02/12/2015,11-13812,"1,000.00",Southside Cars,,,,,,,
Nottinghamshire County Council,1111/1001,Children and Young People,CYP,Transport Related,CCA,02/12/2015,11-13814,840.00,I Can Charity,,,,,,,
Nottinghamshire County Council,1111/1001,Children and Young People,CYP,Transport Related,CCA,03/12/2015,11-13828,"1,351.50",Tiger European Uk Ltd,,,,,,,
Nottinghamshire County Council,1111/1001,Children and Young People,CYP,Transport Related,CCA,03/12/2015,11-13887,"1,933.64",All Wayz Travel,,,,,,,
Nottinghamshire County Council,1111/1001,Children and Young People,CYP,Transport Related,CCA,03/12/2015,11-13895,"1,000.00",Acorn Contracts,,,,,,,
Nottinghamshire County Council,1111/1001,Children and Young People,CYP,Transport Related,CCA,03/12/2015,11-13896,"2,484.72",Arrow Specialised Transport Ltd,,,,,,,
Nottinghamshire County Council,1111/1001,Children and Young People,CYP,Transport Related,CCA,03/12/2015,11-13897,"2,205.00",Arrow Specialised Transport Ltd,,,,,,,
Nottinghamshire County Council,1111/1001,Children and Young People,CYP,Transport Related,CCA,03/12/2015,11-13898,"2,058.00",Arrow Specialised Transport Ltd,,,,,,,
Nottinghamshire County Council,1111/1001,Children and Young People,CYP,Transport Related,CCA,03/12/2015,11-13900,"2,730.00",Arrow Specialised Transport Ltd,,,,,,,
Nottinghamshire County Council,1111/1001,Children and Young People,CYP,Transport Related,CCA,03/12/2015,11-13901,"2,142.00",Arrow Specialised Transport Ltd,,,,,,,
Nottinghamshire County Council,1111/1001,Children and Young People,CYP,Transport Related,CCA,03/12/2015,11-13902,"3,045.00",Arrow Specialised Transport Ltd,,,,,,,
Nottinghamshire County Council,1111/1001,Children and Young People,CYP,Transport Related,CCA,03/12/2015,11-13903,"3,045.00",Arrow Specialised Transport Ltd,,,,,,,
Nottinghamshire County Council,1111/1001,Children and Young People,CYP,Transport Related,CCA,03/12/2015,11-13904,"2,033.00",Arrow Specialised Transport Ltd,,,,,,,
Nottinghamshire County Council,1111/1001,Children and Young People,CYP,Transport Related,CCA,03/12/2015,11-13905,"2,484.72",Arrow Specialised Transport Ltd,,,,,,,
Nottinghamshire County Council,1111/1001,Children and Young People,CYP,Transport Related,CCA,03/12/2015,11-13906,"1,813.14",Arrow Specialised Transport Ltd,,,,,,,
Nottinghamshire County Council,1111/1001,Children and Young People,CYP,Transport Related,CCA,03/12/2015,11-13907,"1,995.00",Arrow Specialised Transport Ltd,,,,,,,
Nottinghamshire County Council,1111/1001,Children and Young People,CYP,Transport Related,CCA,03/12/2015,11-13908,"2,289.00",Arrow Specialised Transport Ltd,,,,,,,
Nottinghamshire County Council,1111/1001,Children and Young People,CYP,Transport Related,CCA,03/12/2015,11-13909,"2,835.00",Arrow Specialised Transport Ltd,,,,,,,
Nottinghamshire County Council,1111/1001,Children and Young People,CYP,Transport Related,CCA,03/12/2015,11-13910,"1,995.00",Arrow Specialised Transport Ltd,,,,,,,
Nottinghamshire County Council,1111/1001,Children and Young People,CYP,Transport Related,CCA,03/12/2015,11-13911,"1,659.00",Arrow Specialised Transport Ltd,,,,,,,
Nottinghamshire County Council,1111/1001,Children and Young People,CYP,Transport Related,CCA,03/12/2015,11-13912,"3,532.83",Arrow Specialised Transport Ltd,,,,,,,
Nottinghamshire County Council,1111/1001,Children and Young People,CYP,Transport Related,CCA,03/12/2015,11-13913,"3,063.06",Arrow Specialised Transport Ltd,,,,,,,
Nottinghamshire County Council,1111/1001,Children and Young People,CYP,Transport Related,CCA,03/12/2015,11-13914,"1,074.57",Arrow Specialised Transport Ltd,,,,,,,
Nottinghamshire County Council,1111/1001,Children and Young People,CYP,Transport Related,CCA,03/12/2015,11-13915,"1,866.48",Arrow Specialised Transport Ltd,,,,,,,
Nottinghamshire County Council,1111/1001,Children and Young People,CYP,Transport Related,CCA,03/12/2015,11-13916,"2,491.86",Arrow Specialised Transport Ltd,,,,,,,
Nottinghamshire County Council,1111/1001,Children and Young People,CYP,Transport Related,CCA,03/12/2015,11-13917,"2,171.19",Arrow Specialised Transport Ltd,,,,,,,
Nottinghamshire County Council,1111/1001,Children and Young People,CYP,Transport Related,CCA,03/12/2015,11-13918,"2,003.40",Arrow Specialised Transport Ltd,,,,,,,
Nottinghamshire County Council,1111/1001,Children and Young People,CYP,Transport Related,CCA,03/12/2015,11-13919,"2,429.70",Arrow Specialised Transport Ltd,,,,,,,
Nottinghamshire County Council,1111/1001,Children and Young People,CYP,Transport Related,CCA,03/12/2015,11-13920,"2,983.89",Arrow Specialised Transport Ltd,,,,,,,
Nottinghamshire County Council,1111/1001,Children and Young People,CYP,Transport Related,CCA,03/12/2015,11-13921,"3,474.45",Arrow Specialised Transport Ltd,,,,,,,
Nottinghamshire County Council,1111/1001,Children and Young People,CYP,Transport Related,CCA,03/12/2015,11-13922,"2,146.20",Arrow Specialised Transport Ltd,,,,,,,
Nottinghamshire County Council,1111/1001,Children and Young People,CYP,Transport Related,CCA,03/12/2015,11-13923,"2,184.80",Arrow Specialised Transport Ltd,,,,,,,
Nottinghamshire County Council,1111/1001,Children and Young People,CYP,Transport Related,CCA,03/12/2015,11-13924,"2,030.28",Arrow Specialised Transport Ltd,,,,,,,
Nottinghamshire County Council,1111/1001,Children and Young People,CYP,Transport Related,CCA,03/12/2015,11-13925,"1,953.00",Arrow Specialised Transport Ltd,,,,,,,
Nottinghamshire County Council,1111/1001,Children and Young People,CYP,Transport Related,CCA,03/12/2015,11-13926,"2,194.50",Arrow Specialised Transport Ltd,,,,,,,
Nottinghamshire County Council,1111/1001,Children and Young People,CYP,Transport Related,CCA,03/12/2015,11-13927,"2,163.00",Arrow Specialised Transport Ltd,,,,,,,
Nottinghamshire County Council,1111/1001,Children and Young People,CYP,Transport Related,CCA,03/12/2015,11-13928,"2,205.00",Arrow Specialised Transport Ltd,,,,,,,
Nottinghamshire County Council,1111/1001,Children and Young People,CYP,Transport Related,CCA,03/12/2015,11-13929,"2,184.00",Arrow Specialised Transport Ltd,,,,,,,
Nottinghamshire County Council,1111/1001,Children and Young People,CYP,Transport Related,CCA,03/12/2015,11-13930,"2,642.85",Arrow Specialised Transport Ltd,,,,,,,
Nottinghamshire County Council,1111/1001,Children and Young People,CYP,Transport Related,CCA,03/12/2015,11-13931,"2,436.00",Arrow Specialised Transport Ltd,,,,,,,
Nottinghamshire County Council,1111/1001,Children and Young People,CYP,Transport Related,CCA,03/12/2015,11-13932,"2,016.00",Arrow Specialised Transport Ltd,,,,,,,
Nottinghamshire County Council,1111/1001,Children and Young People,CYP,Transport Related,CCA,03/12/2015,11-13933,"2,520.00",Arrow Specialised Transport Ltd,,,,,,,
Nottinghamshire County Council,1111/1001,Children and Young People,CYP,Transport Related,CCA,03/12/2015,11-13934,"1,276.00",Arrow Specialised Transport Ltd,,,,,,,
Nottinghamshire County Council,1111/1001,Children and Young People,CYP,Transport Related,CCA,03/12/2015,11-13935,"2,520.00",Arrow Specialised Transport Ltd,,,,,,,
Nottinghamshire County Council,1111/1001,Children and Young People,CYP,Transport Related,CCA,03/12/2015,11-13936,"2,688.00",Arrow Specialised Transport Ltd,,,,,,,
Nottinghamshire County Council,1111/1001,Children and Young People,CYP,Transport Related,CCA,03/12/2015,11-13938,"1,284.15",Arrow Specialised Transport Ltd,,,,,,,
Nottinghamshire County Council,1111/1001,Children and Young People,CYP,Transport Related,CCA,03/12/2015,11-13940,"2,060.00",Arrow Specialised Transport Ltd,,,,,,,
Nottinghamshire County Council,1111/1001,Children and Young People,CYP,Transport Related,CCA,03/12/2015,11-13941,"2,931.60",Arrow Specialised Transport Ltd,,,,,,,
Nottinghamshire County Council,1111/1001,Children and Young People,CYP,Transport Related,CCA,03/12/2015,11-13942,"1,820.00",Arrow Specialised Transport Ltd,,,,,,,
Nottinghamshire County Council,1111/1001,Children and Young People,CYP,Transport Related,CCA,03/12/2015,11-13943,"2,184.00",Arrow Specialised Transport Ltd,,,,,,,
Nottinghamshire County Council,1111/1001,Children and Young People,CYP,Transport Related,CCA,03/12/2015,11-13944,"3,528.00",Arrow Specialised Transport Ltd,,,,,,,
Nottinghamshire County Council,1111/1001,Children and Young People,CYP,Transport Related,CCA,03/12/2015,11-13945,"10,278.66",Arrow Specialised Transport Ltd,,,,,,,
Nottinghamshire County Council,1111/1001,Children and Young People,CYP,Transport Related,CCA,03/12/2015,11-13946,"2,709.00",Arrow Specialised Transport Ltd,,,,,,,
Nottinghamshire County Council,1111/1001,Children and Young People,CYP,Transport Related,CCA,03/12/2015,11-13947,"2,700.00",Arrow Specialised Transport Ltd,,,,,,,
Nottinghamshire County Council,1111/1001,Children and Young People,CYP,Transport Related,CCA,03/12/2015,11-13948,"1,440.00",Arrow Specialised Transport Ltd,,,,,,,
Nottinghamshire County Council,1111/1001,Children and Young People,CYP,Transport Related,CCA,03/12/2015,11-13949,"2,545.60",Arrow Specialised Transport Ltd,,,,,,,
Nottinghamshire County Council,1111/1001,Children and Young People,CYP,Transport Related,CCA,03/12/2015,11-13951,"3,010.06",Arrow Specialised Transport Ltd,,,,,,,
Nottinghamshire County Council,1111/1001,Children and Young People,CYP,Transport Related,CCA,03/12/2015,11-13953,"1,297.80",Arrow Specialised Transport Ltd,,,,,,,
Nottinghamshire County Council,1111/1001,Children and Young People,CYP,Transport Related,CCA,03/12/2015,11-13955,"2,500.40",Arrow Specialised Transport Ltd,,,,,,,
Nottinghamshire County Council,1111/1001,Children and Young People,CYP,Transport Related,CCA,03/12/2015,11-13956,"1,881.00",Arrow Specialised Transport Ltd,,,,,,,
Nottinghamshire County Council,1111/1001,Children and Young People,CYP,Transport Related,CCA,03/12/2015,11-13957,"2,261.00",Arrow Specialised Transport Ltd,,,,,,,
Nottinghamshire County Council,1111/1001,Children and Young People,CYP,Transport Related,CCA,03/12/2015,11-13958,"1,298.43",Arrow Specialised Transport Ltd,,,,,,,
Nottinghamshire County Council,1111/1001,Children and Young People,CYP,Transport Related,CCA,03/12/2015,11-13960,"1,588.65",Arrow Specialised Transport Ltd,,,,,,,
Nottinghamshire County Council,1111/1001,Children and Young People,CYP,Transport Related,CCA,03/12/2015,11-13962,"2,200.00",Arrow Specialised Transport Ltd,,,,,,,
Nottinghamshire County Council,1111/1001,Children and Young People,CYP,Transport Related,CCA,03/12/2015,11-13963,"2,250.57",Arrow Specialised Transport Ltd,,,,,,,
Nottinghamshire County Council,1111/1001,Children and Young People,CYP,Transport Related,CCA,03/12/2015,11-13964,"2,751.00",Arrow Specialised Transport Ltd,,,,,,,
Nottinghamshire County Council,1111/1001,Children and Young People,CYP,Transport Related,CCA,03/12/2015,11-13965,"1,566.39",Arrow Specialised Transport Ltd,,,,,,,
Nottinghamshire County Council,1111/1001,Children and Young People,CYP,Transport Related,CCA,03/12/2015,11-13966,"2,677.50",Arrow Specialised Transport Ltd,,,,,,,
Nottinghamshire County Council,1111/1001,Children and Young People,CYP,Transport Related,CCA,03/12/2015,11-13967,"1,906.38",Arrow Specialised Transport Ltd,,,,,,,
Nottinghamshire County Council,1111/1001,Children and Young People,CYP,Transport Related,CCA,03/12/2015,11-13968,"1,471.86",Arrow Specialised Transport Ltd,,,,,,,
Nottinghamshire County Council,1111/1001,Children and Young People,CYP,Transport Related,CCA,03/12/2015,11-13969,"2,688.00",Arrow Specialised Transport Ltd,,,,,,,
Nottinghamshire County Council,1111/1001,Children and Young People,CYP,Transport Related,CCA,03/12/2015,11-13970,"1,787.52",Arrow Specialised Transport Ltd,,,,,,,
Nottinghamshire County Council,1111/1001,Children and Young People,CYP,Transport Related,CCA,03/12/2015,11-13971,799.89,Arrow Specialised Transport Ltd,,,,,,,
Nottinghamshire County Council,1111/1001,Children and Young People,CYP,Transport Related,CCA,03/12/2015,11-13973,"1,875.72",Arrow Specialised Transport Ltd,,,,,,,
Nottinghamshire County Council,1111/1001,Children and Young People,CYP,Transport Related,CCA,03/12/2015,11-13974,"2,071.02",Arrow Specialised Transport Ltd,,,,,,,
Nottinghamshire County Council,1111/1001,Children and Young People,CYP,Transport Related,CCA,03/12/2015,11-13975,"2,088.24",Arrow Specialised Transport Ltd,,,,,,,
Nottinghamshire County Council,1111/1001,Children and Young People,CYP,Transport Related,CCA,03/12/2015,11-13976,"1,516.41",Arrow Specialised Transport Ltd,,,,,,,
Nottinghamshire County Council,1111/1001,Children and Young People,CYP,Transport Related,CCA,03/12/2015,11-13979,"2,156.31",Arrow Specialised Transport Ltd,,,,,,,
Nottinghamshire County Council,1111/1001,Children and Young People,CYP,Transport Related,CCA,03/12/2015,11-13980,"2,243.71",Arrow Specialised Transport Ltd,,,,,,,
Nottinghamshire County Council,1111/1001,Children and Young People,CYP,Transport Related,CCA,03/12/2015,11-13981,"2,812.00",Arrow Specialised Transport Ltd,,,,,,,
Nottinghamshire County Council,1111/1001,Children and Young People,CYP,Transport Related,CCA,03/12/2015,11-13982,"1,881.00",Arrow Specialised Transport Ltd,,,,,,,
Nottinghamshire County Council,1111/1001,Children and Young People,CYP,Transport Related,CCA,03/12/2015,11-13983,"2,090.00",Arrow Specialised Transport Ltd,,,,,,,
Nottinghamshire County Council,1111/1001,Children and Young People,CYP,Transport Related,CCA,03/12/2015,11-13984,2128.00,Arrow Specialised Transport Ltd,,,,,,,
Nottinghamshire County Council,1111/1001,Children and Young People,CYP,Transport Related,CCA,03/12/2015,11-13992,1611.00,Bridges Transport Services,,,,,,,
Nottinghamshire County Council,1111/1001,Children and Young People,CYP,Transport Related,CCA,03/12/2015,11-13995,2100.00,Bridges Transport Services,,,,,,,
Nottinghamshire County Council,1111/1001,Children and Young People,CYP,Transport Related,CCA,03/12/2015,11-13996,2646.00,Bridges Transport Services,,,,,,,
Nottinghamshire County Council,1111/1001,Children and Young People,CYP,Transport Related,CCA,03/12/2015,11-13997,1785.00,Bridges Transport Services,,,,,,,
Nottinghamshire County Council,1111/1001,Children and Young People,CYP,Transport Related,CCA,03/12/2015,11-13998,1412.25,Bridges Transport Services,,,,,,,
Nottinghamshire County Council,1111/1001,Children and Young People,CYP,Transport Related,CCA,03/12/2015,11-13999,1732.50,Bridges Transport Services,,,,,,,
Nottinghamshire County Council,1111/1001,Children and Young People,CYP,Transport Related,CCA,03/12/2015,11-14000,1350.51,Bridges Transport Services,,,,,,,
Nottinghamshire County Council,1111/1001,Children and Young People,CYP,Transport Related,CCA,03/12/2015,11-14001,958.65,Bridges Transport Services,,,,,,,
Nottinghamshire County Council,1111/1001,Children and Young People,CYP,Transport Related,CCA,03/12/2015,11-14002,1285.20,Bridges Transport Services,,,,,,,
Nottinghamshire County Council,1111/1001,Children and Young People,CYP,Transport Related,CCA,03/12/2015,11-14003,3204.39,Bridges Transport Services,,,,,,,
Nottinghamshire County Council,1111/1001,Children and Young People,CYP,Transport Related,CCA,03/12/2015,11-14004,1544.55,Bridges Transport Services,,,,,,,
Nottinghamshire County Council,1111/1001,Children and Young People,CYP,Transport Related,CCA,03/12/2015,11-14005,4369.47,Bridges Transport Services,,,,,,,
Nottinghamshire County Council,1111/1001,Children and Young People,CYP,Transport Related,CCA,03/12/2015,11-14006,2168.88,Bridges Transport Services,,,,,,,
Nottinghamshire County Council,1111/1001,Children and Young People,CYP,Transport Related,CCA,03/12/2015,11-14007,2934.12,Bridges Transport Services,,,,,,,
Nottinghamshire County Council,1111/1001,Children and Young People,CYP,Transport Related,CCA,03/12/2015,11-14008,3007.41,Bridges Transport Services,,,,,,,
Nottinghamshire County Council,1111/1001,Children and Young People,CYP,Transport Related,CCA,03/12/2015,11-14009,1541.40,Bridges Transport Services,,,,,,,
Nottinghamshire County Council,1111/1001,Children and Young People,CYP,Transport Related,CCA,03/12/2015,11-14010,1024.86,Bridges Transport Services,,,,,,,
Nottinghamshire County Council,1111/1001,Children and Young People,CYP,Transport Related,CCA,03/12/2015,11-14012,1275.00,Bridges Transport Services,,,,,,,
Nottinghamshire County Council,1111/1001,Children and Young People,CYP,Transport Related,CCA,03/12/2015,11-14013,2079.00,Bridges Transport Services,,,,,,,
Nottinghamshire County Council,1111/1001,Children and Young People,CYP,Transport Related,CCA,03/12/2015,11-14014,2509.50,Bridges Transport Services,,,,,,,
Nottinghamshire County Council,1111/1001,Children and Young People,CYP,Transport Related,CCA,03/12/2015,11-14015,2879.94,Bridges Transport Services,,,,,,,
Nottinghamshire County Council,1111/1001,Children and Young People,CYP,Transport Related,CCA,03/12/2015,11-14016,2772.00,Bridges Transport Services,,,,,,,
Nottinghamshire County Council,1111/1001,Children and Young People,CYP,Transport Related,CCA,03/12/2015,11-14021,1995.00,Fozcabs Newark Taxis,,,,,,,
Nottinghamshire County Council,1111/1001,Children and Young People,CYP,Transport Related,CCA,03/12/2015,11-14022,1260.00,Fozcabs Newark Taxis,,,,,,,
Nottinghamshire County Council,1111/1001,Children and Young People,CYP,Transport Related,CCA,03/12/2015,11-14023,2163.00,Fozcabs Newark Taxis,,,,,,,
Nottinghamshire County Council,1111/1001,Children and Young People,CYP,Transport Related,CCA,03/12/2015,11-14024,966.00,Fozcabs Newark Taxis,,,,,,,
Nottinghamshire County Council,1111/1001,Children and Young People,CYP,Transport Related,CCA,03/12/2015,11-14026,1425.00,Fozcabs Newark Taxis,,,,,,,
Nottinghamshire County Council,1111/1001,Children and Young People,CYP,Transport Related,CCA,03/12/2015,11-14029,3960.60,Galaxy Cabs,,,,,,,
Nottinghamshire County Council,1111/1001,Children and Young People,CYP,Transport Related,CCA,03/12/2015,11-14030,1285.20,Galaxy Cabs,,,,,,,
Nottinghamshire County Council,1111/1001,Children and Young People,CYP,Transport Related,CCA,03/12/2015,11-14032,1140.00,Galaxy Cabs,,,,,,,
Nottinghamshire County Council,1111/1001,Children and Young People,CYP,Transport Related,CCA,03/12/2015,11-14033,520.00,Galaxy Cabs,,,,,,,
Nottinghamshire County Council,1111/1001,Children and Young People,CYP,Transport Related,CCA,03/12/2015,11-14035,2200.00,Horizon Travel,,,,,,,
Nottinghamshire County Council,1111/1001,Children and Young People,CYP,Transport Related,CCA,03/12/2015,11-14036,2653.98,Horizon Travel,,,,,,,
Nottinghamshire County Council,1111/1001,Children and Young People,CYP,Transport Related,CCA,03/12/2015,11-14038,2590.00,K & S Coaches,,,,,,,
Nottinghamshire County Council,1111/1001,Children and Young People,CYP,Transport Related,CCA,03/12/2015,11-14039,2726.85,Midfield Travel,,,,,,,
Nottinghamshire County Council,1111/1001,Children and Young People,CYP,Transport Related,CCA,03/12/2015,11-14059,1680.00,P & P Taxis,,,,,,,
Nottinghamshire County Council,1111/1001,Children and Young People,CYP,Transport Related,CCA,03/12/2015,11-14064,3714.00,Freeway Coaches Ltd,,,,,,,
Nottinghamshire County Council,1111/1001,Children and Young People,CYP,Transport Related,CCA,03/12/2015,11-14065,3178.00,Freeway Coaches Ltd,,,,,,,
Nottinghamshire County Council,1111/1001,Children and Young People,CYP,Transport Related,CCA,03/12/2015,11-14071,2856.00,K Matthews Travel,,,,,,,
Nottinghamshire County Council,1111/1001,Children and Young People,CYP,Transport Related,CCA,03/12/2015,11-14080,3246.91,L A Travel,,,,,,,
Nottinghamshire County Council,1111/1001,Children and Young People,CYP,Transport Related,CCA,03/12/2015,11-14082,1976.25,Nottingham Coaches,,,,,,,
Nottinghamshire County Council,1111/1001,Children and Young People,CYP,Transport Related,CCA,03/12/2015,11-14083,550.00,Nottingham Coaches,,,,,,,
Nottinghamshire County Council,1111/1001,Children and Young People,CYP,Transport Related,CCA,03/12/2015,11-14088,840.00,A2B Licensed Taxis,,,,,,,
Nottinghamshire County Council,1111/1001,Children and Young People,CYP,Transport Related,CCA,03/12/2015,11-14089,1464.75,A2B Licensed Taxis,,,,,,,
Nottinghamshire County Council,1111/1001,Children and Young People,CYP,Transport Related,CCA,03/12/2015,11-14090,1218.00,Forest Cars,,,,,,,
Nottinghamshire County Council,1111/1001,Children and Young People,CYP,Transport Related,CCA,03/12/2015,11-14091,1960.00,Forest Cars,,,,,,,
Nottinghamshire County Council,1111/1001,Children and Young People,CYP,Transport Related,CCA,03/12/2015,11-14092,663.60,Forest Cars,,,,,,,
Nottinghamshire County Council,1111/1001,Children and Young People,CYP,Transport Related,CCA,03/12/2015,11-14093,630.40,Forest Cars,,,,,,,
Nottinghamshire County Council,1111/1001,Children and Young People,CYP,Transport Related,CCA,03/12/2015,11-14095,832.00,Forest Cars,,,,,,,
Nottinghamshire County Council,1111/1001,Children and Young People,CYP,Transport Related,CCA,03/12/2015,11-14096,1480.00,Forest Cars,,,,,,,
Nottinghamshire County Council,1111/1001,Children and Young People,CYP,Transport Related,CCA,03/12/2015,11-14097,1470.00,Sean's Taxi Services,,,,,,,
Nottinghamshire County Council,1111/1001,Children and Young People,CYP,Transport Related,CCA,04/12/2015,11-14137,840.00,D G Private Hire Ltd,,,,,,,
Nottinghamshire County Council,1111/1001,Children and Young People,CYP,Transport Related,CCA,04/12/2015,11-14139,2643.69,D G Private Hire Ltd,,,,,,,
Nottinghamshire County Council,1111/1001,Children and Young People,CYP,Transport Related,CCA,04/12/2015,11-14144,1988.28,D G Private Hire Ltd,,,,,,,
Nottinghamshire County Council,1111/1001,Children and Young People,CYP,Transport Related,CCA,04/12/2015,11-14145,735.00,D G Private Hire Ltd,,,,,,,
Nottinghamshire County Council,1111/1001,Children and Young People,CYP,Transport Related,CCA,04/12/2015,11-14146,1680.00,D G Private Hire Ltd,,,,,,,
Nottinghamshire County Council,1111/1001,Children and Young People,CYP,Transport Related,CCA,04/12/2015,11-14147,1190.00,D G Private Hire Ltd,,,,,,,
Nottinghamshire County Council,1111/1001,Children and Young People,CYP,Transport Related,CCA,04/12/2015,11-14148,1680.00,D G Private Hire Ltd,,,,,,,
Nottinghamshire County Council,1111/1001,Children and Young People,CYP,Transport Related,CCA,04/12/2015,11-14155,3556.00,Marshalls Of Sutton On Trent Ltd,,,,,,,
Nottinghamshire County Council,1111/1001,Children and Young People,CYP,Transport Related,CCA,04/12/2015,11-14156,2667.00,Marshalls Of Sutton On Trent Ltd,,,,,,,
Nottinghamshire County Council,1111/1001,Children and Young People,CYP,Transport Related,CCA,04/12/2015,11-14163,3583.86,Marshalls Of Sutton On Trent Ltd,,,,,,,
Nottinghamshire County Council,1111/1001,Children and Young People,CYP,Transport Related,CCA,04/12/2015,11-14170,3556.00,Marshalls Of Sutton On Trent Ltd,,,,,,,
Nottinghamshire County Council,1111/1001,Children and Young People,CYP,Transport Related,CCA,04/12/2015,11-14183,2916.90,Rio Cabs,,,,,,,
Nottinghamshire County Council,1111/1001,Children and Young People,CYP,Transport Related,CCA,08/12/2015,11-14563,796.00,Mars Cars Ltd,,,,,,,
Nottinghamshire County Council,1111/1001,Children and Young People,CYP,Transport Related,CCA,08/12/2015,11-14565,2125.00,F4Control Ltd (t/a First4care),,,,,,,
Nottinghamshire County Council,1111/1001,Children and Young People,CYP,Transport Related,CCA,08/12/2015,11-14566,1958.60,F4Control Ltd (t/a First4care),,,,,,,
Nottinghamshire County Council,1111/1001,Children and Young People,CYP,Transport Related,CCA,08/12/2015,11-14567,2394.60,F4Control Ltd (t/a First4care),,,,,,,
Nottinghamshire County Council,1111/1001,Children and Young People,CYP,Transport Related,CCA,08/12/2015,11-14568,1919.40,F4Control Ltd (t/a First4care),,,,,,,
Nottinghamshire County Council,1111/1001,Children and Young People,CYP,Transport Related,CCA,08/12/2015,11-14569,3055.20,F4Control Ltd (t/a First4care),,,,,,,
Nottinghamshire County Council,1111/1001,Children and Young People,CYP,Transport Related,CCA,08/12/2015,11-14570,2426.40,F4Control Ltd (t/a First4care),,,,,,,
Nottinghamshire County Council,1111/1001,Children and Young People,CYP,Transport Related,CCA,08/12/2015,11-14571,2414.58,F4Control Ltd (t/a First4care),,,,,,,
Nottinghamshire County Council,1111/1001,Children and Young People,CYP,Transport Related,CCA,08/12/2015,11-14572,2496.40,F4Control Ltd (t/a First4care),,,,,,,
Nottinghamshire County Council,1111/1001,Children and Young People,CYP,Transport Related,CCA,08/12/2015,11-14574,2623.95,F4Control Ltd (t/a First4care),,,,,,,
Nottinghamshire County Council,1111/1001,Children and Young People,CYP,Transport Related,CCA,08/12/2015,11-14575,2800.35,F4Control Ltd (t/a First4care),,,,,,,
Nottinghamshire County Council,1111/1001,Children and Young People,CYP,Transport Related,CCA,08/12/2015,11-14576,2818.20,F4Control Ltd (t/a First4care),,,,,,,
Nottinghamshire County Council,1111/1001,Children and Young People,CYP,Transport Related,CCA,08/12/2015,11-14577,1653.58,F4Control Ltd (t/a First4care),,,,,,,
Nottinghamshire County Council,1111/1001,Children and Young People,CYP,Transport Related,CCA,08/12/2015,11-14580,2478.00,F4Control Ltd (t/a First4care),,,,,,,
Nottinghamshire County Council,1111/1001,Children and Young People,CYP,Transport Related,CCA,08/12/2015,11-14581,2499.00,F4Control Ltd (t/a First4care),,,,,,,
Nottinghamshire County Council,1111/1001,Children and Young People,CYP,Transport Related,CCA,08/12/2015,11-14582,2352.00,F4Control Ltd (t/a First4care),,,,,,,
Nottinghamshire County Council,1111/1001,Children and Young People,CYP,Transport Related,CCA,08/12/2015,11-14583,2686.95,F4Control Ltd (t/a First4care),,,,,,,
Nottinghamshire County Council,1111/1001,Children and Young People,CYP,Transport Related,CCA,08/12/2015,11-14584,2594.60,F4Control Ltd (t/a First4care),,,,,,,
Nottinghamshire County Council,1111/1001,Children and Young People,CYP,Transport Related,CCA,08/12/2015,11-14585,2367.33,F4Control Ltd (t/a First4care),,,,,,,
Nottinghamshire County Council,1111/1001,Children and Young People,CYP,Transport Related,CCA,08/12/2015,11-14586,224.25,F4Control Ltd (t/a First4care),,,,,,,
Nottinghamshire County Council,1111/1001,Children and Young People,CYP,Transport Related,CCA,08/12/2015,11-14588,778.38,F4Control Ltd (t/a First4care),,,,,,,
Nottinghamshire County Council,1111/1001,Children and Young People,CYP,Transport Related,CCA,08/12/2015,11-14590,2562.00,Martins Travel,,,,,,,
Nottinghamshire County Council,1111/1001,Children and Young People,CYP,Transport Related,CCA,08/12/2015,11-14591,2642.20,Martins Travel,,,,,,,
Nottinghamshire County Council,1111/1001,Children and Young People,CYP,Transport Related,CCA,08/12/2015,11-14596,1440.00,CBC Taxis Ltd,,,,,,,
Nottinghamshire County Council,1111/1001,Children and Young People,CYP,Transport Related,CCA,08/12/2015,11-14597,1760.00,Ng11 Cars,,,,,,,
Nottinghamshire County Council,1111/1001,Children and Young People,CYP,Transport Related,CCA,08/12/2015,11-14599,684.00,Ng11 Cars,,,,,,,
Nottinghamshire County Council,1111/1001,Children and Young People,CYP,Transport Related,CCA,08/12/2015,11-14600,975.00,Ng11 Cars,,,,,,,
Nottinghamshire County Council,1111/1001,Children and Young People,CYP,Transport Related,CCA,08/12/2015,11-14602,1400.00,Ng11 Cars,,,,,,,
Nottinghamshire County Council,1111/1001,Children and Young People,CYP,Transport Related,CCA,08/12/2015,11-14603,2784.60,Shelleys Taxis Ltd,,,,,,,
Nottinghamshire County Council,1111/1001,Children and Young People,CYP,Transport Related,CCA,08/12/2015,11-14604,1120.00,Shelleys Taxis Ltd,,,,,,,
Nottinghamshire County Council,1111/1001,Children and Young People,CYP,Transport Related,CCA,08/12/2015,11-14605,1890.00,Shelleys Taxis Ltd,,,,,,,
Nottinghamshire County Council,1111/1001,Children and Young People,CYP,Transport Related,CCA,08/12/2015,11-14606,580.00,Shelleys Taxis Ltd,,,,,,,
Nottinghamshire County Council,1111/1001,Children and Young People,CYP,Transport Related,CCA,08/12/2015,11-14607,775.00,Shelleys Taxis Ltd,,,,,,,
Nottinghamshire County Council,1111/1001,Children and Young People,CYP,Transport Related,CCA,08/12/2015,11-14608,1890.00,Shelleys Taxis Ltd,,,,,,,
Nottinghamshire County Council,1111/1001,Children and Young People,CYP,Transport Related,CCA,08/12/2015,11-14609,1659.00,Shelleys Taxis Ltd,,,,,,,
Nottinghamshire County Council,1111/1001,Children and Young People,CYP,Transport Related,CCA,08/12/2015,11-14610,1400.00,Shelleys Taxis Ltd,,,,,,,
Nottinghamshire County Council,1111/1001,Children and Young People,CYP,Transport Related,CCA,08/12/2015,11-14611,2100.00,Shelleys Taxis Ltd,,,,,,,
Nottinghamshire County Council,1111/1001,Children and Young People,CYP,Transport Related,CCA,08/12/2015,11-14612,1365.00,Abacus Cars,,,,,,,
Nottinghamshire County Council,1111/1001,Children and Young People,CYP,Transport Related,CCA,08/12/2015,11-14619,1470.00,Abacus Cars,,,,,,,
Nottinghamshire County Council,1111/1001,Children and Young People,CYP,Transport Related,CCA,08/12/2015,11-14622,3360.00,Abacus Cars,,,,,,,
Nottinghamshire County Council,1111/1001,Children and Young People,CYP,Transport Related,CCA,08/12/2015,11-14623,1600.00,Abacus Cars,,,,,,,
Nottinghamshire County Council,1111/1001,Children and Young People,CYP,Transport Related,CCA,08/12/2015,11-14624,1398.60,Abacus Cars,,,,,,,
Nottinghamshire County Council,1111/1001,Children and Young People,CYP,Transport Related,CCA,08/12/2015,11-14648,2310.00,AAA Cabs,,,,,,,
Nottinghamshire County Council,1111/1001,Children and Young People,CYP,Transport Related,CCA,08/12/2015,11-14652,575.00,Diamond Cars,,,,,,,
Nottinghamshire County Council,1111/1001,Children and Young People,CYP,Transport Related,CCA,09/12/2015,11-14806,16905.00,Sharpes Of Nottingham,,,,,,,
Nottinghamshire County Council,1111/1001,Children and Young People,CYP,Transport Related,CCA,09/12/2015,11-14807,1200.00,Sharpes Of Nottingham,,,,,,,
Nottinghamshire County Council,1111/1001,Children and Young People,CYP,Transport Related,CCA,09/12/2015,11-14808,1075.50,F4Control Ltd (t/a First4care),,,,,,,
Nottinghamshire County Council,1111/1001,Children and Young People,CYP,Transport Related,CCA,09/12/2015,11-14810,1600.00,CBC Taxis Ltd,,,,,,,
Nottinghamshire County Council,1111/1001,Children and Young People,CYP,Transport Related,CCA,09/12/2015,11-14811,1533.00,CBC Taxis Ltd,,,,,,,
Nottinghamshire County Council,1111/1001,Children and Young People,CYP,Transport Related,CCA,09/12/2015,11-14812,1048.95,CBC Taxis Ltd,,,,,,,
Nottinghamshire County Council,1111/1001,Children and Young People,CYP,Transport Related,CCA,09/12/2015,11-14816,1110.00,Ace Of Mansfield Ltd,,,,,,,
Nottinghamshire County Council,1111/1001,Children and Young People,CYP,Transport Related,CCA,09/12/2015,11-14818,1110.00,Ace Of Mansfield Ltd,,,,,,,
Nottinghamshire County Council,1111/1001,Children and Young People,CYP,Transport Related,CCA,09/12/2015,11-14819,624.00,Ace Of Mansfield Ltd,,,,,,,
Nottinghamshire County Council,1111/1001,Children and Young People,CYP,Transport Related,CCA,09/12/2015,11-14821,1440.00,Ace Of Mansfield Ltd,,,,,,,
Nottinghamshire County Council,1111/1001,Children and Young People,CYP,Transport Related,CCA,09/12/2015,11-14824,1840.00,Ace Of Mansfield Ltd,,,,,,,
Nottinghamshire County Council,1111/1001,Children and Young People,CYP,Transport Related,CCA,09/12/2015,11-14825,1840.00,Ace Of Mansfield Ltd,,,,,,,
Nottinghamshire County Council,1111/1001,Children and Young People,CYP,Transport Related,CCA,09/12/2015,11-14826,1845.00,Ace Of Mansfield Ltd,,,,,,,
Nottinghamshire County Council,1111/1001,Children and Young People,CYP,Transport Related,CCA,09/12/2015,11-14827,960.00,Alpha Cars,,,,,,,
Nottinghamshire County Council,1111/1001,Children and Young People,CYP,Transport Related,CCA,09/12/2015,11-14828,1216.00,Alpha Cars,,,,,,,
Nottinghamshire County Council,1111/1001,Children and Young People,CYP,Transport Related,CCA,09/12/2015,11-14829,96.43,Alpha Cars,,,,,,,
Nottinghamshire County Council,1111/1001,Children and Young People,CYP,Transport Related,CCA,09/12/2015,11-14832,1832.00,Alpha Cars,,,,,,,
Nottinghamshire County Council,1111/1001,Children and Young People,CYP,Transport Related,CCA,09/12/2015,11-14834,1764.00,Headland Taxi Services,,,,,,,
Nottinghamshire County Council,1111/1001,Children and Young People,CYP,Transport Related,CCA,09/12/2015,11-14835,1680.74,Ja Travel Ltd,,,,,,,
Nottinghamshire County Council,1111/1001,Children and Young People,CYP,Transport Related,CCA,09/12/2015,11-14836,3087.50,Ja Travel Ltd,,,,,,,
Nottinghamshire County Council,1111/1001,Children and Young People,CYP,Transport Related,CCA,09/12/2015,11-14837,3360.00,Ja Travel Ltd,,,,,,,
Nottinghamshire County Council,1111/1001,Children and Young People,CYP,Transport Related,CCA,09/12/2015,11-14841,2220.00,Ng11 Cars,,,,,,,
Nottinghamshire County Council,1111/1001,Children and Young People,CYP,Transport Related,CCA,09/12/2015,11-14842,1218.00,Shelleys Taxis Ltd,,,,,,,
Nottinghamshire County Council,1111/1001,Children and Young People,CYP,Transport Related,CCA,09/12/2015,11-14845,990.00,Shelleys Taxis Ltd,,,,,,,
Nottinghamshire County Council,1111/1001,Children and Young People,CYP,Transport Related,CCA,09/12/2015,11-14846,945.00,Shelleys Taxis Ltd,,,,,,,
Nottinghamshire County Council,1111/1001,Children and Young People,CYP,Transport Related,CCA,09/12/2015,11-14848,1164.80,Shelleys Taxis Ltd,,,,,,,
Nottinghamshire County Council,1111/1001,Children and Young People,CYP,Transport Related,CCA,09/12/2015,11-14849,2305.80,Sprays Transport Ltd,,,,,,,
Nottinghamshire County Council,1111/1001,Children and Young People,CYP,Transport Related,CCA,09/12/2015,11-14851,2058.00,Sprays Transport Ltd,,,,,,,
Nottinghamshire County Council,1111/1001,Children and Young People,CYP,Transport Related,CCA,09/12/2015,11-14852,2141.16,Sprays Transport Ltd,,,,,,,
Nottinghamshire County Council,1111/1001,Children and Young People,CYP,Transport Related,CCA,09/12/2015,11-14853,2478.00,Sprays Transport Ltd,,,,,,,
Nottinghamshire County Council,1111/1001,Children and Young People,CYP,Transport Related,CCA,09/12/2015,11-14854,1970.64,Sprays Transport Ltd,,,,,,,
Nottinghamshire County Council,1111/1001,Children and Young People,CYP,Transport Related,CCA,09/12/2015,11-14855,1985.97,Sprays Transport Ltd,,,,,,,
Nottinghamshire County Council,1111/1001,Children and Young People,CYP,Transport Related,CCA,09/12/2015,11-14856,2034.90,Sprays Transport Ltd,,,,,,,
Nottinghamshire County Council,1111/1001,Children and Young People,CYP,Transport Related,CCA,09/12/2015,11-14857,2310.00,Sprays Transport Ltd,,,,,,,
Nottinghamshire County Council,1111/1001,Children and Young People,CYP,Transport Related,CCA,09/12/2015,11-14858,2205.00,Sprays Transport Ltd,,,,,,,
Nottinghamshire County Council,1111/1001,Children and Young People,CYP,Transport Related,CCA,09/12/2015,11-14859,2268.00,Sprays Transport Ltd,,,,,,,
Nottinghamshire County Council,1111/1001,Children and Young People,CYP,Transport Related,CCA,09/12/2015,11-14861,1660.47,Sprays Transport Ltd,,,,,,,
Nottinghamshire County Council,1111/1001,Children and Young People,CYP,Transport Related,CCA,09/12/2015,11-14862,2415.00,Sprays Transport Ltd,,,,,,,
Nottinghamshire County Council,1111/1001,Children and Young People,CYP,Transport Related,CCA,09/12/2015,11-14864,2268.00,Sprays Transport Ltd,,,,,,,
Nottinghamshire County Council,1111/1001,Children and Young People,CYP,Transport Related,CCA,09/12/2015,11-14865,2173.50,Sprays Transport Ltd,,,,,,,
Nottinghamshire County Council,1111/1001,Children and Young People,CYP,Transport Related,CCA,09/12/2015,11-14867,2100.00,Sprays Transport Ltd,,,,,,,
Nottinghamshire County Council,1111/1001,Children and Young People,CYP,Transport Related,CCA,09/12/2015,11-14868,1952.00,Sprays Transport Ltd,,,,,,,
Nottinghamshire County Council,1111/1001,Children and Young People,CYP,Transport Related,CCA,09/12/2015,11-14870,2233.14,Sprays Transport Ltd,,,,,,,
Nottinghamshire County Council,1111/1001,Children and Young People,CYP,Transport Related,CCA,09/12/2015,11-14871,2373.00,Sprays Transport Ltd,,,,,,,
Nottinghamshire County Council,1111/1001,Children and Young People,CYP,Transport Related,CCA,09/12/2015,11-14872,2562.00,Sprays Transport Ltd,,,,,,,
Nottinghamshire County Council,1111/1001,Children and Young People,CYP,Transport Related,CCA,09/12/2015,11-14873,2196.00,Sprays Transport Ltd,,,,,,,
Nottinghamshire County Council,1111/1001,Children and Young People,CYP,Transport Related,CCA,09/12/2015,11-14874,1952.00,Sprays Transport Ltd,,,,,,,
Nottinghamshire County Council,1111/1001,Children and Young People,CYP,Transport Related,CCA,09/12/2015,11-14880,2754.00,F & J Marriott T/A Unity Coaches,,,,,,,
Nottinghamshire County Council,1111/1001,Children and Young People,CYP,Transport Related,CCA,09/12/2015,11-14881,2754.00,F & J Marriott T/A Unity Coaches,,,,,,,
Nottinghamshire County Council,1111/1001,Children and Young People,CYP,Transport Related,CCA,09/12/2015,11-14882,2837.20,F & J Marriott T/A Unity Coaches,,,,,,,
Nottinghamshire County Council,1111/1001,Children and Young People,CYP,Transport Related,CCA,09/12/2015,11-14886,528.00,Elkingtons Park Garage,,,,,,,
Nottinghamshire County Council,1111/1001,Children and Young People,CYP,Transport Related,CCA,09/12/2015,11-14890,1000.00,Abacus Cars,,,,,,,
Nottinghamshire County Council,1111/1001,Children and Young People,CYP,Transport Related,CCA,09/12/2015,11-14892,1512.00,Abacus Cars,,,,,,,
Nottinghamshire County Council,1111/1001,Children and Young People,CYP,Transport Related,CCA,09/12/2015,11-14894,571.20,Abacus Cars,,,,,,,
Nottinghamshire County Council,1111/1001,Children and Young People,CYP,Transport Related,CCA,09/12/2015,11-14895,1680.00,Abacus Cars,,,,,,,
Nottinghamshire County Council,1111/1001,Children and Young People,CYP,Transport Related,CCA,09/12/2015,11-14896,1470.00,Abacus Cars,,,,,,,
Nottinghamshire County Council,1111/1001,Children and Young People,CYP,Transport Related,CCA,09/12/2015,11-14898,1014.00,Gem Mini Travel Ltd,,,,,,,
Nottinghamshire County Council,1111/1001,Children and Young People,CYP,Transport Related,CCA,09/12/2015,11-14899,6741.96,Gem Mini Travel Ltd,,,,,,,
Nottinghamshire County Council,1111/1001,Children and Young People,CYP,Transport Related,CCA,09/12/2015,11-14900,2253.70,Nunns Cars,,,,,,,
Nottinghamshire County Council,1111/1001,Children and Young People,CYP,Transport Related,CCA,09/12/2015,11-14903,840.00,Nunns Cars,,,,,,,
Nottinghamshire County Council,1111/1001,Children and Young People,CYP,Transport Related,CCA,09/12/2015,11-14906,1583.40,Travel Wright Ltd,,,,,,,
Nottinghamshire County Council,1111/1001,Children and Young People,CYP,Transport Related,CCA,09/12/2015,11-14920,1885.00,Town Cars (UK) Ltd,,,,,,,
Nottinghamshire County Council,1111/1001,Children and Young People,CYP,Transport Related,CCA,09/12/2015,11-14921,714.00,Town Cars (UK) Ltd,,,,,,,
Nottinghamshire County Council,1111/1001,Children and Young People,CYP,Transport Related,CCA,09/12/2015,11-14922,642.60,Town Cars (UK) Ltd,,,,,,,
Nottinghamshire County Council,1111/1001,Children and Young People,CYP,Transport Related,CCA,09/12/2015,11-14923,756.00,Town Cars (UK) Ltd,,,,,,,
Nottinghamshire County Council,1111/1001,Children and Young People,CYP,Transport Related,CCA,09/12/2015,11-14924,1218.00,Town Cars (UK) Ltd,,,,,,,
Nottinghamshire County Council,1111/1001,Children and Young People,CYP,Transport Related,CCA,09/12/2015,11-14927,1984.50,Ace Cars,,,,,,,
Nottinghamshire County Council,1111/1001,Children and Young People,CYP,Transport Related,CCA,09/12/2015,11-14928,1412.25,Ace Cars,,,,,,,
Nottinghamshire County Council,1111/1001,Children and Young People,CYP,Transport Related,CCA,09/12/2015,11-14930,2814.00,Ace Cars,,,,,,,
Nottinghamshire County Council,1111/1001,Children and Young People,CYP,Transport Related,CCA,09/12/2015,11-14931,1774.50,Ace Cars,,,,,,,
Nottinghamshire County Council,1111/1001,Children and Young People,CYP,Transport Related,CCA,09/12/2015,11-14933,2249.10,Ace Cars,,,,,,,
Nottinghamshire County Council,1111/1001,Children and Young People,CYP,Transport Related,CCA,09/12/2015,11-14934,2385.60,Ace Cars,,,,,,,
Nottinghamshire County Council,1111/1001,Children and Young People,CYP,Transport Related,CCA,09/12/2015,11-14935,1229.80,Ace Cars,,,,,,,
Nottinghamshire County Council,1111/1001,Children and Young People,CYP,Transport Related,CCA,09/12/2015,11-14936,3087.00,Ace Cars,,,,,,,
Nottinghamshire County Council,1111/1001,Children and Young People,CYP,Transport Related,CCA,09/12/2015,11-14939,1672.00,Eurocab 2000 Ltd,,,,,,,
Nottinghamshire County Council,1111/1001,Children and Young People,CYP,Transport Related,CCA,09/12/2015,11-14941,1176.00,Eurocab 2000 Ltd,,,,,,,
Nottinghamshire County Council,1111/1001,Children and Young People,CYP,Transport Related,CCA,09/12/2015,11-14944,2415.00,Eurocab 2000 Ltd,,,,,,,
Nottinghamshire County Council,1111/1001,Children and Young People,CYP,Transport Related,CCA,09/12/2015,11-14945,2100.00,Trevor Bailey t/a Trevor Bailey Tra,,,,,,,
Nottinghamshire County Council,1111/1001,Children and Young People,CYP,Transport Related,CCA,09/12/2015,11-14946,1020.00,Eastwood Cars (UK) Ltd,,,,,,,
Nottinghamshire County Council,1111/1001,Children and Young People,CYP,Transport Related,CCA,09/12/2015,11-14947,4576.80,Target Taxis,,,,,,,
Nottinghamshire County Council,1111/1001,Children and Young People,CYP,Transport Related,CCA,11/12/2015,11-15081,950.00,Central Cars Nottm Ltd,,,,,,,
Nottinghamshire County Council,1111/1001,Children and Young People,CYP,Transport Related,CCA,11/12/2015,11-15082,1762.56,Central Cars Nottm Ltd,,,,,,,
Nottinghamshire County Council,1111/1001,Children and Young People,CYP,Transport Related,CCA,11/12/2015,11-15084,1857.03,Central Cars Nottm Ltd,,,,,,,
Nottinghamshire County Council,1111/1001,Children and Young People,CYP,Transport Related,CCA,11/12/2015,11-15085,2080.80,Central Cars Nottm Ltd,,,,,,,
Nottinghamshire County Council,1111/1001,Children and Young People,CYP,Transport Related,CCA,11/12/2015,11-15086,1927.80,Central Cars Nottm Ltd,,,,,,,
Nottinghamshire County Council,1111/1001,Children and Young People,CYP,Transport Related,CCA,11/12/2015,11-15087,2321.64,F4Control Ltd (t/a First4care),,,,,,,
Nottinghamshire County Council,1111/1001,Children and Young People,CYP,Transport Related,CCA,11/12/2015,11-15094,2341.08,D G Private Hire Ltd,,,,,,,
Nottinghamshire County Council,1111/1001,Children and Young People,CYP,Transport Related,CCA,11/12/2015,11-15095,2361.87,Erewash Community Transport,,,,,,,
Nottinghamshire County Council,1111/1001,Children and Young People,CYP,Transport Related,CCA,11/12/2015,11-15096,15567.72,Erewash Community Transport,,,,,,,
Nottinghamshire County Council,1111/1001,Children and Young People,CYP,Transport Related,CCA,11/12/2015,11-15097,1130.00,Ng11 Cars,,,,,,,
Nottinghamshire County Council,1111/1001,Children and Young People,CYP,Transport Related,CCA,11/12/2015,11-15098,1015.00,Ng11 Cars,,,,,,,
Nottinghamshire County Council,1111/1001,Children and Young People,CYP,Transport Related,CCA,11/12/2015,11-15099,1360.00,Ng11 Cars,,,,,,,
Nottinghamshire County Council,1111/1001,Children and Young People,CYP,Transport Related,CCA,11/12/2015,11-15101,850.00,Shelleys Taxis Ltd,,,,,,,
Nottinghamshire County Council,1111/1001,Children and Young People,CYP,Transport Related,CCA,11/12/2015,11-15102,3570.00,Vallances Coaches,,,,,,,
Nottinghamshire County Council,1111/1001,Children and Young People,CYP,Transport Related,CCA,11/12/2015,11-15104,3108.00,Vallances Coaches,,,,,,,
Nottinghamshire County Council,1111/1001,Children and Young People,CYP,Transport Related,CCA,11/12/2015,11-15105,2813.37,Vallances Coaches,,,,,,,
Nottinghamshire County Council,1111/1001,Children and Young People,CYP,Transport Related,CCA,11/12/2015,11-15109,836.00,D G Private Hire Ltd,,,,,,,
Nottinghamshire County Council,1111/1001,Children and Young People,CYP,Transport Related,CCA,11/12/2015,11-15110,540.00,D G Private Hire Ltd,,,,,,,
Nottinghamshire County Council,1111/1001,Children and Young People,CYP,Transport Related,CCA,11/12/2015,11-15115,506.00,D G Private Hire Ltd,,,,,,,
Nottinghamshire County Council,1111/1001,Children and Young People,CYP,Transport Related,CCA,11/12/2015,11-15117,760.00,D G Private Hire Ltd,,,,,,,
Nottinghamshire County Council,1111/1001,Children and Young People,CYP,Transport Related,CCA,11/12/2015,11-15118,1485.00,D G Private Hire Ltd,,,,,,,
Nottinghamshire County Council,1111/1001,Children and Young People,CYP,Transport Related,CCA,11/12/2015,11-15120,1256.00,D G Private Hire Ltd,,,,,,,
Nottinghamshire County Council,1111/1001,Children and Young People,CYP,Transport Related,CCA,11/12/2015,11-15123,545.00,D G Private Hire Ltd,,,,,,,
Nottinghamshire County Council,1111/1001,Children and Young People,CYP,Transport Related,CCA,11/12/2015,11-15124,1200.00,D G Private Hire Ltd,,,,,,,
Nottinghamshire County Council,1111/1001,Children and Young People,CYP,Transport Related,CCA,11/12/2015,11-15125,2793.00,D G Private Hire Ltd,,,,,,,
Nottinghamshire County Council,1111/1001,Children and Young People,CYP,Transport Related,CCA,11/12/2015,11-15126,1392.30,D G Private Hire Ltd,,,,,,,
Nottinghamshire County Council,1111/1001,Children and Young People,CYP,Transport Related,CCA,11/12/2015,11-15130,1700.00,Abacus Cars,,,,,,,
Nottinghamshire County Council,1111/1001,Children and Young People,CYP,Transport Related,CCA,11/12/2015,11-15176,3038.82,Travel Wright Ltd,,,,,,,
Nottinghamshire County Council,1111/1001,Children and Young People,CYP,Transport Related,CCA,11/12/2015,11-15178,764.91,Rio Cabs,,,,,,,
Nottinghamshire County Council,1111/1001,Children and Young People,CYP,Transport Related,CCA,11/12/2015,11-15187,1470.00,Forest Cars,,,,,,,
Nottinghamshire County Council,1111/1001,Children and Young People,CYP,Transport Related,CCA,14/12/2015,11-15268,2162.01,Bridges Transport Services,,,,,,,
Nottinghamshire County Council,1111/1001,Children and Young People,CYP,Transport Related,CCA,14/12/2015,11-15273,2896.80,BN Gibson Ltd,,,,,,,
Nottinghamshire County Council,1111/1001,Children and Young People,CYP,Transport Related,CCA,14/12/2015,11-15274,2418.76,BN Gibson Ltd,,,,,,,
Nottinghamshire County Council,1111/1001,Children and Young People,CYP,Transport Related,CCA,14/12/2015,11-15276,4085.34,BN Gibson Ltd,,,,,,,
Nottinghamshire County Council,1111/1001,Children and Young People,CYP,Transport Related,CCA,14/12/2015,11-15277,4767.84,BN Gibson Ltd,,,,,,,
Nottinghamshire County Council,1111/1001,Children and Young People,CYP,Transport Related,CCA,14/12/2015,11-15278,2500.47,BN Gibson Ltd,,,,,,,
Nottinghamshire County Council,1111/1001,Children and Young People,CYP,Transport Related,CCA,14/12/2015,11-15279,4503.40,BN Gibson Ltd,,,,,,,
Nottinghamshire County Council,1111/1001,Children and Young People,CYP,Transport Related,CCA,14/12/2015,11-15280,3102.54,BN Gibson Ltd,,,,,,,
Nottinghamshire County Council,1111/1001,Children and Young People,CYP,Transport Related,CCA,14/12/2015,11-15281,3986.43,BN Gibson Ltd,,,,,,,
Nottinghamshire County Council,1111/1001,Children and Young People,CYP,Transport Related,CCA,14/12/2015,11-15282,3662.19,BN Gibson Ltd,,,,,,,
Nottinghamshire County Council,1111/1001,Children and Young People,CYP,Transport Related,CCA,14/12/2015,11-15285,2500.00,Silverdale Tours Nottm Ltd,,,,,,,
Nottinghamshire County Council,1111/1001,Children and Young People,CYP,Transport Related,CCA,14/12/2015,11-15299,1038.44,Ace Cars,,,,,,,
Nottinghamshire County Council,1111/1001,Children and Young People,CYP,Transport Related,CCA,14/12/2015,11-15301,1879.50,Ace Cars,,,,,,,
Nottinghamshire County Council,1111/1001,Children and Young People,CYP,Transport Related,CCA,14/12/2015,11-15302,1237.60,Ace Cars,,,,,,,
Nottinghamshire County Council,1111/1001,Children and Young People,CYP,Transport Related,CCA,14/12/2015,11-15303,1986.60,Ace Cars,,,,,,,
Nottinghamshire County Council,1111/1001,Children and Young People,CYP,Transport Related,CCA,14/12/2015,11-15304,2406.60,Ace Cars,,,,,,,
Nottinghamshire County Council,1111/1001,Children and Young People,CYP,Transport Related,CCA,14/12/2015,11-15305,2080.00,Ace Cars,,,,,,,
Nottinghamshire County Council,1111/1001,Children and Young People,CYP,Transport Related,CCA,14/12/2015,11-15306,1252.13,Ace Cars,,,,,,,
Nottinghamshire County Council,1111/1001,Children and Young People,CYP,Transport Related,CCA,14/12/2015,11-15308,2272.20,Ace Cars,,,,,,,
Nottinghamshire County Council,1111/1001,Children and Young People,CYP,Transport Related,CCA,14/12/2015,11-15309,575.00,Diamond Cars,,,,,,,
Nottinghamshire County Council,1111/1001,Children and Young People,CYP,Transport Related,CCA,16/12/2015,11-15731,856.00,200 Cars Ltd,,,,,,,
Nottinghamshire County Council,1111/1001,Children and Young People,CYP,Transport Related,CCA,16/12/2015,11-15732,738.00,200 Cars Ltd,,,,,,,
Nottinghamshire County Council,1111/1001,Children and Young People,CYP,Transport Related,CCA,16/12/2015,11-15734,3549.00,Butler Brothers Ltd,,,,,,,
Nottinghamshire County Council,1111/1001,Children and Young People,CYP,Transport Related,CCA,16/12/2015,11-15736,2873.00,Butler Brothers Ltd,,,,,,,
Nottinghamshire County Council,1111/1001,Children and Young People,CYP,Transport Related,CCA,16/12/2015,11-15739,3608.22,BN Gibson Ltd,,,,,,,
Nottinghamshire County Council,1111/1001,Children and Young People,CYP,Transport Related,CCA,16/12/2015,11-15740,4564.77,BN Gibson Ltd,,,,,,,
Nottinghamshire County Council,1111/1001,Children and Young People,CYP,Transport Related,CCA,16/12/2015,11-15741,4912.74,BN Gibson Ltd,,,,,,,
Nottinghamshire County Council,1111/1001,Children and Young People,CYP,Transport Related,CCA,16/12/2015,11-15742,4122.93,BN Gibson Ltd,,,,,,,
Nottinghamshire County Council,1111/1001,Children and Young People,CYP,Transport Related,CCA,16/12/2015,11-15743,4834.20,BN Gibson Ltd,,,,,,,
Nottinghamshire County Council,1111/1001,Children and Young People,CYP,Transport Related,CCA,16/12/2015,11-15744,3667.40,BN Gibson Ltd,,,,,,,
Nottinghamshire County Council,1111/1001,Children and Young People,CYP,Transport Related,CCA,16/12/2015,11-15745,3168.40,BN Gibson Ltd,,,,,,,
Nottinghamshire County Council,1111/1001,Children and Young People,CYP,Transport Related,CCA,16/12/2015,11-15746,2500.80,BN Gibson Ltd,,,,,,,
Nottinghamshire County Council,1111/1001,Children and Young People,CYP,Transport Related,CCA,16/12/2015,11-15747,1759.00,BN Gibson Ltd,,,,,,,
Nottinghamshire County Council,1111/1001,Children and Young People,CYP,Transport Related,CCA,16/12/2015,11-15748,2792.16,BN Gibson Ltd,,,,,,,
Nottinghamshire County Council,1111/1001,Children and Young People,CYP,Transport Related,CCA,16/12/2015,11-15749,1977.57,BN Gibson Ltd,,,,,,,
Nottinghamshire County Council,1111/1001,Children and Young People,CYP,Transport Related,CCA,16/12/2015,11-15750,2258.22,BN Gibson Ltd,,,,,,,
Nottinghamshire County Council,1111/1001,Children and Young People,CYP,Transport Related,CCA,16/12/2015,11-15751,3152.73,BN Gibson Ltd,,,,,,,
Nottinghamshire County Council,1111/1001,Children and Young People,CYP,Transport Related,CCA,16/12/2015,11-15752,3057.60,BN Gibson Ltd,,,,,,,
Nottinghamshire County Council,1111/1001,Children and Young People,CYP,Transport Related,CCA,16/12/2015,11-15753,2130.85,BN Gibson Ltd,,,,,,,
Nottinghamshire County Council,1111/1001,Children and Young People,CYP,Transport Related,CCA,16/12/2015,11-15756,2508.38,BN Gibson Ltd,,,,,,,
Nottinghamshire County Council,1111/1001,Children and Young People,CYP,Transport Related,CCA,16/12/2015,11-15757,2433.33,BN Gibson Ltd,,,,,,,
Nottinghamshire County Council,1111/1001,Children and Young People,CYP,Transport Related,CCA,16/12/2015,11-15762,750.33,Bassetlaw Action Centre,,,,,,,
Nottinghamshire County Council,1111/1001,Children and Young People,CYP,Transport Related,CCA,16/12/2015,11-15763,707.94,Bassetlaw Action Centre,,,,,,,
Nottinghamshire County Council,1111/1001,Children and Young People,CYP,Transport Related,CCA,18/12/2015,11-15965,546.00,Dial A Trip,,,,,,,
Nottinghamshire County Council,1111/1001,Children and Young People,CYP,Transport Related,CCA,18/12/2015,11-15968,2774.40,Arrow Specialised Transport Ltd,,,,,,,
Nottinghamshire County Council,1111/1001,Children and Young People,CYP,Transport Related,CCA,18/12/2015,11-15970,2535.00,Butler Brothers Ltd,,,,,,,
Nottinghamshire County Council,1111/1001,Children and Young People,CYP,Transport Related,CCA,18/12/2015,11-15971,1840.00,Sprays Transport Ltd,,,,,,,
Nottinghamshire County Council,1111/1001,Children and Young People,CYP,Transport Related,CCA,18/12/2015,11-15972,2454.06,BN Gibson Ltd,,,,,,,
Nottinghamshire County Council,1111/1001,Children and Young People,CYP,Transport Related,CCA,18/12/2015,11-15973,5017.99,BN Gibson Ltd,,,,,,,
Nottinghamshire County Council,1111/1001,Children and Young People,CYP,Transport Related,CCA,18/12/2015,11-15974,3353.49,BN Gibson Ltd,,,,,,,
Nottinghamshire County Council,1111/1001,Children and Young People,CYP,Transport Related,CCA,18/12/2015,11-15979,760.00,D G Private Hire Ltd,,,,,,,
Nottinghamshire County Council,1111/1001,Children and Young People,CYP,Transport Related,CCA,18/12/2015,11-15982,811.75,I Can Charity,,,,,,,
Nottinghamshire County Council,1111/1001,Children and Young People,CYP,Transport Related,CCA,18/12/2015,11-15983,640.00,I Can Charity,,,,,,,
Nottinghamshire County Council,1111/1001,Children and Young People,CYP,Transport Related,CCA,22/12/2015,11-18222,1272.00,Acorn Contracts,,,,,,,
Nottinghamshire County Council,1111/1001,Children and Young People,CYP,Transport Related,CCA,23/12/2015,11-18452,1961.61,BN Gibson Ltd,,,,,,,
Nottinghamshire County Council,1111/1001,Children and Young People,CYP,Transport Related,CDA,02/12/2015,11-13810,358.05,Southside Cars,,,,,,,
Nottinghamshire County Council,1111/1001,Children and Young People,CYP,Transport Related,CDA,03/12/2015,11-13893,987.00,Acorn Contracts,,,,,,,
Nottinghamshire County Council,1111/1001,Children and Young People,CYP,Transport Related,CDA,03/12/2015,11-13898,294.00,Arrow Specialised Transport Ltd,,,,,,,
Nottinghamshire County Council,1111/1001,Children and Young People,CYP,Transport Related,CDA,03/12/2015,11-13959,1511.58,Arrow Specialised Transport Ltd,,,,,,,
Nottinghamshire County Council,1111/1001,Children and Young People,CYP,Transport Related,CDA,03/12/2015,11-13976,1516.41,Arrow Specialised Transport Ltd,,,,,,,
Nottinghamshire County Council,1111/1001,Children and Young People,CYP,Transport Related,CDA,03/12/2015,11-14010,512.34,Bridges Transport Services,,,,,,,
Nottinghamshire County Council,1111/1001,Children and Young People,CYP,Transport Related,CDA,03/12/2015,11-14024,966.00,Fozcabs Newark Taxis,,,,,,,
Nottinghamshire County Council,1111/1001,Children and Young People,CYP,Transport Related,CDA,03/12/2015,11-14030,1285.20,Galaxy Cabs,,,,,,,
Nottinghamshire County Council,1111/1001,Children and Young People,CYP,Transport Related,CDA,03/12/2015,11-14036,328.02,Horizon Travel,,,,,,,
Nottinghamshire County Council,1111/1001,Children and Young People,CYP,Transport Related,CDA,03/12/2015,11-14040,3788.40,AOT Coaches,,,,,,,
Nottinghamshire County Council,1111/1001,Children and Young People,CYP,Transport Related,CDA,03/12/2015,11-14045,2940.00,Nottingham Minibuses & Coaches,,,,,,,
Nottinghamshire County Council,1111/1001,Children and Young People,CYP,Transport Related,CDA,03/12/2015,11-14046,2600.00,Nottingham Minibuses & Coaches,,,,,,,
Nottinghamshire County Council,1111/1001,Children and Young People,CYP,Transport Related,CDA,03/12/2015,11-14047,1995.00,Nottingham Minibuses & Coaches,,,,,,,
Nottinghamshire County Council,1111/1001,Children and Young People,CYP,Transport Related,CDA,03/12/2015,11-14048,2625.00,Nottingham Minibuses & Coaches,,,,,,,
Nottinghamshire County Council,1111/1001,Children and Young People,CYP,Transport Related,CDA,03/12/2015,11-14050,2940.00,Nottingham Minibuses & Coaches,,,,,,,
Nottinghamshire County Council,1111/1001,Children and Young People,CYP,Transport Related,CDA,03/12/2015,11-14051,2730.00,Nottingham Minibuses & Coaches,,,,,,,
Nottinghamshire County Council,1111/1001,Children and Young People,CYP,Transport Related,CDA,03/12/2015,11-14058,953.19,P & P Taxis,,,,,,,
Nottinghamshire County Council,1111/1001,Children and Young People,CYP,Transport Related,CDA,04/12/2015,11-14137,840.00,D G Private Hire Ltd,,,,,,,
Nottinghamshire County Council,1111/1001,Children and Young People,CYP,Transport Related,CDA,04/12/2015,11-14150,2079.00,AOT Coaches,,,,,,,
Nottinghamshire County Council,1111/1001,Children and Young People,CYP,Transport Related,CDA,04/12/2015,11-14151,1709.40,AOT Coaches,,,,,,,
Nottinghamshire County Council,1111/1001,Children and Young People,CYP,Transport Related,CDA,08/12/2015,11-14586,465.75,F4Control Ltd (t/a First4care),,,,,,,
Nottinghamshire County Council,1111/1001,Children and Young People,CYP,Transport Related,CDA,08/12/2015,11-14601,2480.00,Ng11 Cars,,,,,,,
Nottinghamshire County Council,1111/1001,Children and Young People,CYP,Transport Related,CDA,08/12/2015,11-14645,1764.00,P & P Taxis,,,,,,,
Nottinghamshire County Council,1111/1001,Children and Young People,CYP,Transport Related,CDA,09/12/2015,11-14822,1390.33,Ace Of Mansfield Ltd,,,,,,,
Nottinghamshire County Council,1111/1001,Children and Young People,CYP,Transport Related,CDA,09/12/2015,11-14829,707.14,Alpha Cars,,,,,,,
Nottinghamshire County Council,1111/1001,Children and Young People,CYP,Transport Related,CDA,09/12/2015,11-14859,252.00,Sprays Transport Ltd,,,,,,,
Nottinghamshire County Council,1111/1001,Children and Young People,CYP,Transport Related,CDA,09/12/2015,11-14865,241.50,Sprays Transport Ltd,,,,,,,
Nottinghamshire County Council,1111/1001,Children and Young People,CYP,Transport Related,CDA,09/12/2015,11-14869,3015.60,Sprays Transport Ltd,,,,,,,
Nottinghamshire County Council,1111/1001,Children and Young People,CYP,Transport Related,CDA,09/12/2015,11-14891,1190.00,Abacus Cars,,,,,,,
Nottinghamshire County Council,1111/1001,Children and Young People,CYP,Transport Related,CDA,09/12/2015,11-14901,351.00,Nunns Cars,,,,,,,
Nottinghamshire County Council,1111/1001,Children and Young People,CYP,Transport Related,CDA,09/12/2015,11-14937,1615.00,Eurocab 2000 Ltd,,,,,,,
Nottinghamshire County Council,1111/1001,Children and Young People,CYP,Transport Related,CDA,09/12/2015,11-14938,1805.00,Eurocab 2000 Ltd,,,,,,,
Nottinghamshire County Council,1111/1001,Children and Young People,CYP,Transport Related,CDA,09/12/2015,11-14940,2380.00,Eurocab 2000 Ltd,,,,,,,
Nottinghamshire County Council,1111/1001,Children and Young People,CYP,Transport Related,CDA,09/12/2015,11-14943,2540.00,Eurocab 2000 Ltd,,,,,,,
Nottinghamshire County Council,1111/1001,Children and Young People,CYP,Transport Related,CDA,11/12/2015,11-15082,195.84,Central Cars Nottm Ltd,,,,,,,
Nottinghamshire County Council,1111/1001,Children and Young People,CYP,Transport Related,CDA,11/12/2015,11-15100,2140.00,Ng11 Cars,,,,,,,
Nottinghamshire County Council,1111/1001,Children and Young People,CYP,Transport Related,CDA,11/12/2015,11-15111,1850.00,D G Private Hire Ltd,,,,,,,
Nottinghamshire County Council,1111/1001,Children and Young People,CYP,Transport Related,CDA,11/12/2015,11-15113,1955.00,D G Private Hire Ltd,,,,,,,
Nottinghamshire County Council,1111/1001,Children and Young People,CYP,Transport Related,CDA,11/12/2015,11-15119,756.00,D G Private Hire Ltd,,,,,,,
Nottinghamshire County Council,1111/1001,Children and Young People,CYP,Transport Related,CDA,11/12/2015,11-15121,875.00,D G Private Hire Ltd,,,,,,,
Nottinghamshire County Council,1111/1001,Children and Young People,CYP,Transport Related,CDA,11/12/2015,11-15122,1550.40,D G Private Hire Ltd,,,,,,,
Nottinghamshire County Council,1111/1001,Children and Young People,CYP,Transport Related,CDA,11/12/2015,11-15132,920.00,Abacus Cars,,,,,,,
Nottinghamshire County Council,1111/1001,Children and Young People,CYP,Transport Related,CDA,15/12/2015,11-15617,6364.80,Paul S Winson Coaches,,,,,,,
Nottinghamshire County Council,1111/1001,Children and Young People,CYP,Supplies & Services,DAA,02/12/2015,11-20172,675.00,Location Audio,,,,,,,
Nottinghamshire County Council,1111/1001,Children and Young People,CYP,Supplies & Services,DAA,03/12/2015,11-20252,686.00,Alere Toxicology Plc,,,,,,,
Nottinghamshire County Council,1111/1001,Children and Young People,CYP,Supplies & Services,DAA,07/12/2015,11-20386,575.00,Forest Farm Tree Service,,,,,,,
Nottinghamshire County Council,1111/1001,Children and Young People,CYP,Supplies & Services,DAA,10/12/2015,11-20558,6216.00,Phonak Uk Ltd,,,,,,,
Nottinghamshire County Council,1111/1001,Children and Young People,CYP,Supplies & Services,DAA,16/12/2015,11-20814,540.00,Alere Toxicology Plc,,,,,,,
Nottinghamshire County Council,1111/1001,Children and Young People,CYP,Supplies & Services,DAA,22/12/2015,11-18216,85000.00,Edwalton Primary (Academy),,,,,,,
Nottinghamshire County Council,1111/1001,Children and Young People,CYP,Supplies & Services,DAA,22/12/2015,11-21044,714.10,Aiguille Ltd,,,,,,,
Nottinghamshire County Council,1111/1001,Children and Young People,CYP,Supplies & Services,DAA,22/12/2015,11-21045,708.75,Aiguille Ltd,,,,,,,
Nottinghamshire County Council,1111/1001,Children and Young People,CYP,Supplies & Services,DAA,22/12/2015,11-21046,695.50,Aiguille Ltd,,,,,,,
Nottinghamshire County Council,1111/1001,Children and Young People,CYP,Supplies & Services,DAA,22/12/2015,11-21082,709.63,Mastenbroek Ltd,,,,,,,
Nottinghamshire County Council,1111/1001,Children and Young People,CYP,Supplies & Services,DAA,23/12/2015,11-21099,549.00,[Redacted],,,,,,,
Nottinghamshire County Council,1111/1001,Children and Young People,CYP,Supplies & Services,DAA,31/12/2015,11-15771,85927.97,St Josephs Catholic Primary Sch Aca,,,,,,,
Nottinghamshire County Council,1111/1001,Children and Young People,CYP,Supplies & Services,DBA,02/12/2015,11-13819,259.68,Hallam Country Fresh Foods Ltd,,,,,,,
Nottinghamshire County Council,1111/1001,Children and Young People,CYP,Supplies & Services,DBA,04/12/2015,11-14112,641.67,Brake Bros Ltd,,,,,,,
Nottinghamshire County Council,1111/1001,Children and Young People,CYP,Supplies & Services,DBA,04/12/2015,11-14114,26.18,Brake Bros Ltd,,,,,,,
Nottinghamshire County Council,1111/1001,Children and Young People,CYP,Supplies & Services,DBA,04/12/2015,11-14130,783.21,Brake Bros Ltd,,,,,,,
Nottinghamshire County Council,1111/1001,Children and Young People,CYP,Supplies & Services,DBA,07/12/2015,11-14223,103.09,M Maloney Country Butchers & B Ltd,,,,,,,
Nottinghamshire County Council,1111/1001,Children and Young People,CYP,Supplies & Services,DBA,07/12/2015,11-14227,99.15,M Maloney Country Butchers & B Ltd,,,,,,,
Nottinghamshire County Council,1111/1001,Children and Young People,CYP,Supplies & Services,DBA,08/12/2015,11-14680,108.06,M Maloney Country Butchers & B Ltd,,,,,,,
Nottinghamshire County Council,1111/1001,Children and Young People,CYP,Supplies & Services,DBA,09/12/2015,11-14708,234.74,Hallam Country Fresh Foods Ltd,,,,,,,
Nottinghamshire County Council,1111/1001,Children and Young People,CYP,Supplies & Services,DBA,15/12/2015,11-15710,215.84,Brake Bros Ltd,,,,,,,
Nottinghamshire County Council,1111/1001,Children and Young People,CYP,Supplies & Services,DBA,16/12/2015,11-20216,360.00,Nurture Enterprises Ltd,,,,,,,
Nottinghamshire County Council,1111/1001,Children and Young People,CYP,Supplies & Services,DBA,17/12/2015,11-15941,195.18,Hallam Country Fresh Foods Ltd,,,,,,,
Nottinghamshire County Council,1111/1001,Children and Young People,CYP,Supplies & Services,DBA,21/12/2015,11-16125,63.94,Brake Bros Ltd,,,,,,,
Nottinghamshire County Council,1111/1001,Children and Young People,CYP,Supplies & Services,DBA,21/12/2015,11-16128,151.88,Brake Bros Ltd,,,,,,,
Nottinghamshire County Council,1111/1001,Children and Young People,CYP,Supplies & Services,DBA,23/12/2015,11-18263,536.22,Brake Bros Ltd,,,,,,,
Nottinghamshire County Council,1111/1001,Children and Young People,CYP,Supplies & Services,DBA,29/12/2015,11-18543,224.20,Brake Bros Ltd,,,,,,,
Nottinghamshire County Council,1111/1001,Children and Young People,CYP,Supplies & Services,DBA,29/12/2015,11-18546,426.49,Brake Bros Ltd,,,,,,,
Nottinghamshire County Council,1111/1001,Children and Young People,CYP,Supplies & Services,DBA,31/12/2015,11-20295,360.00,Nurture Enterprises Ltd,,,,,,,
Nottinghamshire County Council,1111/1001,Children and Young People,CYP,Supplies & Services,DCA,30/12/2015,11-20415,949.01,Clean Sheet Laundry Ltd,,,,,,,
Nottinghamshire County Council,1111/1001,Children and Young People,CYP,Supplies & Services,DCA,30/12/2015,11-20421,502.03,Clean Sheet Laundry Ltd,,,,,,,
Nottinghamshire County Council,1111/1001,Children and Young People,CYP,Supplies & Services,DDA,02/12/2015,11-20145,14816.67,The Award Scheme Ltd,,,,,,,
Nottinghamshire County Council,1111/1001,Children and Young People,CYP,Supplies & Services,DEA,01/12/2015,11-20106,700.00,Anne Frank Trust UK,,,,,,,
Nottinghamshire County Council,1111/1001,Children and Young People,CYP,Supplies & Services,DEA,02/12/2015,11-20131,2250.00,[Redacted],,,,,,,
Nottinghamshire County Council,1111/1001,Children and Young People,CYP,Supplies & Services,DEA,02/12/2015,11-20166,540.00,[Redacted],,,,,,,
Nottinghamshire County Council,1111/1001,Children and Young People,CYP,Supplies & Services,DEA,02/12/2015,11-20195,555.30,Zip Heaters Uk Ltd,,,,,,,
Nottinghamshire County Council,1111/1001,Children and Young People,CYP,Supplies & Services,DEA,03/12/2015,11-20101,2170.60,Real Education Ltd,,,,,,,
Nottinghamshire County Council,1111/1001,Children and Young People,CYP,Supplies & Services,DEA,03/12/2015,11-20176,1350.00,River Education Services Ltd,,,,,,,
Nottinghamshire County Council,1111/1001,Children and Young People,CYP,Supplies & Services,DEA,03/12/2015,11-20232,536.52,Zip Heaters Uk Ltd,,,,,,,
Nottinghamshire County Council,1111/1001,Children and Young People,CYP,Supplies & Services,DEA,03/12/2015,11-20233,5850.00,[Redacted],,,,,,,
Nottinghamshire County Council,1111/1001,Children and Young People,CYP,Supplies & Services,DEA,04/12/2015,11-14098,2750.00,Notts Foster Carers Liaison Committ,,,,,,,
Nottinghamshire County Council,1111/1001,Children and Young People,CYP,Supplies & Services,DEA,04/12/2015,11-20170,1065.32,"Futures Advice, Skills & Employment",,,,,,,
Nottinghamshire County Council,1111/1001,Children and Young People,CYP,Supplies & Services,DEA,04/12/2015,11-20275,2475.00,Jo Sharpe Education Consultant,,,,,,,
Nottinghamshire County Council,1111/1001,Children and Young People,CYP,Supplies & Services,DEA,07/12/2015,11-20384,800.00,City & Guilds Of London Institute,,,,,,,
Nottinghamshire County Council,1111/1001,Children and Young People,CYP,Supplies & Services,DEA,08/12/2015,11-20430,650.00,The Together Trust Ltd,,,,,,,
Nottinghamshire County Council,1111/1001,Children and Young People,CYP,Supplies & Services,DEA,08/12/2015,11-20431,895.00,Kids,,,,,,,
Nottinghamshire County Council,1111/1001,Children and Young People,CYP,Supplies & Services,DEA,09/12/2015,11-20460,1210.00,[Redacted],,,,,,,
Nottinghamshire County Council,1111/1001,Children and Young People,CYP,Supplies & Services,DEA,09/12/2015,11-20499,1284.00,AIM Awards,,,,,,,
Nottinghamshire County Council,1111/1001,Children and Young People,CYP,Supplies & Services,DEA,09/12/2015,11-20505,3396.80,Inclusive Solutions Uk Ltd,,,,,,,
Nottinghamshire County Council,1111/1001,Children and Young People,CYP,Supplies & Services,DEA,10/12/2015,11-20565,3916.67,Adoption Plus Ltd,,,,,,,
Nottinghamshire County Council,1111/1001,Children and Young People,CYP,Supplies & Services,DEA,10/12/2015,11-20567,3916.67,Adoption Plus Ltd,,,,,,,
Nottinghamshire County Council,1111/1001,Children and Young People,CYP,Supplies & Services,DEA,10/12/2015,11-20589,512.00,Little Acorns Childminding,,,,,,,
Nottinghamshire County Council,1111/1001,Children and Young People,CYP,Supplies & Services,DEA,10/12/2015,11-20590,672.00,Little Acorns Childminding,,,,,,,
Nottinghamshire County Council,1111/1001,Children and Young People,CYP,Supplies & Services,DEA,14/12/2015,11-20685,1060.00,Location Audio,,,,,,,
Nottinghamshire County Council,1111/1001,Children and Young People,CYP,Supplies & Services,DEA,14/12/2015,11-20726,1000.00,One Education Ltd,,,,,,,
Nottinghamshire County Council,1111/1001,Children and Young People,CYP,Supplies & Services,DEA,15/12/2015,11-20788,8130.00,Pintsize Theatre Ltd,,,,,,,
Nottinghamshire County Council,1111/1001,Children and Young People,CYP,Supplies & Services,DEA,16/12/2015,11-20410,850.00,[Redacted],,,,,,,
Nottinghamshire County Council,1111/1001,Children and Young People,CYP,Supplies & Services,DEA,16/12/2015,11-20411,1000.00,[Redacted],,,,,,,
Nottinghamshire County Council,1111/1001,Children and Young People,CYP,Supplies & Services,DEA,16/12/2015,11-20487,1133.80,[Redacted],,,,,,,
Nottinghamshire County Council,1111/1001,Children and Young People,CYP,Supplies & Services,DEA,16/12/2015,11-20624,624.30,A Bang In The Void,,,,,,,
Nottinghamshire County Council,1111/1001,Children and Young People,CYP,Supplies & Services,DEA,16/12/2015,11-20789,1200.00,Casy,,,,,,,
Nottinghamshire County Council,1111/1001,Children and Young People,CYP,Supplies & Services,DEA,16/12/2015,11-20811,25981.25,Robert Woodhead Limited,,,,,,,
Nottinghamshire County Council,1111/1001,Children and Young People,CYP,Supplies & Services,DEA,16/12/2015,11-20826,74617.81,Nottinghamshire Healthcare Nhs F Tr,,,,,,,
Nottinghamshire County Council,1111/1001,Children and Young People,CYP,Supplies & Services,DEA,16/12/2015,11-20854,550.00,[Redacted],,,,,,,
Nottinghamshire County Council,1111/1001,Children and Young People,CYP,Supplies & Services,DEA,17/12/2015,11-20884,3396.80,Inclusive Solutions Uk Ltd,,,,,,,
Nottinghamshire County Council,1111/1001,Children and Young People,CYP,Supplies & Services,DEA,17/12/2015,11-20898,880.43,[Redacted],,,,,,,
Nottinghamshire County Council,1111/1001,Children and Young People,CYP,Supplies & Services,DEA,18/12/2015,11-20802,942.50,First Class Tailored Solutions Ltd,,,,,,,
Nottinghamshire County Council,1111/1001,Children and Young People,CYP,Supplies & Services,DEA,18/12/2015,11-20920,631.50,Ruth Pearson Training Ltd,,,,,,,
Nottinghamshire County Council,1111/1001,Children and Young People,CYP,Supplies & Services,DEA,18/12/2015,11-20996,900.00,[Redacted],,,,,,,
Nottinghamshire County Council,1111/1001,Children and Young People,CYP,Supplies & Services,DEA,18/12/2015,11-20997,1260.00,[Redacted],,,,,,,
Nottinghamshire County Council,1111/1001,Children and Young People,CYP,Supplies & Services,DEA,21/12/2015,11-20994,2250.00,[Redacted],,,,,,,
Nottinghamshire County Council,1111/1001,Children and Young People,CYP,Supplies & Services,DEA,22/12/2015,11-21050,586.00,Clearwater Environmental Ltd,,,,,,,
Nottinghamshire County Council,1111/1001,Children and Young People,CYP,Supplies & Services,DEA,23/12/2015,11-21062,7875.00,Schofield Education,,,,,,,
Nottinghamshire County Council,1111/1001,Children and Young People,CYP,Supplies & Services,DEA,23/12/2015,11-21132,780.00,Nbv Enterprise Solutions Ltd,,,,,,,
Nottinghamshire County Council,1111/1001,Children and Young People,CYP,Supplies & Services,DEA,23/12/2015,11-21134,865.32,Progressive Care,,,,,,,
Nottinghamshire County Council,1111/1001,Children and Young People,CYP,Supplies & Services,DEA,24/12/2015,11-20849,2844.00,Cambridgshire County Council,,,,,,,
Nottinghamshire County Council,1111/1001,Children and Young People,CYP,Supplies & Services,DEA,24/12/2015,11-20850,2354.00,Cambridgshire County Council,,,,,,,
Nottinghamshire County Council,1111/1001,Children and Young People,CYP,Supplies & Services,DEA,24/12/2015,11-20915,500.00,[Redacted],,,,,,,
Nottinghamshire County Council,1111/1001,Children and Young People,CYP,Supplies & Services,DEA,24/12/2015,11-21176,525.00,The Wright Initiative Ltd,,,,,,,
Nottinghamshire County Council,1111/1001,Children and Young People,CYP,Supplies & Services,DEA,30/12/2015,11-20177,2250.00,[Redacted],,,,,,,
Nottinghamshire County Council,1111/1001,Children and Young People,CYP,Supplies & Services,DEA,30/12/2015,11-20569,537.35,The Aspire Educational Trust,,,,,,,
Nottinghamshire County Council,1111/1001,Children and Young People,CYP,Supplies & Services,DEA,30/12/2015,11-20690,1250.00,The Aspire Educational Trust,,,,,,,
Nottinghamshire County Council,1111/1001,Children and Young People,CYP,Supplies & Services,DEA,30/12/2015,11-20840,2256.55,Chris Few Consultancy Ltd,,,,,,,
Nottinghamshire County Council,1111/1001,Children and Young People,CYP,Supplies & Services,DEA,30/12/2015,11-21278,651.50,APW Consultancy Service Ltd,,,,,,,
Nottinghamshire County Council,1111/1001,Children and Young People,CYP,Supplies & Services,DEA,30/12/2015,11-21279,2685.00,Kids,,,,,,,
Nottinghamshire County Council,1111/1001,Children and Young People,CYP,Supplies & Services,DEA,31/12/2015,11-20432,1306.50,Independent Business Services Ltd,,,,,,,
Nottinghamshire County Council,1111/1001,Children and Young People,CYP,Supplies & Services,DEA,31/12/2015,11-20626,500.00,[Redacted],,,,,,,
Nottinghamshire County Council,1111/1001,Children and Young People,CYP,Supplies & Services,DEA,31/12/2015,11-21284,900.00,[Redacted],,,,,,,
Nottinghamshire County Council,1111/1001,Children and Young People,CYP,Supplies & Services,DFA,02/12/2015,11-20147,507.70,Lantec Services Ltd,,,,,,,
Nottinghamshire County Council,1111/1001,Children and Young People,CYP,Supplies & Services,DFA,07/12/2015,11-14294,576.22,Lantec Services Ltd,,,,,,,
Nottinghamshire County Council,1111/1001,Children and Young People,CYP,Supplies & Services,DFA,11/12/2015,11-15074,507.80,Lantec Services Ltd,,,,,,,
Nottinghamshire County Council,1111/1001,Children and Young People,CYP,Supplies & Services,DGA,02/12/2015,11-10046,805.50,[Redacted],,,,,,,
Nottinghamshire County Council,1111/1001,Children and Young People,CYP,Supplies & Services,DHA,02/12/2015,11-20142,2340.00,Charanga Ltd,,,,,,,
Nottinghamshire County Council,1111/1001,Children and Young People,CYP,Supplies & Services,DHA,04/12/2015,11-20329,7514.53,Fostering Network,,,,,,,
Nottinghamshire County Council,1111/1001,Children and Young People,CYP,Supplies & Services,DHA,08/12/2015,11-20438,11385.00,Charanga Ltd,,,,,,,
Nottinghamshire County Council,1111/1001,Children and Young People,CYP,Supplies & Services,DKA,01/12/2015,11-20130,571.29,Fusion Independence,,,,,,,
Nottinghamshire County Council,1111/1001,Children and Young People,CYP,Supplies & Services,DKA,04/12/2015,11-20336,1492.60,Framework Housing Association,,,,,,,
Nottinghamshire County Council,1111/1001,Children and Young People,CYP,Supplies & Services,DKA,16/12/2015,11-15723,1000.00,Ernehale Junior School Academy,,,,,,,
Nottinghamshire County Council,1111/1001,Children and Young People,CYP,Supplies & Services,DKA,16/12/2015,11-15724,1000.00,Larkfields Junior School,,,,,,,
Nottinghamshire County Council,1111/1001,Children and Young People,CYP,Supplies & Services,DKA,16/12/2015,11-15725,1000.00,Abbey Primary School,,,,,,,
Nottinghamshire County Council,1111/1001,Children and Young People,CYP,Supplies & Services,DKA,23/12/2015,11-18400,10582.25,Forest Town Garibaldi Comp School,,,,,,,
Nottinghamshire County Council,1111/1001,Children and Young People,CYP,Supplies & Services,DKA,23/12/2015,11-21133,3234.14,Framework Housing Association,,,,,,,
Nottinghamshire County Council,1111/1001,Children and Young People,CYP,Supplies & Services,DKA,24/12/2015,11-21211,277.88,Jani Homes CIC,,,,,,,
Nottinghamshire County Council,1111/1001,Children and Young People,CYP,Third Party Payments,EAA,09/12/2015,11-20156,163950.00,Rushcliffe Borough Council,,,,,,,
Nottinghamshire County Council,1111/1001,Children and Young People,CYP,Third Party Payments,EBA,09/12/2015,11-20139,1221.11,Hitch N Hike Ltd,,,,,,,
Nottinghamshire County Council,1111/1001,Children and Young People,CYP,Third Party Payments,EBA,09/12/2015,11-20146,516.68,On Yer Bike,,,,,,,
Nottinghamshire County Council,1111/1001,Children and Young People,CYP,Third Party Payments,EBA,14/12/2015,11-20632,3624.75,Nisai Virtual Academy Ltd,,,,,,,
Nottinghamshire County Council,1111/1001,Children and Young People,CYP,Third Party Payments,EBA,14/12/2015,11-20660,1100.32,Hitch N Hike Ltd,,,,,,,
Nottinghamshire County Council,1111/1001,Children and Young People,CYP,Third Party Payments,EBA,18/12/2015,11-20917,3004.17,Westwoodside C of E Primary Academy,,,,,,,
Nottinghamshire County Council,1111/1001,Children and Young People,CYP,Third Party Payments,EBA,29/12/2015,11-18191,17773.62,East Leake Schools Ltd,,,,,,,
Nottinghamshire County Council,1111/1001,Children and Young People,CYP,Third Party Payments,EBA,29/12/2015,11-18194,13857.63,Transform Schools,,,,,,,
Nottinghamshire County Council,1111/1001,Children and Young People,CYP,Third Party Payments,EBA,29/12/2015,11-18195,4448.02,Transform Schools,,,,,,,
Nottinghamshire County Council,1111/1001,Children and Young People,CYP,Third Party Payments,EBA,29/12/2015,11-18196,26113.01,Transform Schools,,,,,,,
Nottinghamshire County Council,1111/1001,Children and Young People,CYP,Third Party Payments,EBA,29/12/2015,11-18197,1533.40,Transform Schools,,,,,,,
Nottinghamshire County Council,1111/1001,Children and Young People,CYP,Third Party Payments,EBA,29/12/2015,11-18198,42744.00,Transform Schools,,,,,,,
Nottinghamshire County Council,1111/1001,Children and Young People,CYP,Third Party Payments,EBA,29/12/2015,11-18199,18917.75,Transform Schools,,,,,,,
Nottinghamshire County Council,1111/1001,Children and Young People,CYP,Third Party Payments,EBA,29/12/2015,11-18200,183445.21,Transform Schools,,,,,,,
Nottinghamshire County Council,1111/1001,Children and Young People,CYP,Third Party Payments,EBA,29/12/2015,11-18201,113407.21,Transform Schools,,,,,,,
Nottinghamshire County Council,1111/1001,Children and Young People,CYP,Third Party Payments,EBA,29/12/2015,11-18202,1481418.36,Transform Schools,,,,,,,
Nottinghamshire County Council,1111/1001,Children and Young People,CYP,Third Party Payments,EBA,29/12/2015,11-18204,239603.87,East Leake Schools Ltd,,,,,,,
Nottinghamshire County Council,1111/1001,Children and Young People,CYP,Third Party Payments,EDA,01/12/2015,11-13677,2668.00,Harworth C Of E Primary School,,,,,,,
Nottinghamshire County Council,1111/1001,Children and Young People,CYP,Third Party Payments,EDA,03/12/2015,11-13842,51403.00,The Beech Academy,,,,,,,
Nottinghamshire County Council,1111/1001,Children and Young People,CYP,Third Party Payments,EDA,03/12/2015,11-13843,5000.00,The Beech Academy,,,,,,,
Nottinghamshire County Council,1111/1001,Children and Young People,CYP,Third Party Payments,EDA,03/12/2015,11-13844,1666.00,Foxwood Academy,,,,,,,
Nottinghamshire County Council,1111/1001,Children and Young People,CYP,Third Party Payments,EDA,03/12/2015,11-13845,81710.00,Foxwood Academy,,,,,,,
Nottinghamshire County Council,1111/1001,Children and Young People,CYP,Third Party Payments,EDA,04/12/2015,11-14122,3205.00,Holy Cross Catholic Voluntary Acade,,,,,,,
Nottinghamshire County Council,1111/1001,Children and Young People,CYP,Third Party Payments,EDA,07/12/2015,11-14296,3808.00,Retford Oaks Academy,,,,,,,
Nottinghamshire County Council,1111/1001,Children and Young People,CYP,Third Party Payments,EDA,07/12/2015,11-14297,18250.00,Quarrydale Academy,,,,,,,
Nottinghamshire County Council,1111/1001,Children and Young People,CYP,Third Party Payments,EDA,14/12/2015,11-14295,1558.00,Leverton C Of E Academy,,,,,,,
Nottinghamshire County Council,1111/1001,Children and Young People,CYP,Third Party Payments,EDA,14/12/2015,11-15354,1260.00,St Patricks Catholic Voluntary Acad,,,,,,,
Nottinghamshire County Council,1111/1001,Children and Young People,CYP,Third Party Payments,EDA,14/12/2015,11-15362,15661.00,Hillside Academy,,,,,,,
Nottinghamshire County Council,1111/1001,Children and Young People,CYP,Third Party Payments,EDA,14/12/2015,11-15365,2333.00,Bishop Alexander LEAD Academy,,,,,,,
Nottinghamshire County Council,1111/1001,Children and Young People,CYP,Third Party Payments,EDA,14/12/2015,11-15367,10980.00,East Leake Academy,,,,,,,
Nottinghamshire County Council,1111/1001,Children and Young People,CYP,Third Party Payments,EDA,14/12/2015,11-15369,5616.00,St Patricks Catholic Voluntary Acad,,,,,,,
Nottinghamshire County Council,1111/1001,Children and Young People,CYP,Third Party Payments,EDA,14/12/2015,11-15372,7452.00,Holy Trinity Catholic Voluntary Aca,,,,,,,
Nottinghamshire County Council,1111/1001,Children and Young People,CYP,Third Party Payments,EDA,14/12/2015,11-15375,22032.00,St Philip Neri with St Bede Vol Aca,,,,,,,
Nottinghamshire County Council,1111/1001,Children and Young People,CYP,Third Party Payments,EDA,14/12/2015,11-15378,9300.00,The Flying High Academy,,,,,,,
Nottinghamshire County Council,1111/1001,Children and Young People,CYP,Third Party Payments,EDA,14/12/2015,11-15379,1000.00,Sir Donald Bailey Academy,,,,,,,
Nottinghamshire County Council,1111/1001,Children and Young People,CYP,Third Party Payments,EDA,14/12/2015,11-15382,2000.00,The Newark Academy,,,,,,,
Nottinghamshire County Council,1111/1001,Children and Young People,CYP,Third Party Payments,EDA,14/12/2015,11-15383,15000.00,The Newark Academy,,,,,,,
Nottinghamshire County Council,1111/1001,Children and Young People,CYP,Third Party Payments,EDA,14/12/2015,11-15384,8666.00,Magnus Church of England Academy,,,,,,,
Nottinghamshire County Council,1111/1001,Children and Young People,CYP,Third Party Payments,EDA,14/12/2015,11-15385,2000.00,Bishop Alexander LEAD Academy,,,,,,,
Nottinghamshire County Council,1111/1001,Children and Young People,CYP,Third Party Payments,EDA,14/12/2015,11-15386,4999.00,Barnby Road Academy Prim & Nursery,,,,,,,
Nottinghamshire County Council,1111/1001,Children and Young People,CYP,Third Party Payments,EDA,14/12/2015,11-15387,16300.00,Dukeries Academy,,,,,,,
Nottinghamshire County Council,1111/1001,Children and Young People,CYP,Third Party Payments,EDA,14/12/2015,11-15388,6339.00,Quarrydale Academy,,,,,,,
Nottinghamshire County Council,1111/1001,Children and Young People,CYP,Third Party Payments,EDA,14/12/2015,11-15389,4227.00,Quarrydale Academy,,,,,,,
Nottinghamshire County Council,1111/1001,Children and Young People,CYP,Third Party Payments,EDA,14/12/2015,11-15390,6339.00,Skegby Junior Academy,,,,,,,
Nottinghamshire County Council,1111/1001,Children and Young People,CYP,Third Party Payments,EDA,14/12/2015,11-15392,6339.00,Sutton Community Academy,,,,,,,
Nottinghamshire County Council,1111/1001,Children and Young People,CYP,Third Party Payments,EDA,14/12/2015,11-15394,3592.00,The Flying High Academy,,,,,,,
Nottinghamshire County Council,1111/1001,Children and Young People,CYP,Third Party Payments,EDA,14/12/2015,11-15395,6339.00,Ashfield Academy,,,,,,,
Nottinghamshire County Council,1111/1001,Children and Young People,CYP,Third Party Payments,EDA,15/12/2015,11-15403,3428.00,The Bramcote School,,,,,,,
Nottinghamshire County Council,1111/1001,Children and Young People,CYP,Third Party Payments,EDA,15/12/2015,11-15405,6330.00,Tuxford Academy,,,,,,,
Nottinghamshire County Council,1111/1001,Children and Young People,CYP,Third Party Payments,EDA,15/12/2015,11-15407,6680.00,Tuxford Primary Academy,,,,,,,
Nottinghamshire County Council,1111/1001,Children and Young People,CYP,Third Party Payments,EDA,15/12/2015,11-15409,660.00,The Kimberley School (Academy),,,,,,,
Nottinghamshire County Council,1111/1001,Children and Young People,CYP,Third Party Payments,EDA,15/12/2015,11-15410,2580.00,South Nottinghamshire Academy,,,,,,,
Nottinghamshire County Council,1111/1001,Children and Young People,CYP,Third Party Payments,EDA,15/12/2015,11-15411,8080.00,Rushcliffe School Academy Trust,,,,,,,
Nottinghamshire County Council,1111/1001,Children and Young People,CYP,Third Party Payments,EDA,15/12/2015,11-15715,5494.00,Flying High Trust Beeston Fields Pr,,,,,,,
Nottinghamshire County Council,1111/1001,Children and Young People,CYP,Third Party Payments,EDA,15/12/2015,11-15716,7386.00,Flying High Trust Beeston Fields Pr,,,,,,,
Nottinghamshire County Council,1111/1001,Children and Young People,CYP,Third Party Payments,EDA,16/12/2015,11-15881,4865.00,Edwalton Primary (Academy),,,,,,,
Nottinghamshire County Council,1111/1001,Children and Young People,CYP,Third Party Payments,EDA,16/12/2015,11-15882,28842.00,Edwalton Primary (Academy),,,,,,,
Nottinghamshire County Council,1111/1001,Children and Young People,CYP,Third Party Payments,EDA,21/12/2015,11-16133,10085.00,Chetwynd Road Primary Academy,,,,,,,
Nottinghamshire County Council,1111/1001,Children and Young People,CYP,Third Party Payments,EDA,21/12/2015,11-16134,14457.00,George Spencer Academy,,,,,,,
Nottinghamshire County Council,1111/1001,Children and Young People,CYP,Third Party Payments,EDA,30/12/2015,11-14298,33580.00,Skegby Junior Academy,,,,,,,
Nottinghamshire County Council,1111/1001,Children and Young People,CYP,Third Party Payments,EDA,30/12/2015,11-14299,8000.00,Kirkby College,,,,,,,
Nottinghamshire County Council,1111/1001,Children and Young People,CYP,Third Party Payments,EDA,30/12/2015,11-14300,13365.00,Hall Park Academy,,,,,,,
Nottinghamshire County Council,1111/1001,Children and Young People,CYP,Third Party Payments,EDA,30/12/2015,11-14301,6885.00,The Priory Catholic Voluntary Acade,,,,,,,
Nottinghamshire County Council,1111/1001,Children and Young People,CYP,Third Party Payments,EFA,01/12/2015,11-20114,750.00,Nisai Virtual Academy Ltd,,,,,,,
Nottinghamshire County Council,1111/1001,Children and Young People,CYP,Third Party Payments,EFA,03/12/2015,11-20095,6330.20,Maple Hayes School,,,,,,,
Nottinghamshire County Council,1111/1001,Children and Young People,CYP,Third Party Payments,EFA,03/12/2015,11-20253,3736.00,Teaching Personnel Ltd,,,,,,,
Nottinghamshire County Council,1111/1001,Children and Young People,CYP,Third Party Payments,EFA,03/12/2015,11-20256,690.00,First Class Tailored Solutions Ltd,,,,,,,
Nottinghamshire County Council,1111/1001,Children and Young People,CYP,Third Party Payments,EFA,03/12/2015,11-20260,690.00,First Class Tailored Solutions Ltd,,,,,,,
Nottinghamshire County Council,1111/1001,Children and Young People,CYP,Third Party Payments,EFA,03/12/2015,11-20262,690.00,First Class Tailored Solutions Ltd,,,,,,,
Nottinghamshire County Council,1111/1001,Children and Young People,CYP,Third Party Payments,EFA,03/12/2015,11-20263,690.00,First Class Tailored Solutions Ltd,,,,,,,
Nottinghamshire County Council,1111/1001,Children and Young People,CYP,Third Party Payments,EFA,03/12/2015,11-20264,3736.00,Teaching Personnel Ltd,,,,,,,
Nottinghamshire County Council,1111/1001,Children and Young People,CYP,Third Party Payments,EFA,04/12/2015,11-20311,3736.00,Teaching Personnel Ltd,,,,,,,
Nottinghamshire County Council,1111/1001,Children and Young People,CYP,Third Party Payments,EFA,04/12/2015,11-20312,690.00,First Class Tailored Solutions Ltd,,,,,,,
Nottinghamshire County Council,1111/1001,Children and Young People,CYP,Third Party Payments,EFA,04/12/2015,11-20313,690.00,First Class Tailored Solutions Ltd,,,,,,,
Nottinghamshire County Council,1111/1001,Children and Young People,CYP,Third Party Payments,EFA,04/12/2015,11-20314,690.00,First Class Tailored Solutions Ltd,,,,,,,
Nottinghamshire County Council,1111/1001,Children and Young People,CYP,Third Party Payments,EFA,04/12/2015,11-20315,690.00,First Class Tailored Solutions Ltd,,,,,,,
Nottinghamshire County Council,1111/1001,Children and Young People,CYP,Third Party Payments,EFA,07/12/2015,11-20134,3810.00,Creative Family Solutions Ltd,,,,,,,
Nottinghamshire County Council,1111/1001,Children and Young People,CYP,Third Party Payments,EFA,07/12/2015,11-20370,2560.00,East Midlands Care Matters,,,,,,,
Nottinghamshire County Council,1111/1001,Children and Young People,CYP,Third Party Payments,EFA,08/12/2015,11-20399,44144.67,Doncaster Deaf Trust,,,,,,,
Nottinghamshire County Council,1111/1001,Children and Young People,CYP,Third Party Payments,EFA,09/12/2015,11-20418,3150.00,Horizon Care & Education Group Ltd,,,,,,,
Nottinghamshire County Council,1111/1001,Children and Young People,CYP,Third Party Payments,EFA,09/12/2015,11-20453,1010.87,Nisai Virtual Academy Ltd,,,,,,,
Nottinghamshire County Council,1111/1001,Children and Young People,CYP,Third Party Payments,EFA,09/12/2015,11-20471,3736.00,Teaching Personnel Ltd,,,,,,,
Nottinghamshire County Council,1111/1001,Children and Young People,CYP,Third Party Payments,EFA,14/12/2015,11-20676,3240.00,Rainbow Horses Learning Centre,,,,,,,
Nottinghamshire County Council,1111/1001,Children and Young People,CYP,Third Party Payments,EFA,14/12/2015,11-20688,3736.00,Teaching Personnel Ltd,,,,,,,
Nottinghamshire County Council,1111/1001,Children and Young People,CYP,Third Party Payments,EFA,14/12/2015,11-20689,3736.00,Teaching Personnel Ltd,,,,,,,
Nottinghamshire County Council,1111/1001,Children and Young People,CYP,Third Party Payments,EFA,15/12/2015,11-20559,2362.50,Priory Group,,,,,,,
Nottinghamshire County Council,1111/1001,Children and Young People,CYP,Third Party Payments,EFA,15/12/2015,11-20763,690.00,First Class Tailored Solutions Ltd,,,,,,,
Nottinghamshire County Council,1111/1001,Children and Young People,CYP,Third Party Payments,EFA,15/12/2015,11-20764,690.00,First Class Tailored Solutions Ltd,,,,,,,
Nottinghamshire County Council,1111/1001,Children and Young People,CYP,Third Party Payments,EFA,15/12/2015,11-20765,690.00,First Class Tailored Solutions Ltd,,,,,,,
Nottinghamshire County Council,1111/1001,Children and Young People,CYP,Third Party Payments,EFA,15/12/2015,11-20766,690.00,First Class Tailored Solutions Ltd,,,,,,,
Nottinghamshire County Council,1111/1001,Children and Young People,CYP,Third Party Payments,EFA,15/12/2015,11-20767,690.00,First Class Tailored Solutions Ltd,,,,,,,
Nottinghamshire County Council,1111/1001,Children and Young People,CYP,Third Party Payments,EFA,16/12/2015,11-20623,30405.13,Real Education Ltd,,,,,,,
Nottinghamshire County Council,1111/1001,Children and Young People,CYP,Third Party Payments,EFA,16/12/2015,11-20777,4200.00,Rainbow Horses Learning Centre,,,,,,,
Nottinghamshire County Council,1111/1001,Children and Young People,CYP,Third Party Payments,EFA,16/12/2015,11-20780,522.00,Alternative Programme Education Ltd,,,,,,,
Nottinghamshire County Council,1111/1001,Children and Young People,CYP,Third Party Payments,EFA,16/12/2015,11-20786,1014.00,Alternative Programme Education Ltd,,,,,,,
Nottinghamshire County Council,1111/1001,Children and Young People,CYP,Third Party Payments,EFA,16/12/2015,11-20800,2160.00,Rainbow Horses Learning Centre,,,,,,,
Nottinghamshire County Council,1111/1001,Children and Young People,CYP,Third Party Payments,EFA,16/12/2015,11-20815,83248.59,First Class Tailored Solutions Ltd,,,,,,,
Nottinghamshire County Council,1111/1001,Children and Young People,CYP,Third Party Payments,EFA,17/12/2015,11-20852,9031.00,Real Education Ltd,,,,,,,
Nottinghamshire County Council,1111/1001,Children and Young People,CYP,Third Party Payments,EFA,17/12/2015,11-20853,2204.00,Real Education Ltd,,,,,,,
Nottinghamshire County Council,1111/1001,Children and Young People,CYP,Third Party Payments,EFA,17/12/2015,11-20873,3364.00,Excel for Training @ Chesterfield C,,,,,,,
Nottinghamshire County Council,1111/1001,Children and Young People,CYP,Third Party Payments,EFA,18/12/2015,11-20419,1950.00,Horizon Care & Education Group Ltd,,,,,,,
Nottinghamshire County Council,1111/1001,Children and Young People,CYP,Third Party Payments,EFA,18/12/2015,11-20838,15841.50,New Direction Inclusive Education,,,,,,,
Nottinghamshire County Council,1111/1001,Children and Young People,CYP,Third Party Payments,EFA,18/12/2015,11-20914,5460.00,Real Education Ltd,,,,,,,
Nottinghamshire County Council,1111/1001,Children and Young People,CYP,Third Party Payments,EFA,18/12/2015,11-20933,1890.00,Good Apple Education,,,,,,,
Nottinghamshire County Council,1111/1001,Children and Young People,CYP,Third Party Payments,EFA,18/12/2015,11-20945,5345.00,Creative Family Solutions Ltd,,,,,,,
Nottinghamshire County Council,1111/1001,Children and Young People,CYP,Third Party Payments,EFA,18/12/2015,11-20946,6300.00,Creative Family Solutions Ltd,,,,,,,
Nottinghamshire County Council,1111/1001,Children and Young People,CYP,Third Party Payments,EFA,18/12/2015,11-20947,2117.00,First Class Tailored Solutions Ltd,,,,,,,
Nottinghamshire County Council,1111/1001,Children and Young People,CYP,Third Party Payments,EFA,18/12/2015,11-20968,7685.00,Creative Family Solutions Ltd,,,,,,,
Nottinghamshire County Council,1111/1001,Children and Young People,CYP,Third Party Payments,EFA,21/12/2015,11-21017,4350.00,Nisai Virtual Academy Ltd,,,,,,,
Nottinghamshire County Council,1111/1001,Children and Young People,CYP,Third Party Payments,EFA,22/12/2015,11-21063,3047.74,Castle Homes Care Ltd,,,,,,,
Nottinghamshire County Council,1111/1001,Children and Young People,CYP,Third Party Payments,EFA,23/12/2015,11-21091,1500.00,Nisai Virtual Academy Ltd,,,,,,,
Nottinghamshire County Council,1111/1001,Children and Young People,CYP,Third Party Payments,EFA,23/12/2015,11-21093,11754.75,Nisai Virtual Academy Ltd,,,,,,,
Nottinghamshire County Council,1111/1001,Children and Young People,CYP,Third Party Payments,EFA,23/12/2015,11-21121,690.00,First Class Tailored Solutions Ltd,,,,,,,
Nottinghamshire County Council,1111/1001,Children and Young People,CYP,Third Party Payments,EFA,23/12/2015,11-21122,690.00,First Class Tailored Solutions Ltd,,,,,,,
Nottinghamshire County Council,1111/1001,Children and Young People,CYP,Third Party Payments,EFA,23/12/2015,11-21123,690.00,First Class Tailored Solutions Ltd,,,,,,,
Nottinghamshire County Council,1111/1001,Children and Young People,CYP,Third Party Payments,EFA,23/12/2015,11-21124,690.00,First Class Tailored Solutions Ltd,,,,,,,
Nottinghamshire County Council,1111/1001,Children and Young People,CYP,Third Party Payments,EFA,23/12/2015,11-21125,3736.00,Teaching Personnel Ltd,,,,,,,
Nottinghamshire County Council,1111/1001,Children and Young People,CYP,Third Party Payments,EFA,23/12/2015,11-21126,3736.00,Teaching Personnel Ltd,,,,,,,
Nottinghamshire County Council,1111/1001,Children and Young People,CYP,Third Party Payments,EFA,23/12/2015,11-21138,4564.17,Dagfa House School,,,,,,,
Nottinghamshire County Council,1111/1001,Children and Young People,CYP,Third Party Payments,EFA,29/12/2015,11-21252,3736.00,Teaching Personnel Ltd,,,,,,,
Nottinghamshire County Council,1111/1001,Children and Young People,CYP,Third Party Payments,EFA,30/12/2015,11-20461,8705.00,Stone Soup Academy,,,,,,,
Nottinghamshire County Council,1111/1001,Children and Young People,CYP,Third Party Payments,EFA,30/12/2015,11-21255,690.00,First Class Tailored Solutions Ltd,,,,,,,
Nottinghamshire County Council,1111/1001,Children and Young People,CYP,Third Party Payments,EFA,31/12/2015,11-20331,4840.00,East Midlands Vocational Academy Lt,,,,,,,
Nottinghamshire County Council,1111/1001,Children and Young People,CYP,Third Party Payments,EFA,31/12/2015,11-20349,2380.00,Education & Youth Services Ltd,,,,,,,
Nottinghamshire County Council,1111/1001,Children and Young People,CYP,Third Party Payments,EFA,31/12/2015,11-20440,33237.00,Exeter Royal Academy For Deaf Educa,,,,,,,
Nottinghamshire County Council,1111/1001,Children and Young People,CYP,Third Party Payments,EFA,31/12/2015,11-20855,4760.00,East Midlands Vocational Academy Lt,,,,,,,
Nottinghamshire County Council,1111/1001,Children and Young People,CYP,Third Party Payments,EFA,31/12/2015,11-20887,2060.00,East Midlands Vocational Academy Lt,,,,,,,
Nottinghamshire County Council,1111/1001,Children and Young People,CYP,Third Party Payments,EFA,31/12/2015,11-20978,2095.00,First Universal Enterprises Ltd,,,,,,,
Nottinghamshire County Council,1111/1001,Children and Young People,CYP,Third Party Payments,EGA,01/12/2015,11-13678,952.00,Fernwood Day Nursery Ltd,,,,,,,
Nottinghamshire County Council,1111/1001,Children and Young People,CYP,Third Party Payments,EGA,01/12/2015,11-13679,514.50,Alphabet House Nursery,,,,,,,
Nottinghamshire County Council,1111/1001,Children and Young People,CYP,Third Party Payments,EGA,01/12/2015,11-13680,535.50,Papermoon Day Nursery Sutton In Ash,,,,,,,
Nottinghamshire County Council,1111/1001,Children and Young People,CYP,Third Party Payments,EGA,01/12/2015,11-13681,563.50,Papermoon Day Nursery,,,,,,,
Nottinghamshire County Council,1111/1001,Children and Young People,CYP,Third Party Payments,EGA,01/12/2015,11-13682,770.00,Brooklyn Day Nursery,,,,,,,
Nottinghamshire County Council,1111/1001,Children and Young People,CYP,Third Party Payments,EGA,01/12/2015,11-13683,504.00,Little Bears Day Nursery,,,,,,,
Nottinghamshire County Council,1111/1001,Children and Young People,CYP,Third Party Payments,EGA,01/12/2015,11-13684,878.50,Wollaton Village Day Nurseries,,,,,,,
Nottinghamshire County Council,1111/1001,Children and Young People,CYP,Third Party Payments,EGA,01/12/2015,11-13685,588.00,Leos Childrens Nurseries Ltd,,,,,,,
Nottinghamshire County Council,1111/1001,Children and Young People,CYP,Third Party Payments,EGA,01/12/2015,11-13686,2037.00,JPAC Ltd,,,,,,,
Nottinghamshire County Council,1111/1001,Children and Young People,CYP,Third Party Payments,EGA,01/12/2015,11-20088,15019.28,Inspire Supported Accommodation Ltd,,,,,,,
Nottinghamshire County Council,1111/1001,Children and Young People,CYP,Third Party Payments,EGA,01/12/2015,11-20090,10285.80,Chrysalis Consortium Ltd,,,,,,,
Nottinghamshire County Council,1111/1001,Children and Young People,CYP,Third Party Payments,EGA,01/12/2015,11-20099,8325.00,Horizon Care & Education Group Ltd,,,,,,,
Nottinghamshire County Council,1111/1001,Children and Young People,CYP,Third Party Payments,EGA,01/12/2015,11-20108,2910.00,Compass Fostering Central Ltd,,,,,,,
Nottinghamshire County Council,1111/1001,Children and Young People,CYP,Third Party Payments,EGA,01/12/2015,11-20115,21275.16,Banya Family Placement Agency Ltd,,,,,,,
Nottinghamshire County Council,1111/1001,Children and Young People,CYP,Third Party Payments,EGA,01/12/2015,11-20116,3128.70,Banya Family Placement Agency Ltd,,,,,,,
Nottinghamshire County Council,1111/1001,Children and Young People,CYP,Third Party Payments,EGA,01/12/2015,11-20127,61820.70,The Place Young Peoples Company Ltd,,,,,,,
Nottinghamshire County Council,1111/1001,Children and Young People,CYP,Third Party Payments,EGA,02/12/2015,11-13748,1505.00,Carnarvon Pre-School,,,,,,,
Nottinghamshire County Council,1111/1001,Children and Young People,CYP,Third Party Payments,EGA,02/12/2015,11-20086,4071.30,Jani Homes CIC,,,,,,,
Nottinghamshire County Council,1111/1001,Children and Young People,CYP,Third Party Payments,EGA,02/12/2015,11-20102,776.88,Framework Housing Association,,,,,,,
Nottinghamshire County Council,1111/1001,Children and Young People,CYP,Third Party Payments,EGA,02/12/2015,11-20194,1130074.33,Nottinghamshire Healthcare Nhs F Tr,,,,,,,
Nottinghamshire County Council,1111/1001,Children and Young People,CYP,Third Party Payments,EGA,03/12/2015,11-20240,6080.84,Futureminds Social Enterprise Ltd,,,,,,,
Nottinghamshire County Council,1111/1001,Children and Young People,CYP,Third Party Payments,EGA,04/12/2015,11-20270,30730.69,Nottinghamshire YMCA (HO),,,,,,,
Nottinghamshire County Council,1111/1001,Children and Young People,CYP,Third Party Payments,EGA,07/12/2015,11-14254,11605.20,Abbey Hill Primary & Nursery School,,,,,,,
Nottinghamshire County Council,1111/1001,Children and Young People,CYP,Third Party Payments,EGA,07/12/2015,11-14255,598.59,All Saints C Of E Primary School,,,,,,,
Nottinghamshire County Council,1111/1001,Children and Young People,CYP,Third Party Payments,EGA,07/12/2015,11-14256,534.45,L Kong Ltd,,,,,,,
Nottinghamshire County Council,1111/1001,Children and Young People,CYP,Third Party Payments,EGA,07/12/2015,11-14257,7482.30,Blidworth Oaks Primary School,,,,,,,
Nottinghamshire County Council,1111/1001,Children and Young People,CYP,Third Party Payments,EGA,07/12/2015,11-14258,1068.90,[Redacted],,,,,,,
Nottinghamshire County Council,1111/1001,Children and Young People,CYP,Third Party Payments,EGA,07/12/2015,11-14259,1852.76,Almond Tree Childminding,,,,,,,
Nottinghamshire County Council,1111/1001,Children and Young People,CYP,Third Party Payments,EGA,07/12/2015,11-14260,687.15,Venita's Chilldminding Service,,,,,,,
Nottinghamshire County Council,1111/1001,Children and Young People,CYP,Third Party Payments,EGA,07/12/2015,11-14261,1068.90,[Redacted],,,,,,,
Nottinghamshire County Council,1111/1001,Children and Young People,CYP,Third Party Payments,EGA,07/12/2015,11-14262,4745.06,Grosvenor House Day Nursery,,,,,,,
Nottinghamshire County Council,1111/1001,Children and Young People,CYP,Third Party Payments,EGA,07/12/2015,11-20369,4760.00,Real Education Ltd,,,,,,,
Nottinghamshire County Council,1111/1001,Children and Young People,CYP,Third Party Payments,EGA,07/12/2015,11-20371,1616.00,Real Education Ltd,,,,,,,
Nottinghamshire County Council,1111/1001,Children and Young People,CYP,Third Party Payments,EGA,07/12/2015,11-20385,2023.50,The Appropriate Adult Service Ltd,,,,,,,
Nottinghamshire County Council,1111/1001,Children and Young People,CYP,Third Party Payments,EGA,08/12/2015,11-20402,66557.10,The National Fostering Agency,,,,,,,
Nottinghamshire County Council,1111/1001,Children and Young People,CYP,Third Party Payments,EGA,08/12/2015,11-20403,66557.10,The National Fostering Agency,,,,,,,
Nottinghamshire County Council,1111/1001,Children and Young People,CYP,Third Party Payments,EGA,09/12/2015,11-14928,1412.25,Ace Cars,,,,,,,
Nottinghamshire County Council,1111/1001,Children and Young People,CYP,Third Party Payments,EGA,09/12/2015,11-20417,14859.39,Capstone Foster Care Ltd,,,,,,,
Nottinghamshire County Council,1111/1001,Children and Young People,CYP,Third Party Payments,EGA,09/12/2015,11-20420,3214.28,Hope Fostering Services Ltd,,,,,,,
Nottinghamshire County Council,1111/1001,Children and Young People,CYP,Third Party Payments,EGA,09/12/2015,11-20465,3169.53,Capstone Foster Care Ltd,,,,,,,
Nottinghamshire County Council,1111/1001,Children and Young People,CYP,Third Party Payments,EGA,09/12/2015,11-20498,103142.87,Esland North Ltd,,,,,,,
Nottinghamshire County Council,1111/1001,Children and Young People,CYP,Third Party Payments,EGA,09/12/2015,11-20506,9070.80,Hope Fostering Services Ltd,,,,,,,
Nottinghamshire County Council,1111/1001,Children and Young People,CYP,Third Party Payments,EGA,10/12/2015,11-15046,5497.80,Smarties Private Day Nursery,,,,,,,
Nottinghamshire County Council,1111/1001,Children and Young People,CYP,Third Party Payments,EGA,10/12/2015,11-15047,610.80,Kirkby Under 5's Preschool,,,,,,,
Nottinghamshire County Council,1111/1001,Children and Young People,CYP,Third Party Payments,EGA,10/12/2015,11-15048,1670.75,[Redacted],,,,,,,
Nottinghamshire County Council,1111/1001,Children and Young People,CYP,Third Party Payments,EGA,10/12/2015,11-15067,1925.25,Phoenix Park Nursery,,,,,,,
Nottinghamshire County Council,1111/1001,Children and Young People,CYP,Third Party Payments,EGA,10/12/2015,11-15068,4204.01,Townrow Tiny Tots Ltd,,,,,,,
Nottinghamshire County Council,1111/1001,Children and Young People,CYP,Third Party Payments,EGA,10/12/2015,11-20534,3369.60,The National Fostering Agency,,,,,,,
Nottinghamshire County Council,1111/1001,Children and Young People,CYP,Third Party Payments,EGA,10/12/2015,11-20535,23360.40,Anglia Fostering Agency Ltd,,,,,,,
Nottinghamshire County Council,1111/1001,Children and Young People,CYP,Third Party Payments,EGA,10/12/2015,11-20540,29206.80,Fosterplus Ltd,,,,,,,
Nottinghamshire County Council,1111/1001,Children and Young People,CYP,Third Party Payments,EGA,10/12/2015,11-20566,14260.60,East Midlands Care Matters,,,,,,,
Nottinghamshire County Council,1111/1001,Children and Young People,CYP,Third Party Payments,EGA,10/12/2015,11-20578,3600.00,Royal School For The Deaf,,,,,,,
Nottinghamshire County Council,1111/1001,Children and Young People,CYP,Third Party Payments,EGA,10/12/2015,11-20591,26355.71,GBA Care Ltd,,,,,,,
Nottinghamshire County Council,1111/1001,Children and Young People,CYP,Third Party Payments,EGA,11/12/2015,11-20643,11299.50,Acorn Fostering Services Ltd,,,,,,,
Nottinghamshire County Council,1111/1001,Children and Young People,CYP,Third Party Payments,EGA,11/12/2015,11-20658,7040.00,Fostering People Ltd,,,,,,,
Nottinghamshire County Council,1111/1001,Children and Young People,CYP,Third Party Payments,EGA,14/12/2015,11-15205,1414.50,Scotts Wood Private Day Nursery,,,,,,,
Nottinghamshire County Council,1111/1001,Children and Young People,CYP,Third Party Payments,EGA,14/12/2015,11-15206,1382.76,Serendipity's Day Nursery,,,,,,,
Nottinghamshire County Council,1111/1001,Children and Young People,CYP,Third Party Payments,EGA,14/12/2015,11-15207,667.80,Serendipity's Day Nursery,,,,,,,
Nottinghamshire County Council,1111/1001,Children and Young People,CYP,Third Party Payments,EGA,14/12/2015,11-15208,850.77,Serendipity's Day Nursery,,,,,,,
Nottinghamshire County Council,1111/1001,Children and Young People,CYP,Third Party Payments,EGA,14/12/2015,11-15209,1046.04,Serendipity's Day Nursery,,,,,,,
Nottinghamshire County Council,1111/1001,Children and Young People,CYP,Third Party Payments,EGA,14/12/2015,11-15210,2223.18,Serendipity's Day Nursery,,,,,,,
Nottinghamshire County Council,1111/1001,Children and Young People,CYP,Third Party Payments,EGA,14/12/2015,11-15211,763.20,Serendipity's Day Nursery,,,,,,,
Nottinghamshire County Council,1111/1001,Children and Young People,CYP,Third Party Payments,EGA,14/12/2015,11-15212,721.30,Shaping Futures Day Nursery,,,,,,,
Nottinghamshire County Council,1111/1001,Children and Young People,CYP,Third Party Payments,EGA,14/12/2015,11-15213,1007.40,Smarties Private Day Nursery,,,,,,,
Nottinghamshire County Council,1111/1001,Children and Young People,CYP,Third Party Payments,EGA,14/12/2015,11-15214,582.36,Southfields Pre-School,,,,,,,
Nottinghamshire County Council,1111/1001,Children and Young People,CYP,Third Party Payments,EGA,14/12/2015,11-15215,561.66,Southwell Pre-School,,,,,,,
Nottinghamshire County Council,1111/1001,Children and Young People,CYP,Third Party Payments,EGA,14/12/2015,11-15216,667.92,St Giles Pre-school,,,,,,,
Nottinghamshire County Council,1111/1001,Children and Young People,CYP,Third Party Payments,EGA,14/12/2015,11-15217,1051.56,St Johns Playgroup,,,,,,,
Nottinghamshire County Council,1111/1001,Children and Young People,CYP,Third Party Payments,EGA,14/12/2015,11-15218,952.20,St Mary's Pre-School,,,,,,,
Nottinghamshire County Council,1111/1001,Children and Young People,CYP,Third Party Payments,EGA,14/12/2015,11-15219,1462.80,Stapleford Day Nursery,,,,,,,
Nottinghamshire County Council,1111/1001,Children and Young People,CYP,Third Party Payments,EGA,14/12/2015,11-15220,1523.52,Staunton Montessori Nursery School,,,,,,,
Nottinghamshire County Council,1111/1001,Children and Young People,CYP,Third Party Payments,EGA,14/12/2015,11-15221,1067.09,Stepping Stones II,,,,,,,
Nottinghamshire County Council,1111/1001,Children and Young People,CYP,Third Party Payments,EGA,14/12/2015,11-15222,1041.90,Sutton Bonington Playgroup,,,,,,,
Nottinghamshire County Council,1111/1001,Children and Young People,CYP,Third Party Payments,EGA,14/12/2015,11-15223,1186.80,Sutton Centre Under 5'S Playgroup,,,,,,,
Nottinghamshire County Council,1111/1001,Children and Young People,CYP,Third Party Payments,EGA,14/12/2015,11-15224,804.77,Wellin Lane Playgroup,,,,,,,
Nottinghamshire County Council,1111/1001,Children and Young People,CYP,Third Party Payments,EGA,14/12/2015,11-15225,789.36,Grosvenor House Day Nursery,,,,,,,
Nottinghamshire County Council,1111/1001,Children and Young People,CYP,Third Party Payments,EGA,14/12/2015,11-15226,1921.65,The Learning Tree Nursery,,,,,,,
Nottinghamshire County Council,1111/1001,Children and Young People,CYP,Third Party Payments,EGA,14/12/2015,11-15227,1089.15,The Learning Tree Nursery,,,,,,,
Nottinghamshire County Council,1111/1001,Children and Young People,CYP,Third Party Payments,EGA,14/12/2015,11-15228,1451.76,The Learning Tree Day Nursery 2,,,,,,,
Nottinghamshire County Council,1111/1001,Children and Young People,CYP,Third Party Payments,EGA,14/12/2015,11-15229,985.80,The Learning Tree Day Nursery 2,,,,,,,
Nottinghamshire County Council,1111/1001,Children and Young People,CYP,Third Party Payments,EGA,14/12/2015,11-15230,621.00,The Orange Tree Day Nursery,,,,,,,
Nottinghamshire County Council,1111/1001,Children and Young People,CYP,Third Party Payments,EGA,14/12/2015,11-15231,1650.48,The Secret Garden Private Day Nurse,,,,,,,
Nottinghamshire County Council,1111/1001,Children and Young People,CYP,Third Party Payments,EGA,14/12/2015,11-15232,624.45,The West Bridgford Day Nursery,,,,,,,
Nottinghamshire County Council,1111/1001,Children and Young People,CYP,Third Party Payments,EGA,14/12/2015,11-15233,821.79,Wolds Childcare Ltd,,,,,,,
Nottinghamshire County Council,1111/1001,Children and Young People,CYP,Third Party Payments,EGA,14/12/2015,11-15234,703.80,Thrumpton Kids Clubs,,,,,,,
Nottinghamshire County Council,1111/1001,Children and Young People,CYP,Third Party Payments,EGA,14/12/2015,11-15235,928.05,Tiny Teddies Day Nursery,,,,,,,
Nottinghamshire County Council,1111/1001,Children and Young People,CYP,Third Party Payments,EGA,14/12/2015,11-15236,645.84,Tiny Tots Playgroup,,,,,,,
Nottinghamshire County Council,1111/1001,Children and Young People,CYP,Third Party Payments,EGA,14/12/2015,11-15237,1009.65,Tiny World Mansfield,,,,,,,
Nottinghamshire County Council,1111/1001,Children and Young People,CYP,Third Party Payments,EGA,14/12/2015,11-15238,891.48,Toddlers University (Bee),,,,,,,
Nottinghamshire County Council,1111/1001,Children and Young People,CYP,Third Party Payments,EGA,14/12/2015,11-15240,763.20,Treetops Nursery (Clipstone),,,,,,,
Nottinghamshire County Council,1111/1001,Children and Young People,CYP,Third Party Payments,EGA,14/12/2015,11-15241,1258.56,Treetops Nursery (Clipstone),,,,,,,
Nottinghamshire County Council,1111/1001,Children and Young People,CYP,Third Party Payments,EGA,14/12/2015,11-15242,1181.97,Treetops Nursery,,,,,,,
Nottinghamshire County Council,1111/1001,Children and Young People,CYP,Third Party Payments,EGA,14/12/2015,11-15243,1600.00,Abacus Pre-School,,,,,,,
Nottinghamshire County Council,1111/1001,Children and Young People,CYP,Third Party Payments,EGA,14/12/2015,11-15244,898.35,Young Rascals Day Nursery,,,,,,,
Nottinghamshire County Council,1111/1001,Children and Young People,CYP,Third Party Payments,EGA,14/12/2015,11-15245,821.10,Young Rascals Day Nursery,,,,,,,
Nottinghamshire County Council,1111/1001,Children and Young People,CYP,Third Party Payments,EGA,14/12/2015,11-15246,1213.20,Alphabet House Day Nursery,,,,,,,
Nottinghamshire County Council,1111/1001,Children and Young People,CYP,Third Party Payments,EGA,14/12/2015,11-15247,1079.85,Worksop College,,,,,,,
Nottinghamshire County Council,1111/1001,Children and Young People,CYP,Third Party Payments,EGA,14/12/2015,11-15248,1679.70,Alphabet House Day Nursery WB,,,,,,,
Nottinghamshire County Council,1111/1001,Children and Young People,CYP,Third Party Payments,EGA,14/12/2015,11-15249,2488.20,Woodthorpe Day Nursery Ltd,,,,,,,
Nottinghamshire County Council,1111/1001,Children and Young People,CYP,Third Party Payments,EGA,14/12/2015,11-15250,651.30,Alphabet House Day Nursery Worksop,,,,,,,
Nottinghamshire County Council,1111/1001,Children and Young People,CYP,Third Party Payments,EGA,14/12/2015,11-15251,1318.95,Woodborough Village Pre School,,,,,,,
Nottinghamshire County Council,1111/1001,Children and Young People,CYP,Third Party Payments,EGA,14/12/2015,11-15252,1078.40,Awsworth Schoolhouse Day Nursery,,,,,,,
Nottinghamshire County Council,1111/1001,Children and Young People,CYP,Third Party Payments,EGA,14/12/2015,11-15253,709.47,Wollaton Village Day Nurseries Ltd.,,,,,,,
Nottinghamshire County Council,1111/1001,Children and Young People,CYP,Third Party Payments,EGA,14/12/2015,11-15254,885.78,Balderton Pre-School,,,,,,,
Nottinghamshire County Council,1111/1001,Children and Young People,CYP,Third Party Payments,EGA,14/12/2015,11-15255,1068.90,Balderton Village Day Nursery,,,,,,,
Nottinghamshire County Council,1111/1001,Children and Young People,CYP,Third Party Payments,EGA,14/12/2015,11-15256,1350.33,Wollaton Village Day Nurseries,,,,,,,
Nottinghamshire County Council,1111/1001,Children and Young People,CYP,Third Party Payments,EGA,14/12/2015,11-15257,1200.00,Beacon Hill Day Nursery,,,,,,,
Nottinghamshire County Council,1111/1001,Children and Young People,CYP,Third Party Payments,EGA,14/12/2015,11-15258,1222.68,Wishing Well Day Nursery,,,,,,,
Nottinghamshire County Council,1111/1001,Children and Young People,CYP,Third Party Payments,EGA,14/12/2015,11-15259,531.52,Windmill Kindergarten Playgroup,,,,,,,
Nottinghamshire County Council,1111/1001,Children and Young People,CYP,Third Party Payments,EGA,14/12/2015,11-15260,6140.70,Pretty Windows Ltd,,,,,,,
Nottinghamshire County Council,1111/1001,Children and Young People,CYP,Third Party Payments,EGA,14/12/2015,11-15261,1531.80,Willow Pre-School Playgroup,,,,,,,
Nottinghamshire County Council,1111/1001,Children and Young People,CYP,Third Party Payments,EGA,14/12/2015,11-15262,1711.89,West Bridgford Out Of School Care L,,,,,,,
Nottinghamshire County Council,1111/1001,Children and Young People,CYP,Third Party Payments,EGA,14/12/2015,11-15275,1357.52,Buttercross Pre School,,,,,,,
Nottinghamshire County Council,1111/1001,Children and Young People,CYP,Third Party Payments,EGA,14/12/2015,11-15312,1963.63,Weaverthorpe Pre-School Playgroup,,,,,,,
Nottinghamshire County Council,1111/1001,Children and Young People,CYP,Third Party Payments,EGA,14/12/2015,11-15313,7545.15,Carlton & Gedling Day Nursery,,,,,,,
Nottinghamshire County Council,1111/1001,Children and Young People,CYP,Third Party Payments,EGA,14/12/2015,11-15314,1092.96,Watnall Pre-School Playgroup,,,,,,,
Nottinghamshire County Council,1111/1001,Children and Young People,CYP,Third Party Payments,EGA,14/12/2015,11-15315,2556.45,Village Day Nursery,,,,,,,
Nottinghamshire County Council,1111/1001,Children and Young People,CYP,Third Party Payments,EGA,14/12/2015,11-15316,2430.30,Cherubs Childcare Centre Ladybrook,,,,,,,
Nottinghamshire County Council,1111/1001,Children and Young People,CYP,Third Party Payments,EGA,14/12/2015,11-15317,2999.55,Cherubs Childrens Centre Wynndale,,,,,,,
Nottinghamshire County Council,1111/1001,Children and Young People,CYP,Third Party Payments,EGA,14/12/2015,11-15318,536.82,Trowell Pre School,,,,,,,
Nottinghamshire County Council,1111/1001,Children and Young People,CYP,Third Party Payments,EGA,14/12/2015,11-15319,1332.90,Cherubs Childrens Centre Pleasley,,,,,,,
Nottinghamshire County Council,1111/1001,Children and Young People,CYP,Third Party Payments,EGA,14/12/2015,11-15320,1450.65,Cherubs Ryton Park,,,,,,,
Nottinghamshire County Council,1111/1001,Children and Young People,CYP,Third Party Payments,EGA,14/12/2015,11-15321,537.60,Cherubs Day Nursery,,,,,,,
Nottinghamshire County Council,1111/1001,Children and Young People,CYP,Third Party Payments,EGA,14/12/2015,11-15322,1468.78,Tollerton Playgroup,,,,,,,
Nottinghamshire County Council,1111/1001,Children and Young People,CYP,Third Party Payments,EGA,14/12/2015,11-15323,780.00,Chetwynd Barracks Pre-School,,,,,,,
Nottinghamshire County Council,1111/1001,Children and Young People,CYP,Third Party Payments,EGA,14/12/2015,11-15324,816.96,The Lime Trees,,,,,,,
Nottinghamshire County Council,1111/1001,Children and Young People,CYP,Third Party Payments,EGA,14/12/2015,11-15325,1062.60,Children 1st @ Breedon House,,,,,,,
Nottinghamshire County Council,1111/1001,Children and Young People,CYP,Third Party Payments,EGA,14/12/2015,11-15326,648.90,Breedon House Nurseries Ltd,,,,,,,
Nottinghamshire County Council,1111/1001,Children and Young People,CYP,Third Party Payments,EGA,14/12/2015,11-15327,1722.24,The Lime Trees,,,,,,,
Nottinghamshire County Council,1111/1001,Children and Young People,CYP,Third Party Payments,EGA,14/12/2015,11-15328,600.00,Childrens Corner Day Nursery,,,,,,,
Nottinghamshire County Council,1111/1001,Children and Young People,CYP,Third Party Payments,EGA,14/12/2015,11-15329,1240.20,Shaping Futures Day Nursery,,,,,,,
Nottinghamshire County Council,1111/1001,Children and Young People,CYP,Third Party Payments,EGA,14/12/2015,11-15330,1904.40,Shaping Futures Day Nursery,,,,,,,
Nottinghamshire County Council,1111/1001,Children and Young People,CYP,Third Party Payments,EGA,14/12/2015,11-15331,909.75,Church House Day Nursery,,,,,,,
Nottinghamshire County Council,1111/1001,Children and Young People,CYP,Third Party Payments,EGA,14/12/2015,11-15332,1527.00,Claremont Early Years Ltd,,,,,,,
Nottinghamshire County Council,1111/1001,Children and Young People,CYP,Third Party Payments,EGA,14/12/2015,11-15333,2127.96,Treetops Nurseries Ltd,,,,,,,
Nottinghamshire County Council,1111/1001,Children and Young People,CYP,Third Party Payments,EGA,14/12/2015,11-15334,8161.86,Daisies Day Nursery,,,,,,,
Nottinghamshire County Council,1111/1001,Children and Young People,CYP,Third Party Payments,EGA,14/12/2015,11-15335,4357.94,Daisies Day Nursery,,,,,,,
Nottinghamshire County Council,1111/1001,Children and Young People,CYP,Third Party Payments,EGA,14/12/2015,11-15336,1404.84,Discovery Day Nursery,,,,,,,
Nottinghamshire County Council,1111/1001,Children and Young People,CYP,Third Party Payments,EGA,14/12/2015,11-15337,604.35,Duncroft Day Nursery,,,,,,,
Nottinghamshire County Council,1111/1001,Children and Young People,CYP,Third Party Payments,EGA,14/12/2015,11-15338,1713.42,Fernwood Day Nursery Ltd,,,,,,,
Nottinghamshire County Council,1111/1001,Children and Young People,CYP,Third Party Payments,EGA,14/12/2015,11-15339,2535.59,Fun Farm Day Nursery,,,,,,,
Nottinghamshire County Council,1111/1001,Children and Young People,CYP,Third Party Payments,EGA,14/12/2015,11-15340,1230.74,Gotham Pre-School Playgroup,,,,,,,
Nottinghamshire County Council,1111/1001,Children and Young People,CYP,Third Party Payments,EGA,14/12/2015,11-15341,720.00,Hazel Hurst School,,,,,,,
Nottinghamshire County Council,1111/1001,Children and Young People,CYP,Third Party Payments,EGA,14/12/2015,11-15342,933.30,SPBC Day Care Ltd,,,,,,,
Nottinghamshire County Council,1111/1001,Children and Young People,CYP,Third Party Payments,EGA,14/12/2015,11-15343,1068.90,Hollies Day Nurseries,,,,,,,
Nottinghamshire County Council,1111/1001,Children and Young People,CYP,Third Party Payments,EGA,14/12/2015,11-15344,2287.20,Quinton Day Nurseries T/A Honey Bee,,,,,,,
Nottinghamshire County Council,1111/1001,Children and Young People,CYP,Third Party Payments,EGA,14/12/2015,11-15345,1145.22,Hucknall Pre-School Playgroup,,,,,,,
Nottinghamshire County Council,1111/1001,Children and Young People,CYP,Third Party Payments,EGA,14/12/2015,11-15346,560.70,Jelly Totz Day Nursery,,,,,,,
Nottinghamshire County Council,1111/1001,Children and Young People,CYP,Third Party Payments,EGA,14/12/2015,11-15347,666.31,Willow Brook Pre-School,,,,,,,
Nottinghamshire County Council,1111/1001,Children and Young People,CYP,Third Party Payments,EGA,14/12/2015,11-15348,1908.90,Jubilee House Christian School,,,,,,,
Nottinghamshire County Council,1111/1001,Children and Young People,CYP,Third Party Payments,EGA,14/12/2015,11-15349,534.45,Kidzgrove,,,,,,,
Nottinghamshire County Council,1111/1001,Children and Young People,CYP,Third Party Payments,EGA,14/12/2015,11-15350,1922.66,Killisick Pre-School,,,,,,,
Nottinghamshire County Council,1111/1001,Children and Young People,CYP,Third Party Payments,EGA,14/12/2015,11-15351,2161.08,Whitehouse Day Nursery,,,,,,,
Nottinghamshire County Council,1111/1001,Children and Young People,CYP,Third Party Payments,EGA,14/12/2015,11-15352,616.92,Westdale Pre-School,,,,,,,
Nottinghamshire County Council,1111/1001,Children and Young People,CYP,Third Party Payments,EGA,14/12/2015,11-15353,522.60,Learning Ladder Childcare Ltd,,,,,,,
Nottinghamshire County Council,1111/1001,Children and Young People,CYP,Third Party Payments,EGA,14/12/2015,11-15355,2611.07,Westdale Pre-School,,,,,,,
Nottinghamshire County Council,1111/1001,Children and Young People,CYP,Third Party Payments,EGA,14/12/2015,11-15356,1516.20,Little Kites Playgroup,,,,,,,
Nottinghamshire County Council,1111/1001,Children and Young People,CYP,Third Party Payments,EGA,14/12/2015,11-15357,858.60,Westbourne House Nursery School,,,,,,,
Nottinghamshire County Council,1111/1001,Children and Young People,CYP,Third Party Payments,EGA,14/12/2015,11-15358,2345.60,Leos Childrens Nurseries Ltd,,,,,,,
Nottinghamshire County Council,1111/1001,Children and Young People,CYP,Third Party Payments,EGA,14/12/2015,11-15359,1407.60,Westbourne House Nursery School,,,,,,,
Nottinghamshire County Council,1111/1001,Children and Young People,CYP,Third Party Payments,EGA,14/12/2015,11-15360,2137.80,Little Bears Day Nursery,,,,,,,
Nottinghamshire County Council,1111/1001,Children and Young People,CYP,Third Party Payments,EGA,14/12/2015,11-15361,1068.90,Little Friends Day Nursery,,,,,,,
Nottinghamshire County Council,1111/1001,Children and Young People,CYP,Third Party Payments,EGA,14/12/2015,11-15363,1068.90,Keyworth Primary School,,,,,,,
Nottinghamshire County Council,1111/1001,Children and Young People,CYP,Third Party Payments,EGA,14/12/2015,11-15364,534.45,Zoe's Childcare Ltd,,,,,,,
Nottinghamshire County Council,1111/1001,Children and Young People,CYP,Third Party Payments,EGA,14/12/2015,11-15366,600.00,Young Rascals Day Nursery,,,,,,,
Nottinghamshire County Council,1111/1001,Children and Young People,CYP,Third Party Payments,EGA,14/12/2015,11-15368,972.90,Wollaton Village Day Nurseries,,,,,,,
Nottinghamshire County Council,1111/1001,Children and Young People,CYP,Third Party Payments,EGA,14/12/2015,11-15370,623.56,Windmill Kindergarten Playgroup,,,,,,,
Nottinghamshire County Council,1111/1001,Children and Young People,CYP,Third Party Payments,EGA,14/12/2015,11-15371,1282.08,Willow Pre-School Playgroup,,,,,,,
Nottinghamshire County Council,1111/1001,Children and Young People,CYP,Third Party Payments,EGA,14/12/2015,11-15373,1908.90,Mulberry Bush Day Nursery,,,,,,,
Nottinghamshire County Council,1111/1001,Children and Young People,CYP,Third Party Payments,EGA,14/12/2015,11-15374,1291.50,Westbourne House Nursery School,,,,,,,
Nottinghamshire County Council,1111/1001,Children and Young People,CYP,Third Party Payments,EGA,14/12/2015,11-15376,1080.00,PSLA Newstead Childcare,,,,,,,
Nottinghamshire County Council,1111/1001,Children and Young People,CYP,Third Party Payments,EGA,14/12/2015,11-15380,1068.90,Walesby School Playgroup,,,,,,,
Nottinghamshire County Council,1111/1001,Children and Young People,CYP,Third Party Payments,EGA,14/12/2015,11-15391,1507.80,Treetops Nurseries Ltd,,,,,,,
Nottinghamshire County Council,1111/1001,Children and Young People,CYP,Third Party Payments,EGA,14/12/2015,11-15393,2777.10,Treetops Nursery (Clipstone),,,,,,,
Nottinghamshire County Council,1111/1001,Children and Young People,CYP,Third Party Payments,EGA,14/12/2015,11-20740,62003.88,Nottinghamshire Healthcare Nhs F Tr,,,,,,,
Nottinghamshire County Council,1111/1001,Children and Young People,CYP,Third Party Payments,EGA,15/12/2015,11-15396,2977.80,Tiny Teddies @ Roko,,,,,,,
Nottinghamshire County Council,1111/1001,Children and Young People,CYP,Third Party Payments,EGA,15/12/2015,11-15397,2306.70,Tiny Teddies Day Nursery,,,,,,,
Nottinghamshire County Council,1111/1001,Children and Young People,CYP,Third Party Payments,EGA,15/12/2015,11-15398,1972.45,Tiny Talkers Day Nursery,,,,,,,
Nottinghamshire County Council,1111/1001,Children and Young People,CYP,Third Party Payments,EGA,15/12/2015,11-15400,716.52,Wolds Childcare Ltd,,,,,,,
Nottinghamshire County Council,1111/1001,Children and Young People,CYP,Third Party Payments,EGA,15/12/2015,11-15401,10702.65,The Orange Tree Day Nursery,,,,,,,
Nottinghamshire County Council,1111/1001,Children and Young People,CYP,Third Party Payments,EGA,15/12/2015,11-15402,951.30,The Lime Trees,,,,,,,
Nottinghamshire County Council,1111/1001,Children and Young People,CYP,Third Party Payments,EGA,15/12/2015,11-15404,1603.35,The Learning Tree Day Nursery 2,,,,,,,
Nottinghamshire County Council,1111/1001,Children and Young People,CYP,Third Party Payments,EGA,15/12/2015,11-15406,534.45,The Learning Tree Nursery,,,,,,,
Nottinghamshire County Council,1111/1001,Children and Young People,CYP,Third Party Payments,EGA,15/12/2015,11-15408,1749.60,Wellin Lane Playgroup,,,,,,,
Nottinghamshire County Council,1111/1001,Children and Young People,CYP,Third Party Payments,EGA,15/12/2015,11-15412,953.40,Stepping Stones II,,,,,,,
Nottinghamshire County Council,1111/1001,Children and Young People,CYP,Third Party Payments,EGA,15/12/2015,11-15413,1402.80,St Mary's Pre-School,,,,,,,
Nottinghamshire County Council,1111/1001,Children and Young People,CYP,Third Party Payments,EGA,15/12/2015,11-15414,4810.20,Shaping Futures Day Nursery,,,,,,,
Nottinghamshire County Council,1111/1001,Children and Young People,CYP,Third Party Payments,EGA,15/12/2015,11-15415,700.00,Serendipity's Day Nursery,,,,,,,
Nottinghamshire County Council,1111/1001,Children and Young People,CYP,Third Party Payments,EGA,15/12/2015,11-15416,2084.40,Safe Haven Day Nursery,,,,,,,
Nottinghamshire County Council,1111/1001,Children and Young People,CYP,Third Party Payments,EGA,15/12/2015,11-15417,3900.00,Ruddington Nursery & Pre-School,,,,,,,
Nottinghamshire County Council,1111/1001,Children and Young People,CYP,Third Party Payments,EGA,15/12/2015,11-15418,874.80,The Rocking Horse Child Care Centre,,,,,,,
Nottinghamshire County Council,1111/1001,Children and Young People,CYP,Third Party Payments,EGA,15/12/2015,11-15419,588.30,Rainbows Day Nursery,,,,,,,
Nottinghamshire County Council,1111/1001,Children and Young People,CYP,Third Party Payments,EGA,15/12/2015,11-15420,1562.97,Learning Ladder Childcare Ltd,,,,,,,
Nottinghamshire County Council,1111/1001,Children and Young People,CYP,Third Party Payments,EGA,15/12/2015,11-15421,951.30,Puddleducks Pre-School,,,,,,,
Nottinghamshire County Council,1111/1001,Children and Young People,CYP,Third Party Payments,EGA,15/12/2015,11-15422,1825.74,Learning Ladder Childcare Ltd,,,,,,,
Nottinghamshire County Council,1111/1001,Children and Young People,CYP,Third Party Payments,EGA,15/12/2015,11-15423,1972.16,Portland Place Pre-School,,,,,,,
Nottinghamshire County Council,1111/1001,Children and Young People,CYP,Third Party Payments,EGA,15/12/2015,11-15424,1606.32,Leo's Childrens Nurseries Ltd,,,,,,,
Nottinghamshire County Council,1111/1001,Children and Young People,CYP,Third Party Payments,EGA,15/12/2015,11-15425,504.00,Pippins Pre-School,,,,,,,
Nottinghamshire County Council,1111/1001,Children and Young People,CYP,Third Party Payments,EGA,15/12/2015,11-15426,3168.90,Old Cooperative Day Nursery,,,,,,,
Nottinghamshire County Council,1111/1001,Children and Young People,CYP,Third Party Payments,EGA,15/12/2015,11-15427,1447.62,Leos Childrens Nurseries Ltd,,,,,,,
Nottinghamshire County Council,1111/1001,Children and Young People,CYP,Third Party Payments,EGA,15/12/2015,11-15428,824.68,Oceans Day Nursery,,,,,,,
Nottinghamshire County Council,1111/1001,Children and Young People,CYP,Third Party Payments,EGA,15/12/2015,11-15429,1383.30,Leen Mills Pre School Playgroup,,,,,,,
Nottinghamshire County Council,1111/1001,Children and Young People,CYP,Third Party Payments,EGA,15/12/2015,11-15430,875.55,Noahs Ark Playgroup,,,,,,,
Nottinghamshire County Council,1111/1001,Children and Young People,CYP,Third Party Payments,EGA,15/12/2015,11-15431,3730.14,Leen Mills Pre School Playgroup,,,,,,,
Nottinghamshire County Council,1111/1001,Children and Young People,CYP,Third Party Payments,EGA,15/12/2015,11-15432,1323.42,North Leverton Pre-School Playgroup,,,,,,,
Nottinghamshire County Council,1111/1001,Children and Young People,CYP,Third Party Payments,EGA,15/12/2015,11-15433,573.81,Netherfield Pre School Ltd,,,,,,,
Nottinghamshire County Council,1111/1001,Children and Young People,CYP,Third Party Payments,EGA,15/12/2015,11-15434,966.80,Misson Pre-School,,,,,,,
Nottinghamshire County Council,1111/1001,Children and Young People,CYP,Third Party Payments,EGA,15/12/2015,11-15435,610.80,PSLA Newstead Childcare,,,,,,,
Nottinghamshire County Council,1111/1001,Children and Young People,CYP,Third Party Payments,EGA,15/12/2015,11-15436,1633.92,Little Acorns Pre-School,,,,,,,
Nottinghamshire County Council,1111/1001,Children and Young People,CYP,Third Party Payments,EGA,15/12/2015,11-15437,681.75,Mapperley Day Nursery,,,,,,,
Nottinghamshire County Council,1111/1001,Children and Young People,CYP,Third Party Payments,EGA,15/12/2015,11-15438,2157.63,Little Bears Day Nursery,,,,,,,
Nottinghamshire County Council,1111/1001,Children and Young People,CYP,Third Party Payments,EGA,15/12/2015,11-15439,2443.20,Lisa's Little Angels,,,,,,,
Nottinghamshire County Council,1111/1001,Children and Young People,CYP,Third Party Payments,EGA,15/12/2015,11-15440,1317.21,Little Acorns Shireoaks,,,,,,,
Nottinghamshire County Council,1111/1001,Children and Young People,CYP,Third Party Payments,EGA,15/12/2015,11-15441,1745.70,Little Millers Day Nursery,,,,,,,
Nottinghamshire County Council,1111/1001,Children and Young People,CYP,Third Party Payments,EGA,15/12/2015,11-15442,943.92,Little Friends Day Nursery,,,,,,,
Nottinghamshire County Council,1111/1001,Children and Young People,CYP,Third Party Payments,EGA,15/12/2015,11-15443,1829.19,Little Nippers Pre-School,,,,,,,
Nottinghamshire County Council,1111/1001,Children and Young People,CYP,Third Party Payments,EGA,15/12/2015,11-15444,572.40,Little Nippers Pre-School,,,,,,,
Nottinghamshire County Council,1111/1001,Children and Young People,CYP,Third Party Payments,EGA,15/12/2015,11-15445,2325.30,Little Oaks Nursery,,,,,,,
Nottinghamshire County Council,1111/1001,Children and Young People,CYP,Third Party Payments,EGA,15/12/2015,11-15446,1180.12,Longdale Nursery School,,,,,,,
Nottinghamshire County Council,1111/1001,Children and Young People,CYP,Third Party Payments,EGA,15/12/2015,11-15447,1382.76,PSLA Newstead Childcare,,,,,,,
Nottinghamshire County Council,1111/1001,Children and Young People,CYP,Third Party Payments,EGA,15/12/2015,11-15448,1239.93,Lowater Street Playgroup,,,,,,,
Nottinghamshire County Council,1111/1001,Children and Young People,CYP,Third Party Payments,EGA,15/12/2015,11-15449,1647.72,Lowdham & Epperstone Pre-School,,,,,,,
Nottinghamshire County Council,1111/1001,Children and Young People,CYP,Third Party Payments,EGA,15/12/2015,11-15450,1684.98,Millfield Nursery School,,,,,,,
Nottinghamshire County Council,1111/1001,Children and Young People,CYP,Third Party Payments,EGA,15/12/2015,11-15452,764.52,Misson Pre-School,,,,,,,
Nottinghamshire County Council,1111/1001,Children and Young People,CYP,Third Party Payments,EGA,15/12/2015,11-15453,572.40,Netherfield Pre School Ltd,,,,,,,
Nottinghamshire County Council,1111/1001,Children and Young People,CYP,Third Party Payments,EGA,15/12/2015,11-15454,715.53,Noahs Ark Playgroup,,,,,,,
Nottinghamshire County Council,1111/1001,Children and Young People,CYP,Third Party Payments,EGA,15/12/2015,11-15455,582.36,North Muskham Playgroup,,,,,,,
Nottinghamshire County Council,1111/1001,Children and Young People,CYP,Third Party Payments,EGA,15/12/2015,11-15456,1490.40,Nurseryworld & Friends Nursery & Pr,,,,,,,
Nottinghamshire County Council,1111/1001,Children and Young People,CYP,Third Party Payments,EGA,15/12/2015,11-15457,1811.25,Oceans Day Nursery,,,,,,,
Nottinghamshire County Council,1111/1001,Children and Young People,CYP,Third Party Payments,EGA,15/12/2015,11-15458,667.80,Oceans Day Nursery,,,,,,,
Nottinghamshire County Council,1111/1001,Children and Young People,CYP,Third Party Payments,EGA,15/12/2015,11-15459,621.00,Orchard School Nursery,,,,,,,
Nottinghamshire County Council,1111/1001,Children and Young People,CYP,Third Party Payments,EGA,15/12/2015,11-15460,1515.54,Papermoon Day Nursery,,,,,,,
Nottinghamshire County Council,1111/1001,Children and Young People,CYP,Third Party Payments,EGA,15/12/2015,11-15461,2703.42,Papermoon Day Nursery,,,,,,,
Nottinghamshire County Council,1111/1001,Children and Young People,CYP,Third Party Payments,EGA,15/12/2015,11-15462,1259.28,Papermoon Day Nursery,,,,,,,
Nottinghamshire County Council,1111/1001,Children and Young People,CYP,Third Party Payments,EGA,15/12/2015,11-15463,2362.56,Papermoon Day Nursery,,,,,,,
Nottinghamshire County Council,1111/1001,Children and Young People,CYP,Third Party Payments,EGA,15/12/2015,11-15464,3042.90,Papermoon Day Nursery Sutton In Ash,,,,,,,
Nottinghamshire County Council,1111/1001,Children and Young People,CYP,Third Party Payments,EGA,15/12/2015,11-15465,1240.20,Papermoon Day Nursery Sutton In Ash,,,,,,,
Nottinghamshire County Council,1111/1001,Children and Young People,CYP,Third Party Payments,EGA,15/12/2015,11-15466,1178.52,Pre-School 345,,,,,,,
Nottinghamshire County Council,1111/1001,Children and Young People,CYP,Third Party Payments,EGA,15/12/2015,11-15467,540.60,Pre-School 345,,,,,,,
Nottinghamshire County Council,1111/1001,Children and Young People,CYP,Third Party Payments,EGA,15/12/2015,11-15468,593.40,Prebend Pre-School Playgroup,,,,,,,
Nottinghamshire County Council,1111/1001,Children and Young People,CYP,Third Party Payments,EGA,15/12/2015,11-15476,1548.36,Papplewick Pre-School Playgroup,,,,,,,
Nottinghamshire County Council,1111/1001,Children and Young People,CYP,Third Party Payments,EGA,15/12/2015,11-15477,750.72,Pea Pod Day Nursery Ltd,,,,,,,
Nottinghamshire County Council,1111/1001,Children and Young People,CYP,Third Party Payments,EGA,15/12/2015,11-15478,1085.37,Pippins Pre-School,,,,,,,
Nottinghamshire County Council,1111/1001,Children and Young People,CYP,Third Party Payments,EGA,15/12/2015,11-15479,1200.60,Plumtree School,,,,,,,
Nottinghamshire County Council,1111/1001,Children and Young People,CYP,Third Party Payments,EGA,15/12/2015,11-15480,1814.70,Puddleducks Pre-School,,,,,,,
Nottinghamshire County Council,1111/1001,Children and Young People,CYP,Third Party Payments,EGA,15/12/2015,11-15481,572.40,Puddleducks Pre-School,,,,,,,
Nottinghamshire County Council,1111/1001,Children and Young People,CYP,Third Party Payments,EGA,15/12/2015,11-15482,669.30,Pump Farm Day Nursery,,,,,,,
Nottinghamshire County Council,1111/1001,Children and Young People,CYP,Third Party Payments,EGA,15/12/2015,11-15483,1289.61,Radcliffe On Trent Day Nursery,,,,,,,
Nottinghamshire County Council,1111/1001,Children and Young People,CYP,Third Party Payments,EGA,15/12/2015,11-15484,791.43,Radcliffe On Trent Pre School Playg,,,,,,,
Nottinghamshire County Council,1111/1001,Children and Young People,CYP,Third Party Payments,EGA,15/12/2015,11-15485,692.76,Railway Children Playgroup,,,,,,,
Nottinghamshire County Council,1111/1001,Children and Young People,CYP,Third Party Payments,EGA,15/12/2015,11-15486,654.81,Rainbow Day Nursery,,,,,,,
Nottinghamshire County Council,1111/1001,Children and Young People,CYP,Third Party Payments,EGA,15/12/2015,11-15487,667.80,Rainbow Day Nursery,,,,,,,
Nottinghamshire County Council,1111/1001,Children and Young People,CYP,Third Party Payments,EGA,15/12/2015,11-15488,687.24,Rainbow Day Nursery,,,,,,,
Nottinghamshire County Council,1111/1001,Children and Young People,CYP,Third Party Payments,EGA,15/12/2015,11-15489,848.70,Rainbows Day Nursery,,,,,,,
Nottinghamshire County Council,1111/1001,Children and Young People,CYP,Third Party Payments,EGA,15/12/2015,11-15490,1192.50,Rainbows Day Nursery,,,,,,,
Nottinghamshire County Council,1111/1001,Children and Young People,CYP,Third Party Payments,EGA,15/12/2015,11-15491,1017.63,Ranskill Nursery,,,,,,,
Nottinghamshire County Council,1111/1001,Children and Young People,CYP,Third Party Payments,EGA,15/12/2015,11-15492,811.44,Ravenshead Pre-School Playgroup,,,,,,,
Nottinghamshire County Council,1111/1001,Children and Young People,CYP,Third Party Payments,EGA,15/12/2015,11-15493,1242.00,Hickory House Day Nursery,,,,,,,
Nottinghamshire County Council,1111/1001,Children and Young People,CYP,Third Party Payments,EGA,15/12/2015,11-15494,1242.00,Highfields School & Nursery,,,,,,,
Nottinghamshire County Council,1111/1001,Children and Young People,CYP,Third Party Payments,EGA,15/12/2015,11-15495,823.20,Rocking Horse Nursery Butlers Hill,,,,,,,
Nottinghamshire County Council,1111/1001,Children and Young People,CYP,Third Party Payments,EGA,15/12/2015,11-15496,1603.56,Ruddington Nursery & Pre-School,,,,,,,
Nottinghamshire County Council,1111/1001,Children and Young People,CYP,Third Party Payments,EGA,15/12/2015,11-15497,701.04,Hermitage Pre-School,,,,,,,
Nottinghamshire County Council,1111/1001,Children and Young People,CYP,Third Party Payments,EGA,15/12/2015,11-15498,648.60,Rushcliffe Pre-School (Nottingham),,,,,,,
Nottinghamshire County Council,1111/1001,Children and Young People,CYP,Third Party Payments,EGA,15/12/2015,11-15499,786.60,Rushcliffe Pre-School (Nottingham),,,,,,,
Nottinghamshire County Council,1111/1001,Children and Young People,CYP,Third Party Payments,EGA,15/12/2015,11-15500,1200.60,Safe Haven Day Nursery,,,,,,,
Nottinghamshire County Council,1111/1001,Children and Young People,CYP,Third Party Payments,EGA,15/12/2015,11-15501,1308.24,Good Foundations Day Nursery,,,,,,,
Nottinghamshire County Council,1111/1001,Children and Young People,CYP,Third Party Payments,EGA,15/12/2015,11-15502,1192.50,Safe Haven Day Nursery,,,,,,,
Nottinghamshire County Council,1111/1001,Children and Young People,CYP,Third Party Payments,EGA,15/12/2015,11-15503,1233.72,Coteswood House School,,,,,,,
Nottinghamshire County Council,1111/1001,Children and Young People,CYP,Third Party Payments,EGA,15/12/2015,11-15504,1524.90,Scottswood Pdn Ltd,,,,,,,
Nottinghamshire County Council,1111/1001,Children and Young People,CYP,Third Party Payments,EGA,15/12/2015,11-15505,970.83,Cranmer Pre-School,,,,,,,
Nottinghamshire County Council,1111/1001,Children and Young People,CYP,Third Party Payments,EGA,15/12/2015,11-15506,535.44,Cropwell Bishop Pre-School Playgrou,,,,,,,
Nottinghamshire County Council,1111/1001,Children and Young People,CYP,Third Party Payments,EGA,15/12/2015,11-15507,844.15,Dagfa House School,,,,,,,
Nottinghamshire County Council,1111/1001,Children and Young People,CYP,Third Party Payments,EGA,15/12/2015,11-15508,1583.55,Daisies Day Nursery,,,,,,,
Nottinghamshire County Council,1111/1001,Children and Young People,CYP,Third Party Payments,EGA,15/12/2015,11-15509,2666.16,East Leake Day Nursery & Pre-School,,,,,,,
Nottinghamshire County Council,1111/1001,Children and Young People,CYP,Third Party Payments,EGA,15/12/2015,11-15510,614.83,East Leake Pre-School Playgroup,,,,,,,
Nottinghamshire County Council,1111/1001,Children and Young People,CYP,Third Party Payments,EGA,15/12/2015,11-15511,1157.13,Farnsfield Pre-School,,,,,,,
Nottinghamshire County Council,1111/1001,Children and Young People,CYP,Third Party Payments,EGA,15/12/2015,11-15512,538.20,St Peter's Early Years,,,,,,,
Nottinghamshire County Council,1111/1001,Children and Young People,CYP,Third Party Payments,EGA,15/12/2015,11-15513,3111.21,Fernwood Day Nursery Ltd,,,,,,,
Nottinghamshire County Council,1111/1001,Children and Young People,CYP,Third Party Payments,EGA,15/12/2015,11-15514,1747.77,Church House Day Nursery,,,,,,,
Nottinghamshire County Council,1111/1001,Children and Young People,CYP,Third Party Payments,EGA,15/12/2015,11-15515,828.00,Claremont Early Years Ltd,,,,,,,
Nottinghamshire County Council,1111/1001,Children and Young People,CYP,Third Party Payments,EGA,15/12/2015,11-15516,3452.76,The Rocking Horse Child Care Centre,,,,,,,
Nottinghamshire County Council,1111/1001,Children and Young People,CYP,Third Party Payments,EGA,15/12/2015,11-15517,1079.16,Collingham & District Pre-School,,,,,,,
Nottinghamshire County Council,1111/1001,Children and Young People,CYP,Third Party Payments,EGA,15/12/2015,11-15518,1148.16,Daisies Day Nursery,,,,,,,
Nottinghamshire County Council,1111/1001,Children and Young People,CYP,Third Party Payments,EGA,15/12/2015,11-15519,1049.40,Early Learners Centre Day Nursery,,,,,,,
Nottinghamshire County Council,1111/1001,Children and Young People,CYP,Third Party Payments,EGA,15/12/2015,11-15520,1315.05,Good Shepherd Pre-School,,,,,,,
Nottinghamshire County Council,1111/1001,Children and Young People,CYP,Third Party Payments,EGA,15/12/2015,11-15521,839.73,Gotham Pre-School Playgroup,,,,,,,
Nottinghamshire County Council,1111/1001,Children and Young People,CYP,Third Party Payments,EGA,15/12/2015,11-15522,2040.29,The Orchard Day Nursery,,,,,,,
Nottinghamshire County Council,1111/1001,Children and Young People,CYP,Third Party Payments,EGA,15/12/2015,11-15523,977.85,The Rocking Horse Child Care Centre,,,,,,,
Nottinghamshire County Council,1111/1001,Children and Young People,CYP,Third Party Payments,EGA,15/12/2015,11-15524,1325.49,Granby House Nursery,,,,,,,
Nottinghamshire County Council,1111/1001,Children and Young People,CYP,Third Party Payments,EGA,15/12/2015,11-15525,667.80,Granby House Nursery,,,,,,,
Nottinghamshire County Council,1111/1001,Children and Young People,CYP,Third Party Payments,EGA,15/12/2015,11-15526,710.70,Haywood Road Pre-School Playgroup,,,,,,,
Nottinghamshire County Council,1111/1001,Children and Young People,CYP,Third Party Payments,EGA,15/12/2015,11-15527,993.60,Hazel Hurst School,,,,,,,
Nottinghamshire County Council,1111/1001,Children and Young People,CYP,Third Party Payments,EGA,15/12/2015,11-15528,655.50,Hollies Day Nurseries,,,,,,,
Nottinghamshire County Council,1111/1001,Children and Young People,CYP,Third Party Payments,EGA,15/12/2015,11-15529,1107.07,Hollies Day Nurseries Limited,,,,,,,
Nottinghamshire County Council,1111/1001,Children and Young People,CYP,Third Party Payments,EGA,15/12/2015,11-15530,1359.30,Homestead Day Nursery Ltd,,,,,,,
Nottinghamshire County Council,1111/1001,Children and Young People,CYP,Third Party Payments,EGA,15/12/2015,11-15531,553.32,Homestead Day Nursery Ltd,,,,,,,
Nottinghamshire County Council,1111/1001,Children and Young People,CYP,Third Party Payments,EGA,15/12/2015,11-15532,841.80,Honey Pot Day Private Day Nursery L,,,,,,,
Nottinghamshire County Council,1111/1001,Children and Young People,CYP,Third Party Payments,EGA,15/12/2015,11-15533,779.70,Horsendale Playgroup,,,,,,,
Nottinghamshire County Council,1111/1001,Children and Young People,CYP,Third Party Payments,EGA,15/12/2015,11-15534,1349.64,Hucknall Pre-School Playgroup,,,,,,,
Nottinghamshire County Council,1111/1001,Children and Young People,CYP,Third Party Payments,EGA,15/12/2015,11-15535,1548.36,Killisick Pre-School,,,,,,,
Nottinghamshire County Council,1111/1001,Children and Young People,CYP,Third Party Payments,EGA,15/12/2015,11-15536,664.62,Killisick Pre-School,,,,,,,
Nottinghamshire County Council,1111/1001,Children and Young People,CYP,Third Party Payments,EGA,15/12/2015,11-15537,1076.40,Hucknall Day Nursery,,,,,,,
Nottinghamshire County Council,1111/1001,Children and Young People,CYP,Third Party Payments,EGA,15/12/2015,11-15538,831.45,SPBC Day Care Ltd,,,,,,,
Nottinghamshire County Council,1111/1001,Children and Young People,CYP,Third Party Payments,EGA,15/12/2015,11-15539,842.34,Edwalton Day Nursery,,,,,,,
Nottinghamshire County Council,1111/1001,Children and Young People,CYP,Third Party Payments,EGA,15/12/2015,11-15540,1161.96,Christchurch Hall Pre-School Playgr,,,,,,,
Nottinghamshire County Council,1111/1001,Children and Young People,CYP,Third Party Payments,EGA,15/12/2015,11-15543,1751.22,Discovery Day Nursery,,,,,,,
Nottinghamshire County Council,1111/1001,Children and Young People,CYP,Third Party Payments,EGA,15/12/2015,11-15544,910.80,Duncroft Day Nursery,,,,,,,
Nottinghamshire County Council,1111/1001,Children and Young People,CYP,Third Party Payments,EGA,15/12/2015,11-15545,3101.47,Breedon House Nurseries Ltd,,,,,,,
Nottinghamshire County Council,1111/1001,Children and Young People,CYP,Third Party Payments,EGA,15/12/2015,11-15546,864.57,Breedon House Nurseries Ltd,,,,,,,
Nottinghamshire County Council,1111/1001,Children and Young People,CYP,Third Party Payments,EGA,15/12/2015,11-15547,663.51,Children 1st @ Newark Centre,,,,,,,
Nottinghamshire County Council,1111/1001,Children and Young People,CYP,Third Party Payments,EGA,15/12/2015,11-15548,1744.32,Children 1st @ Breedon House,,,,,,,
Nottinghamshire County Council,1111/1001,Children and Young People,CYP,Third Party Payments,EGA,15/12/2015,11-15549,1230.96,Kingfisher Day Nursery,,,,,,,
Nottinghamshire County Council,1111/1001,Children and Young People,CYP,Third Party Payments,EGA,15/12/2015,11-15550,1184.04,Lady Bay Pre School Playgroup,,,,,,,
Nottinghamshire County Council,1111/1001,Children and Young People,CYP,Third Party Payments,EGA,15/12/2015,11-15551,995.34,Cherubs Ryton Park,,,,,,,
Nottinghamshire County Council,1111/1001,Children and Young People,CYP,Third Party Payments,EGA,15/12/2015,11-15552,811.44,Cherubs Ryton Park,,,,,,,
Nottinghamshire County Council,1111/1001,Children and Young People,CYP,Third Party Payments,EGA,15/12/2015,11-15553,907.35,Cherubs Childrens Centre Pleasley,,,,,,,
Nottinghamshire County Council,1111/1001,Children and Young People,CYP,Third Party Payments,EGA,15/12/2015,11-15554,761.76,Carlton Hill Playgroup,,,,,,,
Nottinghamshire County Council,1111/1001,Children and Young People,CYP,Third Party Payments,EGA,15/12/2015,11-15556,1528.35,Carlton & Gedling Day Nursery,,,,,,,
Nottinghamshire County Council,1111/1001,Children and Young People,CYP,Third Party Payments,EGA,15/12/2015,11-15557,1275.12,Brooklyn Day Nursery,,,,,,,
Nottinghamshire County Council,1111/1001,Children and Young People,CYP,Third Party Payments,EGA,15/12/2015,11-15558,2110.02,Cared 4 Ltd T/A Brookhill House Day,,,,,,,
Nottinghamshire County Council,1111/1001,Children and Young People,CYP,Third Party Payments,EGA,15/12/2015,11-15559,572.40,Bright Stars Childcare,,,,,,,
Nottinghamshire County Council,1111/1001,Children and Young People,CYP,Third Party Payments,EGA,15/12/2015,11-15560,1200.60,Bright Stars Childcare,,,,,,,
Nottinghamshire County Council,1111/1001,Children and Young People,CYP,Third Party Payments,EGA,15/12/2015,11-15561,506.52,Bright Sparks Day Nursery,,,,,,,
Nottinghamshire County Council,1111/1001,Children and Young People,CYP,Third Party Payments,EGA,15/12/2015,11-15562,1253.04,Lambley Day Nursery Ltd,,,,,,,
Nottinghamshire County Council,1111/1001,Children and Young People,CYP,Third Party Payments,EGA,15/12/2015,11-15563,953.36,Leahurst Road Pre-School,,,,,,,
Nottinghamshire County Council,1111/1001,Children and Young People,CYP,Third Party Payments,EGA,15/12/2015,11-15564,679.65,Fun Farm Day Nursery,,,,,,,
Nottinghamshire County Council,1111/1001,Children and Young People,CYP,Third Party Payments,EGA,15/12/2015,11-15565,572.40,Fun Farm Day Nursery,,,,,,,
Nottinghamshire County Council,1111/1001,Children and Young People,CYP,Third Party Payments,EGA,15/12/2015,11-15566,501.63,Pretty Windows Ltd,,,,,,,
Nottinghamshire County Council,1111/1001,Children and Young People,CYP,Third Party Payments,EGA,15/12/2015,11-15567,700.35,Bramley Pips Nursery Ltd,,,,,,,
Nottinghamshire County Council,1111/1001,Children and Young People,CYP,Third Party Payments,EGA,15/12/2015,11-15568,655.08,Bircotes Pre-School,,,,,,,
Nottinghamshire County Council,1111/1001,Children and Young People,CYP,Third Party Payments,EGA,15/12/2015,11-15569,1027.15,Bircotes Pre-School,,,,,,,
Nottinghamshire County Council,1111/1001,Children and Young People,CYP,Third Party Payments,EGA,15/12/2015,11-15570,1638.75,Bingham Day Nursery & Pre School,,,,,,,
Nottinghamshire County Council,1111/1001,Children and Young People,CYP,Third Party Payments,EGA,15/12/2015,11-15571,1131.60,Beacon Hill Day Nursery,,,,,,,
Nottinghamshire County Council,1111/1001,Children and Young People,CYP,Third Party Payments,EGA,15/12/2015,11-15572,572.40,Balderton Village Day Nursery,,,,,,,
Nottinghamshire County Council,1111/1001,Children and Young People,CYP,Third Party Payments,EGA,15/12/2015,11-15573,894.24,Balderton Village Day Nursery,,,,,,,
Nottinghamshire County Council,1111/1001,Children and Young People,CYP,Third Party Payments,EGA,15/12/2015,11-15574,874.92,Arnold View Pre-School,,,,,,,
Nottinghamshire County Council,1111/1001,Children and Young People,CYP,Third Party Payments,EGA,15/12/2015,11-15575,1217.85,Arnold House Day Nursery,,,,,,,
Nottinghamshire County Council,1111/1001,Children and Young People,CYP,Third Party Payments,EGA,15/12/2015,11-15576,579.60,Appleton Day Nursery,,,,,,,
Nottinghamshire County Council,1111/1001,Children and Young People,CYP,Third Party Payments,EGA,15/12/2015,11-15577,3220.23,Applegarth Day Nurseries Ltd,,,,,,,
Nottinghamshire County Council,1111/1001,Children and Young People,CYP,Third Party Payments,EGA,15/12/2015,11-15578,707.55,Alphabet House Day Nursery Worksop,,,,,,,
Nottinghamshire County Council,1111/1001,Children and Young People,CYP,Third Party Payments,EGA,15/12/2015,11-15579,1797.45,Alphabet House Day Nursery Worksop,,,,,,,
Nottinghamshire County Council,1111/1001,Children and Young People,CYP,Third Party Payments,EGA,15/12/2015,11-15580,2118.99,Alphabet House Nursery,,,,,,,
Nottinghamshire County Council,1111/1001,Children and Young People,CYP,Third Party Payments,EGA,15/12/2015,11-15581,1669.80,Alphabet House Day Nursery WB,,,,,,,
Nottinghamshire County Council,1111/1001,Children and Young People,CYP,Third Party Payments,EGA,15/12/2015,11-15582,968.76,Alphabet House Day Nursery,,,,,,,
Nottinghamshire County Council,1111/1001,Children and Young People,CYP,Third Party Payments,EGA,15/12/2015,11-15583,872.85,Alphabet House Day Nursery,,,,,,,
Nottinghamshire County Council,1111/1001,Children and Young People,CYP,Third Party Payments,EGA,15/12/2015,11-15584,1449.69,Childrens Corner Day Nursery,,,,,,,
Nottinghamshire County Council,1111/1001,Children and Young People,CYP,Third Party Payments,EGA,15/12/2015,11-15585,858.60,Cherubs Day Nursery,,,,,,,
Nottinghamshire County Council,1111/1001,Children and Young People,CYP,Third Party Payments,EGA,15/12/2015,11-15586,3234.72,Cherubs Day Nursery,,,,,,,
Nottinghamshire County Council,1111/1001,Children and Young People,CYP,Third Party Payments,EGA,15/12/2015,11-15587,1716.03,Cherubs Childrens Centre Wynndale,,,,,,,
Nottinghamshire County Council,1111/1001,Children and Young People,CYP,Third Party Payments,EGA,15/12/2015,11-15588,993.75,Cherubs Childcare Centre (Mansfield,,,,,,,
Nottinghamshire County Council,1111/1001,Children and Young People,CYP,Third Party Payments,EGA,15/12/2015,11-15589,1166.79,Cherubs Childcare Centre (Mansfield,,,,,,,
Nottinghamshire County Council,1111/1001,Children and Young People,CYP,Third Party Payments,EGA,15/12/2015,11-15590,979.80,Butterflies Nursery (West Notts Col,,,,,,,
Nottinghamshire County Council,1111/1001,Children and Young People,CYP,Third Party Payments,EGA,15/12/2015,11-15594,932.19,Childrens House Childcare Ltd,,,,,,,
Nottinghamshire County Council,1111/1001,Children and Young People,CYP,Third Party Payments,EGA,15/12/2015,11-15595,932.88,Ashfield Plaza Day Nursery,,,,,,,
Nottinghamshire County Council,1111/1001,Children and Young People,CYP,Third Party Payments,EGA,15/12/2015,11-15596,845.88,Buttercross Pre School,,,,,,,
Nottinghamshire County Council,1111/1001,Children and Young People,CYP,Third Party Payments,EGA,15/12/2015,11-15597,1569.75,Buttercross Pre School,,,,,,,
Nottinghamshire County Council,1111/1001,Children and Young People,CYP,Third Party Payments,EGA,15/12/2015,11-15598,1475.22,Busy Bees Nursery,,,,,,,
Nottinghamshire County Council,1111/1001,Children and Young People,CYP,Third Party Payments,EGA,15/12/2015,11-15599,784.53,Crossdale Busy Bees Pre-School,,,,,,,
Nottinghamshire County Council,1111/1001,Children and Young People,CYP,Third Party Payments,EGA,15/12/2015,11-15600,1747.77,Busy Bees (Daybrook),,,,,,,
Nottinghamshire County Council,1111/1001,Children and Young People,CYP,Third Party Payments,EGA,15/12/2015,11-15601,1425.00,Bramcote Pre-School Playgroup,,,,,,,
Nottinghamshire County Council,1111/1001,Children and Young People,CYP,Third Party Payments,EGA,15/12/2015,11-15602,1018.44,Early Years Playgroup,,,,,,,
Nottinghamshire County Council,1111/1001,Children and Young People,CYP,Third Party Payments,EGA,15/12/2015,11-15603,534.06,Blyth Pre-School Playgroup,,,,,,,
Nottinghamshire County Council,1111/1001,Children and Young People,CYP,Third Party Payments,EGA,15/12/2015,11-15604,7482.30,Blidworth Oaks Primary School,,,,,,,
Nottinghamshire County Council,1111/1001,Children and Young People,CYP,Third Party Payments,EGA,15/12/2015,11-15605,2225.94,Bizzy Kidz,,,,,,,
Nottinghamshire County Council,1111/1001,Children and Young People,CYP,Third Party Payments,EGA,15/12/2015,11-15606,2157.63,Balderton Pre-School,,,,,,,
Nottinghamshire County Council,1111/1001,Children and Young People,CYP,Third Party Payments,EGA,15/12/2015,11-15607,993.60,Awsworth Schoolhouse Day Nursery,,,,,,,
Nottinghamshire County Council,1111/1001,Children and Young People,CYP,Third Party Payments,EGA,15/12/2015,11-15608,1324.80,All Saints C Of E Primary School,,,,,,,
Nottinghamshire County Council,1111/1001,Children and Young People,CYP,Third Party Payments,EGA,15/12/2015,11-15609,572.40,All Saints C Of E Primary School,,,,,,,
Nottinghamshire County Council,1111/1001,Children and Young People,CYP,Third Party Payments,EGA,15/12/2015,11-15610,773.49,Allsorts Playgroup,,,,,,,
Nottinghamshire County Council,1111/1001,Children and Young People,CYP,Third Party Payments,EGA,15/12/2015,11-15611,725.04,PSLA Newstead Childcare,,,,,,,
Nottinghamshire County Council,1111/1001,Children and Young People,CYP,Third Party Payments,EGA,15/12/2015,11-15612,786.60,PSLA Newstead Childcare,,,,,,,
Nottinghamshire County Council,1111/1001,Children and Young People,CYP,Third Party Payments,EGA,15/12/2015,11-15613,870.09,Abacus Pre-School,,,,,,,
Nottinghamshire County Council,1111/1001,Children and Young People,CYP,Third Party Payments,EGA,15/12/2015,11-15614,1100.55,All Aboard Day Nursery,,,,,,,
Nottinghamshire County Council,1111/1001,Children and Young People,CYP,Third Party Payments,EGA,15/12/2015,11-15615,841.98,Attenborough Church Pre-School,,,,,,,
Nottinghamshire County Council,1111/1001,Children and Young People,CYP,Third Party Payments,EGA,15/12/2015,11-15616,1336.53,Attenborough Day Nursery & Pre-Sch,,,,,,,
Nottinghamshire County Council,1111/1001,Children and Young People,CYP,Third Party Payments,EGA,15/12/2015,11-15709,772.80,Quinton Day Nurseries T/A Honey Bee,,,,,,,
Nottinghamshire County Council,1111/1001,Children and Young People,CYP,Third Party Payments,EGA,15/12/2015,11-15714,2045.16,Carnarvon Pre-School,,,,,,,
Nottinghamshire County Council,1111/1001,Children and Young People,CYP,Third Party Payments,EGA,17/12/2015,11-15893,1108.83,Walesby School Playgroup,,,,,,,
Nottinghamshire County Council,1111/1001,Children and Young People,CYP,Third Party Payments,EGA,17/12/2015,11-20630,15496.37,Orange Grove Fostercare Ltd,,,,,,,
Nottinghamshire County Council,1111/1001,Children and Young People,CYP,Third Party Payments,EGA,17/12/2015,11-20932,656.00,[Redacted],,,,,,,
Nottinghamshire County Council,1111/1001,Children and Young People,CYP,Third Party Payments,EGA,18/12/2015,11-15945,763.50,Tracey Barnes Child Minding Service,,,,,,,
Nottinghamshire County Council,1111/1001,Children and Young People,CYP,Third Party Payments,EGA,18/12/2015,11-15990,3349.95,Papermoon Day Nursery Sutton In Ash,,,,,,,
Nottinghamshire County Council,1111/1001,Children and Young People,CYP,Third Party Payments,EGA,18/12/2015,11-15991,796.90,Papermoon Day Nursery,,,,,,,
Nottinghamshire County Council,1111/1001,Children and Young People,CYP,Third Party Payments,EGA,18/12/2015,11-15992,1908.90,Rainbows Day Nursery,,,,,,,
Nottinghamshire County Council,1111/1001,Children and Young People,CYP,Third Party Payments,EGA,18/12/2015,11-15993,1789.06,Scottswood Pdn Ltd,,,,,,,
Nottinghamshire County Council,1111/1001,Children and Young People,CYP,Third Party Payments,EGA,18/12/2015,11-15994,1015.28,Ranskill Nursery,,,,,,,
Nottinghamshire County Council,1111/1001,Children and Young People,CYP,Third Party Payments,EGA,18/12/2015,11-15995,1540.00,Lady Bay Pre School Playgroup,,,,,,,
Nottinghamshire County Council,1111/1001,Children and Young People,CYP,Third Party Payments,EGA,18/12/2015,11-15996,558.60,Coteswood House School,,,,,,,
Nottinghamshire County Council,1111/1001,Children and Young People,CYP,Third Party Payments,EGA,18/12/2015,11-15997,871.65,Rainbow Day Nursery,,,,,,,
Nottinghamshire County Council,1111/1001,Children and Young People,CYP,Third Party Payments,EGA,18/12/2015,11-20497,59594.44,The Place Young Peoples Company Ltd,,,,,,,
Nottinghamshire County Council,1111/1001,Children and Young People,CYP,Third Party Payments,EGA,18/12/2015,11-20948,128263.60,Fostering People Ltd,,,,,,,
Nottinghamshire County Council,1111/1001,Children and Young People,CYP,Third Party Payments,EGA,18/12/2015,11-20983,1061.61,Sensory Learning & Play CIC,,,,,,,
Nottinghamshire County Council,1111/1001,Children and Young People,CYP,Third Party Payments,EGA,18/12/2015,11-20984,15644.29,GBA Care Ltd,,,,,,,
Nottinghamshire County Council,1111/1001,Children and Young People,CYP,Third Party Payments,EGA,18/12/2015,11-20987,17957.14,GBA Care Ltd,,,,,,,
Nottinghamshire County Council,1111/1001,Children and Young People,CYP,Third Party Payments,EGA,21/12/2015,11-20433,2037.00,Compass Fostering Central Ltd,,,,,,,
Nottinghamshire County Council,1111/1001,Children and Young People,CYP,Third Party Payments,EGA,21/12/2015,11-20484,10644.66,Foster Care Associates Limited,,,,,,,
Nottinghamshire County Council,1111/1001,Children and Young People,CYP,Third Party Payments,EGA,21/12/2015,11-20508,106736.71,Foster Care Associates Limited,,,,,,,
Nottinghamshire County Council,1111/1001,Children and Young People,CYP,Third Party Payments,EGA,21/12/2015,11-20533,3214.28,Hope Fostering Services Ltd,,,,,,,
Nottinghamshire County Council,1111/1001,Children and Young People,CYP,Third Party Payments,EGA,21/12/2015,11-20553,29890.21,By The Bridge Ltd,,,,,,,
Nottinghamshire County Council,1111/1001,Children and Young People,CYP,Third Party Payments,EGA,21/12/2015,11-20588,36938.14,Jay Fostering,,,,,,,
Nottinghamshire County Council,1111/1001,Children and Young People,CYP,Third Party Payments,EGA,21/12/2015,11-20781,21856.00,Nottinghamshire YMCA (HO),,,,,,,
Nottinghamshire County Council,1111/1001,Children and Young People,CYP,Third Party Payments,EGA,21/12/2015,11-21019,15227.80,Castle Homes Care Ltd,,,,,,,
Nottinghamshire County Council,1111/1001,Children and Young People,CYP,Third Party Payments,EGA,21/12/2015,11-21024,36082.96,Fostering Solutions Ltd,,,,,,,
Nottinghamshire County Council,1111/1001,Children and Young People,CYP,Third Party Payments,EGA,22/12/2015,11-20991,647.29,Framework Housing Association,,,,,,,
Nottinghamshire County Council,1111/1001,Children and Young People,CYP,Third Party Payments,EGA,22/12/2015,11-20992,857.64,Framework Housing Association,,,,,,,
Nottinghamshire County Council,1111/1001,Children and Young People,CYP,Third Party Payments,EGA,22/12/2015,11-21043,37807.86,Fostering Solutions Ltd,,,,,,,
Nottinghamshire County Council,1111/1001,Children and Young People,CYP,Third Party Payments,EGA,22/12/2015,11-21047,35828.76,Fostering Solutions Ltd,,,,,,,
Nottinghamshire County Council,1111/1001,Children and Young People,CYP,Third Party Payments,EGA,22/12/2015,11-21061,3684.29,Social Home Choices,,,,,,,
Nottinghamshire County Council,1111/1001,Children and Young People,CYP,Third Party Payments,EGA,22/12/2015,11-21066,3000.00,Piers (UK) Ltd,,,,,,,
Nottinghamshire County Council,1111/1001,Children and Young People,CYP,Third Party Payments,EGA,22/12/2015,11-21077,2804.75,Sensory Learning & Play CIC,,,,,,,
Nottinghamshire County Council,1111/1001,Children and Young People,CYP,Third Party Payments,EGA,22/12/2015,11-21084,3020.00,Social Home Choices,,,,,,,
Nottinghamshire County Council,1111/1001,Children and Young People,CYP,Third Party Payments,EGA,22/12/2015,11-21085,3020.00,Social Home Choices,,,,,,,
Nottinghamshire County Council,1111/1001,Children and Young People,CYP,Third Party Payments,EGA,23/12/2015,11-18270,5311.74,Abacus Pre-School,,,,,,,
Nottinghamshire County Council,1111/1001,Children and Young People,CYP,Third Party Payments,EGA,23/12/2015,11-18271,25106.76,All Saints C Of E Primary School,,,,,,,
Nottinghamshire County Council,1111/1001,Children and Young People,CYP,Third Party Payments,EGA,23/12/2015,11-18272,13424.04,All Aboard Day Nursery,,,,,,,
Nottinghamshire County Council,1111/1001,Children and Young People,CYP,Third Party Payments,EGA,23/12/2015,11-18273,7495.74,Allsorts Playgroup,,,,,,,
Nottinghamshire County Council,1111/1001,Children and Young People,CYP,Third Party Payments,EGA,23/12/2015,11-18274,12065.34,Alphabet House Day Nursery,,,,,,,
Nottinghamshire County Council,1111/1001,Children and Young People,CYP,Third Party Payments,EGA,23/12/2015,11-18275,19060.02,Alphabet House Day Nursery WB,,,,,,,
Nottinghamshire County Council,1111/1001,Children and Young People,CYP,Third Party Payments,EGA,23/12/2015,11-18276,48572.58,Applegarth Day Nurseries Ltd,,,,,,,
Nottinghamshire County Council,1111/1001,Children and Young People,CYP,Third Party Payments,EGA,23/12/2015,11-18277,30098.46,Alphabet House Nursery,,,,,,,
Nottinghamshire County Council,1111/1001,Children and Young People,CYP,Third Party Payments,EGA,23/12/2015,11-18278,12324.06,Appleton Day Nursery,,,,,,,
Nottinghamshire County Council,1111/1001,Children and Young People,CYP,Third Party Payments,EGA,23/12/2015,11-18279,33673.50,Arnold House Day Nursery,,,,,,,
Nottinghamshire County Council,1111/1001,Children and Young People,CYP,Third Party Payments,EGA,23/12/2015,11-18280,12425.36,Attenborough Church Pre-School,,,,,,,
Nottinghamshire County Council,1111/1001,Children and Young People,CYP,Third Party Payments,EGA,23/12/2015,11-18281,27691.27,Balderton Pre-School,,,,,,,
Nottinghamshire County Council,1111/1001,Children and Young People,CYP,Third Party Payments,EGA,23/12/2015,11-18282,13616.82,Beacon Hill Day Nursery,,,,,,,
Nottinghamshire County Council,1111/1001,Children and Young People,CYP,Third Party Payments,EGA,23/12/2015,11-18283,13286.70,Beeston Nursery,,,,,,,
Nottinghamshire County Council,1111/1001,Children and Young People,CYP,Third Party Payments,EGA,23/12/2015,11-18284,16027.20,Bingham Day Nursery & Pre School,,,,,,,
Nottinghamshire County Council,1111/1001,Children and Young People,CYP,Third Party Payments,EGA,23/12/2015,11-18285,14346.11,Bircotes Pre-School,,,,,,,
Nottinghamshire County Council,1111/1001,Children and Young People,CYP,Third Party Payments,EGA,23/12/2015,11-18286,5376.00,Blyth Pre-School Playgroup,,,,,,,
Nottinghamshire County Council,1111/1001,Children and Young People,CYP,Third Party Payments,EGA,23/12/2015,11-18287,3665.34,Bramley Pips Nursery Ltd,,,,,,,
Nottinghamshire County Council,1111/1001,Children and Young People,CYP,Third Party Payments,EGA,23/12/2015,11-18288,12094.74,Pretty Windows Ltd,,,,,,,
Nottinghamshire County Council,1111/1001,Children and Young People,CYP,Third Party Payments,EGA,23/12/2015,11-18289,18784.08,Bright Stars Childcare,,,,,,,
Nottinghamshire County Council,1111/1001,Children and Young People,CYP,Third Party Payments,EGA,23/12/2015,11-18290,24668.28,Bright Sparks Day Nursery,,,,,,,
Nottinghamshire County Council,1111/1001,Children and Young People,CYP,Third Party Payments,EGA,23/12/2015,11-18291,26161.38,Cared 4 Ltd T/A Brookhill House Day,,,,,,,
Nottinghamshire County Council,1111/1001,Children and Young People,CYP,Third Party Payments,EGA,23/12/2015,11-18292,16624.02,Brooklyn Day Nursery,,,,,,,
Nottinghamshire County Council,1111/1001,Children and Young People,CYP,Third Party Payments,EGA,23/12/2015,11-18293,6101.34,Crossdale Busy Bees Pre-School,,,,,,,
Nottinghamshire County Council,1111/1001,Children and Young People,CYP,Third Party Payments,EGA,23/12/2015,11-18294,16489.62,Busy Bees Nursery,,,,,,,
Nottinghamshire County Council,1111/1001,Children and Young People,CYP,Third Party Payments,EGA,23/12/2015,11-18295,8613.36,Busy Bees Pre-School (Sutton),,,,,,,
Nottinghamshire County Council,1111/1001,Children and Young People,CYP,Third Party Payments,EGA,23/12/2015,11-18296,21969.57,Buttercross Pre School,,,,,,,
Nottinghamshire County Council,1111/1001,Children and Young People,CYP,Third Party Payments,EGA,23/12/2015,11-18297,23549.40,Carlton & Gedling Day Nursery,,,,,,,
Nottinghamshire County Council,1111/1001,Children and Young People,CYP,Third Party Payments,EGA,23/12/2015,11-18298,7193.34,Cedar House Day Nursery,,,,,,,
Nottinghamshire County Council,1111/1001,Children and Young People,CYP,Third Party Payments,EGA,23/12/2015,11-18299,7849.38,Cheeky Monkeys Day Nursery,,,,,,,
Nottinghamshire County Council,1111/1001,Children and Young People,CYP,Third Party Payments,EGA,23/12/2015,11-18300,33521.46,Cherubs Childrens Centre Wynndale,,,,,,,
Nottinghamshire County Council,1111/1001,Children and Young People,CYP,Third Party Payments,EGA,23/12/2015,11-18301,14730.49,Cherubs Ryton Park,,,,,,,
Nottinghamshire County Council,1111/1001,Children and Young People,CYP,Third Party Payments,EGA,23/12/2015,11-18302,5544.00,Chetwynd Barracks Pre-School,,,,,,,
Nottinghamshire County Council,1111/1001,Children and Young People,CYP,Third Party Payments,EGA,23/12/2015,11-18303,21482.16,Children 1st @ Breedon House,,,,,,,
Nottinghamshire County Council,1111/1001,Children and Young People,CYP,Third Party Payments,EGA,23/12/2015,11-18304,14569.38,Children 1st @ Newark Centre,,,,,,,
Nottinghamshire County Council,1111/1001,Children and Young People,CYP,Third Party Payments,EGA,23/12/2015,11-18305,13742.40,Breedon House Nurseries Ltd,,,,,,,
Nottinghamshire County Council,1111/1001,Children and Young People,CYP,Third Party Payments,EGA,23/12/2015,11-18306,37860.06,Breedon House Nurseries Ltd,,,,,,,
Nottinghamshire County Council,1111/1001,Children and Young People,CYP,Third Party Payments,EGA,23/12/2015,11-18307,15669.36,Childrens Corner Day Nursery,,,,,,,
Nottinghamshire County Council,1111/1001,Children and Young People,CYP,Third Party Payments,EGA,23/12/2015,11-18309,22680.84,Carnarvon Pre-School,,,,,,,
Nottinghamshire County Council,1111/1001,Children and Young People,CYP,Third Party Payments,EGA,23/12/2015,11-18310,12269.88,Childrens House Childcare Ltd,,,,,,,
Nottinghamshire County Council,1111/1001,Children and Young People,CYP,Third Party Payments,EGA,23/12/2015,11-18311,12516.00,Christchurch Hall Pre-School Playgr,,,,,,,
Nottinghamshire County Council,1111/1001,Children and Young People,CYP,Third Party Payments,EGA,23/12/2015,11-18312,20480.04,Church House Day Nursery,,,,,,,
Nottinghamshire County Council,1111/1001,Children and Young People,CYP,Third Party Payments,EGA,23/12/2015,11-18313,14642.46,Claremont Early Years Ltd,,,,,,,
Nottinghamshire County Council,1111/1001,Children and Young People,CYP,Third Party Payments,EGA,23/12/2015,11-18314,8467.20,Collingham & District Pre-School,,,,,,,
Nottinghamshire County Council,1111/1001,Children and Young People,CYP,Third Party Payments,EGA,23/12/2015,11-18315,2016.00,Colston Bassett Preparatory School,,,,,,,
Nottinghamshire County Council,1111/1001,Children and Young People,CYP,Third Party Payments,EGA,23/12/2015,11-18316,3463.74,Costock Pre School,,,,,,,
Nottinghamshire County Council,1111/1001,Children and Young People,CYP,Third Party Payments,EGA,23/12/2015,11-18317,21112.56,Coteswood House School,,,,,,,
Nottinghamshire County Council,1111/1001,Children and Young People,CYP,Third Party Payments,EGA,23/12/2015,11-18318,11491.20,Dagfa House School,,,,,,,
Nottinghamshire County Council,1111/1001,Children and Young People,CYP,Third Party Payments,EGA,23/12/2015,11-18319,23901.36,Daisies Day Nursery,,,,,,,
Nottinghamshire County Council,1111/1001,Children and Young People,CYP,Third Party Payments,EGA,23/12/2015,11-18320,10752.00,Daisies Day Nursery,,,,,,,
Nottinghamshire County Council,1111/1001,Children and Young People,CYP,Third Party Payments,EGA,23/12/2015,11-18321,24328.08,Discovery Day Nursery,,,,,,,
Nottinghamshire County Council,1111/1001,Children and Young People,CYP,Third Party Payments,EGA,23/12/2015,11-18322,16172.10,Early Years Playgroup,,,,,,,
Nottinghamshire County Council,1111/1001,Children and Young People,CYP,Third Party Payments,EGA,23/12/2015,11-18323,24539.76,East Leake Day Nursery & Pre-School,,,,,,,
Nottinghamshire County Council,1111/1001,Children and Young People,CYP,Third Party Payments,EGA,23/12/2015,11-18324,7191.62,East Leake Pre-School Playgroup,,,,,,,
Nottinghamshire County Council,1111/1001,Children and Young People,CYP,Third Party Payments,EGA,23/12/2015,11-18325,22414.14,Edwalton Day Nursery,,,,,,,
Nottinghamshire County Council,1111/1001,Children and Young People,CYP,Third Party Payments,EGA,23/12/2015,11-18326,4704.00,Elston Pre-school Playgroup Newark,,,,,,,
Nottinghamshire County Council,1111/1001,Children and Young People,CYP,Third Party Payments,EGA,23/12/2015,11-18327,10533.60,Farnsfield Pre-School,,,,,,,
Nottinghamshire County Council,1111/1001,Children and Young People,CYP,Third Party Payments,EGA,23/12/2015,11-18328,41922.72,Fernwood Day Nursery Ltd,,,,,,,
Nottinghamshire County Council,1111/1001,Children and Young People,CYP,Third Party Payments,EGA,23/12/2015,11-18329,26324.68,Fun Farm Day Nursery,,,,,,,
Nottinghamshire County Council,1111/1001,Children and Young People,CYP,Third Party Payments,EGA,23/12/2015,11-18330,24934.21,Good Foundations Day Nursery,,,,,,,
Nottinghamshire County Council,1111/1001,Children and Young People,CYP,Third Party Payments,EGA,23/12/2015,11-18331,14322.67,Good Shepherd Pre-School,,,,,,,
Nottinghamshire County Council,1111/1001,Children and Young People,CYP,Third Party Payments,EGA,23/12/2015,11-18332,9508.72,Gotham Pre-School Playgroup,,,,,,,
Nottinghamshire County Council,1111/1001,Children and Young People,CYP,Third Party Payments,EGA,23/12/2015,11-18333,24434.76,Granby House Nursery,,,,,,,
Nottinghamshire County Council,1111/1001,Children and Young People,CYP,Third Party Payments,EGA,23/12/2015,11-18334,18922.68,Highfields School & Nursery,,,,,,,
Nottinghamshire County Council,1111/1001,Children and Young People,CYP,Third Party Payments,EGA,23/12/2015,11-18335,15248.18,Homestead Day Nursery Ltd,,,,,,,
Nottinghamshire County Council,1111/1001,Children and Young People,CYP,Third Party Payments,EGA,23/12/2015,11-18336,7408.80,Honey Pot Day Private Day Nursery L,,,,,,,
Nottinghamshire County Council,1111/1001,Children and Young People,CYP,Third Party Payments,EGA,23/12/2015,11-18337,13096.02,Horsendale Playgroup,,,,,,,
Nottinghamshire County Council,1111/1001,Children and Young People,CYP,Third Party Payments,EGA,23/12/2015,11-18338,21304.08,Hucknall Day Nursery,,,,,,,
Nottinghamshire County Council,1111/1001,Children and Young People,CYP,Third Party Payments,EGA,23/12/2015,11-18339,20580.84,Hucknall Pre-School Playgroup,,,,,,,
Nottinghamshire County Council,1111/1001,Children and Young People,CYP,Third Party Payments,EGA,23/12/2015,11-18340,4489.38,Jesters Childcare Ltd,,,,,,,
Nottinghamshire County Council,1111/1001,Children and Young People,CYP,Third Party Payments,EGA,23/12/2015,11-18341,1817.13,Keyworth Primary School,,,,,,,
Nottinghamshire County Council,1111/1001,Children and Young People,CYP,Third Party Payments,EGA,23/12/2015,11-18342,7078.68,Kimberley Pre-School Playgroup,,,,,,,
Nottinghamshire County Council,1111/1001,Children and Young People,CYP,Third Party Payments,EGA,23/12/2015,11-18343,15669.36,Lady Bay Pre School Playgroup,,,,,,,
Nottinghamshire County Council,1111/1001,Children and Young People,CYP,Third Party Payments,EGA,23/12/2015,11-18344,14722.68,Lambley Day Nursery Ltd,,,,,,,
Nottinghamshire County Council,1111/1001,Children and Young People,CYP,Third Party Payments,EGA,23/12/2015,11-18345,11041.88,Leahurst Road Pre-School,,,,,,,
Nottinghamshire County Council,1111/1001,Children and Young People,CYP,Third Party Payments,EGA,23/12/2015,11-18346,27433.22,Learning Ladder Childcare Ltd,,,,,,,
Nottinghamshire County Council,1111/1001,Children and Young People,CYP,Third Party Payments,EGA,23/12/2015,11-18347,16845.36,Leo's Childrens Nurseries Ltd,,,,,,,
Nottinghamshire County Council,1111/1001,Children and Young People,CYP,Third Party Payments,EGA,23/12/2015,11-18348,26487.30,Leos Childrens Nurseries Ltd,,,,,,,
Nottinghamshire County Council,1111/1001,Children and Young People,CYP,Third Party Payments,EGA,23/12/2015,11-18349,19179.47,Little Acorns Pre-School,,,,,,,
Nottinghamshire County Council,1111/1001,Children and Young People,CYP,Third Party Payments,EGA,23/12/2015,11-18350,14532.00,Little Acorns Shireoaks,,,,,,,
